Workbook

Sheet PO
A2: PLANILHA ORÇAMENTÁRIA
A3: LOCALIDADE SINAPI: PORTO ALEGRE/RS
J5: DATA BASE SINAPI RS: | L5: =+Planilha_M.O.!$E$17 -> JUNHO / 2021
A9: OBJETO: | B9: Obras de Aquisição e Instalação de Academias de Ginástica ao ar livre na Praça Grêmio Futebol Portoalegrense (110/03), Praça Guia Lopes (118/08) e Praça Simões Lopes Neto (125/06) | D9: =CONCATENATE("Leis Sociais Horistas ",Planilha_M.O.!$D$5," (SINAPI)") -> Leis Sociais Horistas s/desoneração (SINAPI) | L9: =+Planilha_M.O.!$D$7 -> 1.111
A10: DATA: | B10: 2021-09-14 | D10: =CONCATENATE("Leis Sociais Mensalistas ",Planilha_M.O.!$D$5," (SINAP)I") -> Leis Sociais Mensalistas s/desoneração (SINAP)I | L10: =+Planilha_M.O.!$D$8 -> 0.6916
A11: ART nº: | D11: BDI: | L11: =+Planilha_M.O.!$F$7 -> 22,15%
D12: BDI diferenciado p/ Academia ar Livre: | L12: =IF($L$11="28,21%",19.35%,13.7%) -> 0.137
A13: PRAÇA GRÊMIO FUTEBOL PORTOALEGRENSE (110/03)
A14: Composição | B14: Item | C14: Descrição | D14: Quantidade | E14: Un | F14: Custo Unit.Mat.+Eq. | G14: Custo Unit. M.O. | H14: Custo Unit. | I14: Preço Unit.Mat.+Eq. | J14: Preço Unit. M.O. | K14: Preço Unit. | L14: Total
B15: 1 | C15: DESPESAS LEGAIS, LICENÇAS, TAXAS, CONTRIBUIÇÕES
A16: SMAMS 450 | B16: 1.1 | C16: ART (ANOTAÇÃO DE RESPONSABILIDADE TÉCNICA PELA EXECUÇÃO TOTAL DO OBJETO) | D16: 1 | E16: un | F16: =Composições!C68 -> 226 | G16: =+[1]Composições!C1026 -> 0 | H16: =+F16+G16 -> 226 | I16: =+K16-J16 -> 276.05 | J16: =+TRUNC((G16*(1+$L$11)),2) -> 0 | K16: =Composições!F74 -> 276.05 | L16: =TRUNC((D16*K16),2) -> 276.05
A17: SMAMS 390 | B17: 1.2 | C17: REMOÇÃO DE ENTULHOS COM CAÇAMBA 4M³ | D17: 10.43 | E17: m³ | F17: =Composições!C13 -> 110.83 | G17: =Composições!C15 -> 11.97 | H17: =+F17+G17 -> 122.8 | I17: =+K17-J17 -> 135.38 | J17: =+TRUNC((G17*(1+$L$11)),2) -> 14.62 | K17: =Composições!F21 -> 150 | L17: =TRUNC((D17*K17),2) -> 1564.5
B18: TOTAL DE DESPESAS LEGAIS, LICENÇAS, TAXAS, CONTRIBUIÇÕES | L18: =SUM(L16:L17) -> 1840.55
B19: 2 | C19: INSTALAÇÕES PROVISÓRIAS
A20: SMAMS 500 | B20: 2.1 | C20: TAPUME EM CHAPA DE COMPENSADO RESINADO (L=10,00m; C=10,00m e H=2,20M) | D20: 88 | E20: m² | F20: =Composições!C87 -> 26.48 | G20: =Composições!C92 -> 41.09 | H20: =+F20+G20 -> 67.57 | I20: =+K20-J20 -> 32.3386 | J20: =+TRUNC((G20*(1+$L$11)),4) -> 50.1914 | K20: =Composições!F98 -> 82.53 | L20: =TRUNC((D20*K20),2) -> 7262.64
A21: SMAMS 510 | B21: 2.2 | C21: LOCAÇÃO DE BANHEIRO QUÍMICO | D21: 100 | E21: % | F21: =Composições!C104 -> 6.8 | G21: 0 | H21: 6.8 | I21: 8.3062 | J21: =+TRUNC((G21*(1+$L$11)),4) -> 0 | K21: =Composições!F110 -> 8.3062 | L21: 830.62
A22: SMAMS 520 | B22: 2.3 | C22: FRETE P/ BANHEIRO QUÍMICO LOCADO (IDA E VOLTA) | D22: 1 | E22: cj | F22: =Composições!C117 -> 888.65 | G22: 0 | H22: 888.65 | I22: 1085.48 | J22: =+TRUNC((G22*(1+$L$11)),4) -> 0 | K22: =Composições!F123 -> 1085.48 | L22: 1085.48
A23: SMAMS 530 | B23: 2.4 | C23: INSTALAÇÃO PROVISÓRIA DE ENERGIA, AÉREA, BIFÁSICA, COM CAIXA DE EMBUTIR C/ POSTE H=9,00M | D23: 1 | E23: pt | F23: =Composições!C148 -> 2353.62 | G23: =Composições!C151 -> 86 | H23: 2439.62 | I23: 2874.941 | J23: 105.049 | K23: =Composições!F158 -> 2979.99 | L23: 2979.99
A24: SMAMS 535 | B24: 2.5 | C24: INSTALAÇÃO PROVISÓRIA DE ÁGUA | D24: 1 | E24: pt | F24: =Composições!C170 -> 734.47 | G24: 0 | H24: 734.47 | I24: 897.15 | J24: 0 | K24: =Composições!F176 -> 897.15 | L24: 897.15
A25: SMAMS 542 | B25: 2.6 | C25: PLACA DE OBRA EM CHAPA GALVANIZADA | D25: 2.5 | E25: m² | F25: =Composições!C188 -> 281.44 | G25: =Composições!C193 -> 21.64 | H25: =+F25+G25 -> 303.08 | I25: 343.7768 | J25: 26.4332 | K25: =Composições!F199 -> 370.21 | L25: 925.52
A26: SMAMS 552 | B26: 2.7 | C26: SINALIZAÇÃO COM TELA PLÁSTICA LARANJA FIXADA EM CONE PLÁSTICO | D26: 54 | E26: m | F26: =Composições!C206 -> 22.34 | G26: =Composições!C209 -> 5.69 | H26: =+F26+G26 -> 28.03 | I26: =+K26-J26 -> 27.2797 | J26: =+TRUNC((G26*(1+$L$11)),4) -> 6.9503 | K26: =Composições!F215 -> 34.23 | L26: =TRUNC((D26*K26),2) -> 1848.42
A27: SINAPI C 99064 | B27: 2.8 | C27: LOCAÇÃO DE OBRA | D27: 49 | E27: m | F27: =Composições!C220 -> 0.51 | G27: 0 | H27: 0.51 | I27: 0.62 | J27: 0 | K27: =Composições!F226 -> 0.62 | L27: 30.38
A28: SMAMS 565 | B28: 2.9 | C28: NIVELAMENTO | D28: 152.45 | E28: m² | F28: =Composições!C232 -> 0.03 | G28: =Composições!C236 -> 0.22 | H28: 0.25 | I28: 0.04 | J28: =+TRUNC((G28*(1+$L$11)),2) -> 0.26 | K28: =Composições!F242 -> 0.3 | L28: 45.73
B29: TOTAL DE INSTALAÇÕES PROVISÓRIAS | L29: =SUM(L20:L28) -> 15905.93
B30: 3 | C30: ADMINISTRAÇÃO LOCAL
A31: SMAMS 700 | B31: 3.1 | C31: ADMINISTRAÇÃO LOCAL | D31: 100 | E31: % | F31: =Composições!C268 -> 202.7122 | G31: 0 | H31: =+F31+G31 -> 202.7122 | I31: =+K31-J31 -> 247.6129 | J31: =+TRUNC((G31*(1+$L$11)),4) -> 0 | K31: =Composições!F274 -> 247.6129 | L31: =TRUNC((D31*K31),2) -> 24761.29
B32: TOTAL DE ADMINISTRAÇÃO LOCAL | L32: =SUM(L31) -> 24761.29
B33: 4 | C33: MOVIMENTO DE TERRA
A34: SMAMS 1002 | B34: 4.1 | C34: MODELAGEM (MOVIMENTO DE TERRA ATÉ 15CM) | D34: 152.45 | E34: m² | F34: =Composições!C325 -> 0.08 | G34: =Composições!C328 -> 2.34 | H34: =+F34+G34 -> 2.42 | I34: =+K34-J34 -> 0.1 | J34: =+TRUNC((G34*(1+$L$11)),2) -> 2.85 | K34: =Composições!F334 -> 2.95 | L34: =TRUNC((D34*K34),2) -> 449.72
A35: SMAMS 1010 | B35: 4.2 | C35: ATERRO MANUAL C/MATERIAL IMPORTADO C/COMPACTAÇÃO MANUAL | D35: 9.9 | E35: m³ | F35: =Composições!C340 -> 39.48 | G35: =Composições!C342 -> 41.04 | H35: 80.52 | I35: 48.22 | J35: 50.13 | K35: =Composições!F348 -> 98.35 | L35: 973.66
B36: TOTAL DE MOVIMENTO DE TERRA | L36: =SUM(L34:L35) -> 1423.38
B37: 5 | C37: PAVIMENTAÇÃO
A38: SINAPI C 94994 | B38: 5.1 | C38: EXECUÇÃO DE PASSEIO (CALÇADA) OU PISO DE CONCRETO COM CONCRETO USINADO, MOLDADO IN LOCO, ACABAMENTO VASSOURADO, ESPESSURA 8 CM, ARMADO | D38: 4.2 | E38: m² | F38: =Composições!C375 -> 97.59 | G38: =Composições!C379 -> 17.25 | H38: =+F38+G38 -> 114.84 | I38: =+K38-J38 -> 119.2 | J38: =+TRUNC((G38*(1+$L$11)),2) -> 21.07 | K38: =Composições!F385 -> 140.27 | L38: =TRUNC((D38*K38),2) -> 589.13
A39: SMAMS 2023 | B39: 5.2 | C39: PISO CONCRETO ARMADO E= 10 cm - ACADEMIA AO AR LIVRE | D39: 99 | E39: m² | F39: =Composições!C404 -> 81.76 | G39: =Composições!C410 -> 15.1 | H39: 96.86 | I39: 99.87 | J39: 18.44 | K39: =Composições!F416 -> 118.31 | L39: 11712.69
A40: SMAMS 2070 | B40: 5.3 | C40: PISO PODOTÁTIL 25x25 cm - E=2,0 cm | D40: 3 | E40: m | F40: =Composições!C426 -> 19.53 | G40: =Composições!C429 -> 8.14 | H40: 27.67 | I40: 23.85 | J40: 9.94 | K40: =Composições!F435 -> 33.79 | L40: 101.37
B41: TOTAL DE PAVIMENTAÇÃO | L41: =SUM(L38:L40) -> 12403.19
B42: 6 | C42: MOBILIÁRIO URBANO
A43: SMAMS 2601 | B43: 6.1 | C43: BANCO B (C/ ENCOSTO) - L=2,00 m - PADRÃO SMAMS | D43: 2 | E43: un | F43: =Composições!C459 -> 1021.84 | G43: =Composições!C466 -> 355.29 | H43: =+F43+G43 -> 1377.13 | I43: =+K43-J43 -> 1248.18 | J43: =+TRUNC((G43*(1+$L$11)),2) -> 433.98 | K43: =Composições!F472 -> 1682.16 | L43: =TRUNC((D43*K43),2) -> 3364.32
A44: SMAMS 2671 | B44: 6.2 | C44: LIXEIRA METÁLICA - V=30 LITROS | D44: 1 | E44: un | F44: =Composições!C497 -> 971.95 | G44: =Composições!C500 -> 52.81 | H44: 1024.76 | I44: 1187.24 | J44: 64.5 | K44: =Composições!F506 -> 1251.74 | L44: 1251.74
B45: TOTAL DE EQUIPAMENTOS/MOBILIÁRIO URBANO | L45: =SUM(L43:L44) -> 4616.06
B46: 7 | C46: ACADEMIA AO AR LIVRE GALVANIZADA
A47: SMAMS 3205 | B47: 7.1 | C47: PLACA ORIENTATIVA - GALVANIZADA | D47: 1 | E47: un | F47: =Composições!C616+Composições!C618 -> 7782.09 | G47: =Composições!C621 -> 44.72 | H47: =+F47+G47 -> 7826.81 | I47: =+K47-J47 -> 8855.57 | J47: =+TRUNC((G47*(1+$L$11)),2) -> 54.62 | K47: =Composições!F628 -> 8910.19 | L47: =TRUNC((D47*K47),2) -> 8910.19
A48: SMAMS 3220 | B48: 7.2 | C48: SIMULADOR DE CAMINHADA TRIPLO CONJUGADO - GALVANIZADO | D48: 1 | E48: un | F48: =Composições!C653 -> 13224.66 | G48: =Composições!C656 -> 24.08 | H48: 13248.74 | I48: 15036.43 | J48: 29.41 | K48: =Composições!F663 -> 15065.84 | L48: 15065.84
A49: SMAMS 3010 | B49: 7.3 | C49: APOIO DE MEMBROS SUPERIORES - EQUIPAMENTO PADRÃO SMAMS | D49: 1 | E49: un | F49: =Composições!C542 -> 637.61 | G49: =Composições!C546 -> 259.08 | H49: 896.69 | I49: 778.84 | J49: 316.46 | K49: =Composições!F552 -> 1095.3 | L49: 1095.3
A50: SMAMS 3235 | B50: 7.4 | C50: ADUÇÃO E ABDUÇÃO DE PERNAS DUPLO - GALVANIZADO | D50: 1 | E50: un | F50: =Composições!C684+Composições!C686 -> 9193.38 | G50: =Composições!C689 -> 28.77 | H50: 9222.15 | I50: 10456.54 | J50: 35.14 | K50: =Composições!F696 -> 10491.68 | L50: 10491.68
A51: SMAMS 3212 | B51: 7.5 | C51: JOGO DE BARRAS | D51: 1 | E51: un | F51: =Composições!C635+Composições!C637 -> 9532.86 | G51: =Composições!C640 -> 75.44 | H51: =+F51+G51 -> 9608.3 | I51: =+K51-J51 -> 10853.52 | J51: =+TRUNC((G51*(1+$L$11)),2) -> 92.14 | K51: =Composições!F647 -> 10945.66 | L51: =TRUNC((D51*K51),2) -> 10945.66
A52: SMAMS 3252 | B52: 7.6 | C52: SIMULADOR DE REMO - GALVANIZADO | D52: 1 | E52: un | F52: =Composições!C720 -> 5640 | G52: =Composições!C723 -> 24.08 | H52: 5664.08 | I52: 6412.68 | J52: 29.41 | K52: =Composições!F730 -> 6442.09 | L52: 6442.09
A53: SMAMS 3025 | B53: 7.7 | C53: ESPALDAR - EQUIPAMENTO PADRÃO SMAMS | D53: 1 | E53: un | F53: =Composições!C519 -> 1643.62 | G53: =Composições!C523 -> 596.02 | H53: =+F53+G53 -> 2239.64 | I53: =+K53-J53 -> 2007.69 | J53: =+TRUNC((G53*(1+$L$11)),2) -> 728.03 | K53: =Composições!F529 -> 2735.72 | L53: =TRUNC((D53*K53),2) -> 2735.72
A54: SMAMS 3276 | B54: 7.8 | C54: REMADA ESPECIAL - GALVANIZADO | D54: 1 | E54: un | F54: =Composições!C755 -> 5940 | G54: =Composições!C758 -> 18.9 | H54: =+F54+G54 -> 5958.9 | I54: =+K54-J54 -> 6753.78 | J54: =+TRUNC((G54*(1+$L$11)),2) -> 23.08 | K54: =Composições!F765 -> 6776.86 | L54: =TRUNC((D54*K54),2) -> 6776.86
A55: SMAMS 3280 | B55: 7.9 | C55: VOADOR PEITORAL E VOADOR DORSAL - GALVANIZADO | D55: 1 | E55: un | F55: =Composições!C771+Composições!C773 -> 6243.38 | G55: =Composições!C776 -> 28.77 | H55: 6272.15 | I55: 7102.39 | J55: 35.14 | K55: =Composições!F783 -> 7137.53 | L55: 7137.53
B56: TOTAL DE ACADEMIA AO AR LIVRE | L56: =SUM(L47:L55) -> 69600.87
B57: 8 | C57: PLANTIO
A58: SINAPI C 4105 | B58: 8.1 | C58: PLANTIO DE GRAMA CATARINA (SÃO MARCOS) COM COMPOSTO ORGÂNICO | D58: 48.5 | E58: m² | F58: =Composições!C838 -> 24.44 | G58: =Composições!C841 -> 3.45 | H58: =+F58+G58 -> 27.89 | I58: =+K58-J58 -> 29.85 | J58: =+TRUNC((G58*(1+$L$11)),2) -> 4.21 | K58: =Composições!F847 -> 34.06 | L58: =TRUNC((D58*K58),2) -> 1651.91
B59: TOTAL DE PLANTIO | L59: =SUM(L57:L58) -> 1651.91 | O59: =N60-L60 -> 2796.82
B60: SUBTOTAL PRAÇA GRÊMIO FUTEBOL PORTOALEGRENSE (1) | L60: =SUM(L16:L59)/2 -> 132203.18 | N60: 135000
A62: PRAÇA GUIA LOPES (118/08)
A63: Composição | B63: Item | C63: Descrição | D63: Quantidade | E63: Un | F63: Custo Unit.Mat.+Eq. | G63: Custo Unit. M.O. | H63: Custo Unit. | I63: Preço Unit.Mat.+Eq. | J63: Preço Unit. M.O. | K63: Preço Unit. | L63: Total
B64: 9 | C64: SERVIÇOS PRELIMINARES
A65: SMAMS 122 | B65: 9.1 | C65: DEMOLIÇÃO DE MURETAS E CANTEIRO | D65: 10.31 | E65: m³ | F65: =Composições!C53 -> 22.83 | G65: =Composições!C56 -> 0.37 | H65: =+F65+G65 -> 23.2 | I65: =+K65-J65 -> 27.88 | J65: =+TRUNC((G65*(1+$L$11)),2) -> 0.45 | K65: =Composições!F62 -> 28.33 | L65: =TRUNC((D65*K65),2) -> 292.08
A66: SMAMS 390 | B66: 9.2 | C66: REMOÇÃO DE ENTULHOS COM CAÇAMBA 4M³ | D66: 39.01 | E66: m³ | F66: =Composições!C13 -> 110.83 | G66: =Composições!C15 -> 11.97 | H66: 122.8 | I66: 135.38 | J66: 14.62 | K66: =Composições!F21 -> 150 | L66: 5851.5
B67: TOTAL DE SERVIÇOS PRELIMINARES | L67: =SUM(L65:L66) -> 6143.58
B68: 10 | C68: INSTALAÇÕES PROVISÓRIAS
A69: SMAMS 500 | B69: 10.1 | C69: TAPUME EM CHAPA DE COMPENSADO RESINADO (L=10,00m; C=10,00m e H=2,20M) | D69: 88 | E69: m² | F69: =Composições!C87 -> 26.48 | G69: =Composições!C92 -> 41.09 | H69: =+F69+G69 -> 67.57 | I69: =+K69-J69 -> 32.3386 | J69: =+TRUNC((G69*(1+$L$11)),4) -> 50.1914 | K69: =Composições!F98 -> 82.53 | L69: =TRUNC((D69*K69),2) -> 7262.64
A70: SMAMS 510 | B70: 10.2 | C70: LOCAÇÃO DE BANHEIRO QUÍMICO | D70: 100 | E70: % | F70: =Composições!C104 -> 6.8 | G70: 0 | H70: 6.8 | I70: 7.69 | J70: =+TRUNC((G70*(1+$L$11)),4) -> 0 | K70: =[2]Composições!F1116 -> 7.69 | L70: 769
A71: SMAMS 520 | B71: 10.3 | C71: FRETE P/ BANHEIRO QUÍMICO LOCADO (IDA E VOLTA) | D71: 1 | E71: cj | F71: =Composições!C117 -> 888.65 | G71: 0 | H71: 888.65 | I71: 1085.48 | J71: =+TRUNC((G71*(1+$L$11)),4) -> 0 | K71: =Composições!F123 -> 1085.48 | L71: 1085.48
A72: SMAMS 530 | B72: 10.4 | C72: INSTALAÇÃO PROVISÓRIA DE ENERGIA, AÉREA, BIFÁSICA, COM CAIXA DE EMBUTIR C/ POSTE H=9,00M | D72: 1 | E72: pt | F72: =Composições!C148 -> 2353.62 | G72: =Composições!C151 -> 86 | H72: 2439.62 | I72: 2874.941 | J72: 105.049 | K72: =Composições!F158 -> 2979.99 | L72: 2979.99
A73: SMAMS 535 | B73: 10.5 | C73: INSTALAÇÃO PROVISÓRIA DE ÁGUA | D73: 1 | E73: pt | F73: =Composições!C170 -> 734.47 | G73: 0 | H73: 734.47 | I73: 897.15 | J73: 0 | K73: =Composições!F176 -> 897.15 | L73: 897.15
A74: SMAMS 542 | B74: 10.6 | C74: PLACA DE OBRA EM CHAPA GALVANIZADA | D74: 2.5 | E74: m² | F74: =Composições!C188 -> 281.44 | G74: =Composições!C193 -> 21.64 | H74: =+F74+G74 -> 303.08 | I74: 343.7768 | J74: 26.4332 | K74: =Composições!F199 -> 370.21 | L74: 925.52
A75: SMAMS 552 | B75: 10.7 | C75: SINALIZAÇÃO COM TELA PLÁSTICA LARANJA FIXADA EM CONE PLÁSTICO | D75: 49.4 | E75: m | F75: =Composições!C206 -> 22.34 | G75: =Composições!C209 -> 5.69 | H75: =+F75+G75 -> 28.03 | I75: 27.2797 | J75: 6.9503 | K75: =Composições!F215 -> 34.23 | L75: 1690.96
A76: SINAPI C 99064 | B76: 10.8 | C76: LOCAÇÃO DE OBRA | D76: 65.2 | E76: m | F76: =Composições!C220 -> 0.51 | G76: 0 | H76: 0.51 | I76: 0.62 | J76: 0 | K76: =Composições!F226 -> 0.62 | L76: 40.42
A77: SMAMS 565 | B77: 10.9 | C77: NIVELAMENTO | D77: 167.71 | E77: m² | F77: =Composições!C232 -> 0.03 | G77: =Composições!C236 -> 0.22 | H77: 0.25 | I77: 0.04 | J77: =+TRUNC((G77*(1+$L$11)),2) -> 0.26 | K77: =Composições!F242 -> 0.3 | L77: 50.31
B78: TOTAL DE INSTALAÇÕES PROVISÓRIAS | L78: =SUM(L69:L77) -> 15701.47
B79: 11 | C79: ADMINISTRAÇÃO LOCAL
A80: SMAMS 700 | B80: 11.1 | C80: ADMINISTRAÇÃO LOCAL | D80: 100 | E80: % | F80: 0 | G80: =Composições!C268 -> 202.7122 | H80: =+F80+G80 -> 202.7122 | I80: =+K80-J80 -> 0 | J80: =+TRUNC((G80*(1+$L$11)),4) -> 247.6129 | K80: =Composições!F274 -> 247.6129 | L80: =TRUNC((D80*K80),2) -> 24761.29
B81: TOTAL DE ADMINISTRAÇÃO LOCAL | L81: =SUM(L80) -> 24761.29
B82: 12 | C82: MOVIMENTO DE TERRA
A83: SMAMS 1002 | B83: 12.1 | C83: MODELAGEM (MOVIMENTO DE TERRA ATÉ 15CM) | D83: 167.71 | E83: m² | F83: =Composições!C325 -> 0.08 | G83: =Composições!C328 -> 2.34 | H83: =+F83+G83 -> 2.42 | I83: =+K83-J83 -> 0.1 | J83: =+TRUNC((G83*(1+$L$11)),2) -> 2.85 | K83: =Composições!F334 -> 2.95 | L83: =TRUNC((D83*K83),2) -> 494.74
A84: SMAMS 1010 | B84: 12.2 | C84: ATERRO MANUAL C/MATERIAL IMPORTADO C/COMPACTAÇÃO MANUAL | D84: 10.5 | E84: m³ | F84: =Composições!C340 -> 39.48 | G84: =Composições!C342 -> 41.04 | H84: 80.52 | I84: 48.22 | J84: 50.13 | K84: =Composições!F348 -> 98.35 | L84: 1032.67
B85: TOTAL DE MOVIMENTO DE TERRA | L85: =SUM(L83:L84) -> 1527.41
B86: 13 | C86: PAVIMENTAÇÃO
A87: SMAMS 2010 | B87: 13.1 | C87: REPOSIÇÃO DE SAIBRO ROSA - COMPACTAÇÃO MECÂNICA - E= 6 CM | D87: 62.69 | E87: m² | F87: =Composições!C358 -> 7.23 | G87: =Composições!C360 -> 4.23 | H87: =+F87+G87 -> 11.46 | I87: =+K87-J87 -> 8.83 | J87: =+TRUNC((G87*(1+$L$11)),2) -> 5.16 | K87: =Composições!F366 -> 13.99 | L87: =TRUNC((D87*K87),2) -> 877.03
A88: SINAPI C 94994 | B88: 13.2 | C88: PISO CONCRETO ARMADO E= 10 cm - ACADEMIA AO AR LIVRE | D88: 105.02 | E88: m² | F88: =Composições!C404 -> 81.76 | G88: =Composições!C410 -> 15.1 | H88: 96.86 | I88: 99.87 | J88: 18.44 | K88: =Composições!F416 -> 118.31 | L88: 12424.91
B89: TOTAL DE PAVIMENTAÇÃO | L89: =SUM(L87:L88) -> 13301.94
B90: 14 | C90: MOBILIÁRIO URBANO
A91: SMAMS 2601 | B91: 14.1 | C91: BANCO B (C/ ENCOSTO) - L=2,00 m - PADRÃO SMAM | D91: 1 | E91: un | F91: =Composições!C459 -> 1021.84 | G91: =Composições!C466 -> 355.29 | H91: =+F91+G91 -> 1377.13 | I91: =+K91-J91 -> 1248.18 | J91: =+TRUNC((G91*(1+$L$11)),2) -> 433.98 | K91: =Composições!F472 -> 1682.16 | L91: =TRUNC((D91*K91),2) -> 1682.16
A92: SMAMS 2071 | B92: 14.2 | C92: LIXEIRA METÁLICA - V=30 LITROS INSTALADA | D92: 1 | E92: un | F92: =Composições!C497 -> 971.95 | G92: =Composições!C500 -> 52.81 | H92: 1024.76 | I92: 1187.24 | J92: 64.5 | K92: =Composições!F506 -> 1251.74 | L92: 1251.74
B93: TOTAL DE MOBILIÁRIO URBANO | L93: =SUM(L91:L92) -> 2933.9
B94: 15 | C94: ACADEMIA AO AR LIVRE - GALVANIZADA
A95: SINAPI C 3205 | B95: 15.1 | C95: PLACA ORIENTATIVA - GALVANIZADA | D95: 1 | E95: un | F95: =Composições!C616+Composições!C618 -> 7782.09 | G95: =Composições!C621 -> 44.72 | H95: =+F95+G95 -> 7826.81 | I95: =+K95-J95 -> 8855.57 | J95: =+TRUNC((G95*(1+$L$11)),2) -> 54.62 | K95: =Composições!F628 -> 8910.19 | L95: =TRUNC((D95*K95),2) -> 8910.19
A96: SINAPI C 3220 | B96: 15.2 | C96: SIMULADOR DE CAMINHADA TRIPLO CONJUGADO - GALVANIZADO | D96: 1 | E96: un | F96: =Composições!C653 -> 13224.66 | G96: =Composições!C656 -> 24.08 | H96: 13248.74 | I96: 15036.43 | J96: 29.41 | K96: =Composições!F663 -> 15065.84 | L96: 15065.84
A97: SINAPI C 3230 | B97: 15.3 | C97: ESQUI TRIPLO CONJUGADO - GALVANIZADO | D97: 1 | E97: un | F97: =Composições!C668 -> 16140 | G97: =Composições!C671 -> 24.08 | H97: 16164.08 | I97: 18351.18 | J97: 29.41 | K97: =Composições!F678 -> 18380.59 | L97: 18380.59
A98: SINAPI C 3235 | B98: 15.4 | C98: ADUÇÃO E ABDUÇÃO DE PERNAS DUPLO - GALVANIZADO | D98: 1 | E98: un | F98: =Composições!C684+Composições!C686 -> 9193.38 | G98: =Composições!C689 -> 28.77 | H98: 9222.15 | I98: 10456.54 | J98: 35.14 | K98: =Composições!F696 -> 10491.68 | L98: 10491.68
A99: SINAPI C 3240 | B99: 15.5 | C99: PRESSÃO DE PERNAS TRIPLO CONJUGADO - GALVANIZADO | D99: 1 | E99: un | F99: =Composições!C702+Composições!C704 -> 9515.38 | G99: =Composições!C707 -> 28.77 | H99: =+F99+G99 -> 9544.15 | I99: =+K99-J99 -> 10822.65 | J99: =+TRUNC((G99*(1+$L$11)),2) -> 35.14 | K99: =Composições!F714 -> 10857.79 | L99: =TRUNC((D99*K99),2) -> 10857.79
A100: SINAPI C 3252 | B100: 15.6 | C100: SIMULADOR DE REMO - GALVANIZADO | D100: 1 | E100: un | F100: =Composições!C720 -> 5640 | G100: =Composições!C723 -> 24.08 | H100: 5664.08 | I100: 6412.68 | J100: 29.41 | K100: =Composições!F730 -> 6442.09 | L100: 6442.09
A101: SINAPI C 3030 | B101: 15.7 | C101: PRANCHA DE ABDOMINAIS PADRÃO SMAMS | D101: 1 | E101: un | F101: =Composições!C570 -> 1135.76 | G101: =Composições!C575 -> 319.19 | H101: =+F101+G101 -> 1454.95 | I101: =+K101-J101 -> 1387.33 | J101: =+TRUNC((G101*(1+$L$11)),2) -> 389.89 | K101: =Composições!F581 -> 1777.22 | L101: =TRUNC((D101*K101),2) -> 1777.22
A102: SINAPI C 3280 | B102: 15.8 | C102: VOADOR PEITORAL E VOADOR DORSAL - GALVANIZADO | D102: 1 | E102: un | F102: =Composições!C771+Composições!C773 -> 6243.38 | G102: =Composições!C776 -> 28.77 | H102: 6272.15 | I102: 7102.39 | J102: 35.14 | K102: =Composições!F783 -> 7137.53 | L102: 7137.53
B103: TOTAL DE ACADEMIA AO AR LIVRE | L103: =SUM(L95:L102) -> 79062.93
B104: 16 | C104: REVESTIMENTO / PINTURA
A105: SINAPI C 87897 | B105: 16.1 | C105: CHAPISCO APLICADO EM ALVENARIA (SEM PRESENÇA DE VÃOS) E ESTRUTURAS DE CONCRETO DE FACHADA, COM EQUIPAMENTO DE PROJEÇÃO. ARGAMASSA TRAÇO 1:3 COM PREPARO EM BETONEIRA 400 L. AF_06/2014 | D105: 8.41 | E105: m² | F105: =Composições!C791 -> 2.34 | G105: =Composições!C794 -> 2.62 | H105: =+F105+G105 -> 4.96 | I105: =+K105-J105 -> 2.85 | J105: =+TRUNC((G105*(1+$L$11)),2) -> 3.2 | K105: =Composições!F800 -> 6.05 | L105: =TRUNC((D105*K105),2) -> 50.88
A106: SINAPI C 87794 | B106: 16.2 | C106: EMBOÇO OU MASSA ÚNICA EM ARGAMASSA TRAÇO 1:2:8, PREPARO MANUAL, APLICADA MANUALMENTE EM PANOS CEGOS DE FACHADA (SEM PRESENÇA DE VÃOS), ESPESSURA DE 25 MM. AF_06/2014 | D106: 8.41 | E106: m² | F106: =Composições!C807 -> 19.9 | G106: =Composições!C810 -> 15.12 | H106: 35.02 | I106: 24.31 | J106: 18.46 | K106: =Composições!F816 -> 42.77 | L106: 359.69
A107: SINAPI C 88489 | B107: 16.3 | C107: APLICAÇÃO MANUAL DE PINTURA COM TINTA LÁTEX ACRÍLICA EM PAREDES, DUAS DEMÃOS. AF_06/2014 | D107: 24.03 | E107: m² | F107: =Composições!C822 -> 8.47 | G107: =Composições!C825 -> 5.23 | H107: =+F107+G107 -> 13.7 | I107: =+K107-J107 -> 10.35 | J107: =+TRUNC((G107*(1+$L$11)),2) -> 6.38 | K107: =Composições!F831 -> 16.73 | L107: =TRUNC((D107*K107),2) -> 402.02
B108: TOTAL DE REVESTIMENTO / PINTURA | L108: =SUM(L105:L107) -> 812.59
B109: SUBTOTAL PRAÇA GUIA LOPES 118/08 (2) | L109: =SUM(L65:L108)/2 -> 144245.11
A111: PRAÇA SIMÕES LOPES NETO - 126/05
A112: Composição | B112: Item | C112: Descrição | D112: Quantidade | E112: Un | F112: Custo Unit.Mat.+Eq. | G112: Custo Unit. M.O. | H112: Custo Unit. | I112: Preço Unit.Mat.+Eq. | J112: Preço Unit. M.O. | K112: Preço Unit. | L112: Total
B113: 17 | C113: SERVIÇOS PRELIMINARES
A114: SMAMS 101 | B114: 17.1 | C114: REMOÇÃO BANCO S/ ENCOSTO - TIPO A | D114: 1 | E114: un | F114: =Composições!C32 -> 21.68 | G114: =Composições!C35 -> 28.67 | H114: =+F114+G114 -> 50.35 | I114: =+K114-J114 -> 26.48 | J114: =+TRUNC((G114*(1+$L$11)),2) -> 35.02 | K114: =Composições!F41 -> 61.5 | L114: =TRUNC((D114*K114),2) -> 61.5
A115: SMAMS 390 | B115: 17.2 | C115: REMOÇÃO DE ENTULHOS COM CAÇAMBA 4M³ | D115: 4.96 | E115: m³ | F115: =Composições!C13 -> 110.83 | G115: =Composições!C15 -> 11.97 | H115: =+F115+G115 -> 122.8 | I115: =+K115-J115 -> 135.38 | J115: =+TRUNC((G115*(1+$L$11)),2) -> 14.62 | K115: =Composições!F21 -> 150 | L115: =TRUNC((D115*K115),2) -> 744
B116: TOTAL DE SERVIÇOS PRELIMINARES | L116: =SUM(L114:L115) -> 805.5
B117: 18 | C117: INSTALAÇÕES PROVISÓRIAS
A118: SMAMS 500 | B118: 18.1 | C118: TAPUME EM CHAPA DE COMPENSADO RESINADO (L=10,00m; C=10,00m e H=2,20M) | D118: 88 | E118: m² | F118: =Composições!C87 -> 26.48 | G118: =Composições!C92 -> 41.09 | H118: =+F118+G118 -> 67.57 | I118: =+K118-J118 -> 32.3386 | J118: =+TRUNC((G118*(1+$L$11)),4) -> 50.1914 | K118: =Composições!F98 -> 82.53 | L118: =TRUNC((D118*K118),2) -> 7262.64
A119: =CONCATENATE("SMAMS ",Composições!A102) -> SMAMS 510 | B119: 18.2 | C119: LOCAÇÃO DE BANHEIRO QUÍMICO | D119: 100 | E119: % | F119: =Composições!C104 -> 6.8 | G119: 0 | H119: =+F119+G119 -> 6.8 | I119: =+K119-J119 -> 8.3062 | J119: =+TRUNC((G119*(1+$L$11)),4) -> 0 | K119: =Composições!F110 -> 8.3062 | L119: =TRUNC((D119*K119),2) -> 830.62
A120: SMAMS 520 | B120: 18.3 | C120: FRETE P/ BANHEIRO QUÍMICO LOCADO (IDA E VOLTA) | D120: 1 | E120: cj | F120: =Composições!C117 -> 888.65 | G120: 0 | H120: =+F120+G120 -> 888.65 | I120: =+K120-J120 -> 1085.48 | J120: =+TRUNC((G120*(1+$L$11)),4) -> 0 | K120: =Composições!F123 -> 1085.48 | L120: =TRUNC((D120*K120),2) -> 1085.48
A121: SMAMS 530 | B121: 18.4 | C121: INSTALAÇÃO PROVISÓRIA DE ENERGIA, AÉREA, BIFÁSICA, COM CAIXA DE EMBUTIR C/ POSTE H=9,00M | D121: 1 | E121: pt | F121: =Composições!C148 -> 2353.62 | G121: =Composições!C151 -> 86 | H121: =+F121+G121 -> 2439.62 | I121: =+K121-J121 -> 2874.941 | J121: =+TRUNC((G121*(1+$L$11)),4) -> 105.049 | K121: =Composições!F158 -> 2979.99 | L121: =TRUNC((D121*K121),2) -> 2979.99
A122: SMAMS 535 | B122: 18.5 | C122: INSTALAÇÃO PROVISÓRIA DE ÁGUA | D122: 1 | E122: pt | F122: =Composições!C170 -> 734.47 | G122: =Composições!C152 -> 0 | H122: =+F122+G122 -> 734.47 | I122: =+K122-J122 -> 897.15 | J122: =+TRUNC((G122*(1+$L$11)),4) -> 0 | K122: =Composições!F176 -> 897.15 | L122: =TRUNC((D122*K122),2) -> 897.15
A123: SMAMS 542 | B123: 18.6 | C123: PLACA DE OBRA EM CHAPA GALVANIZADA | D123: 2.5 | E123: m² | F123: =Composições!C188 -> 281.44 | G123: =Composições!C193 -> 21.64 | H123: =+F123+G123 -> 303.08 | I123: =+K123-J123 -> 343.7768 | J123: =+TRUNC((G123*(1+$L$11)),4) -> 26.4332 | K123: =Composições!F199 -> 370.21 | L123: =TRUNC((D123*K123),2) -> 925.52
A124: SMAMS 552 | B124: 18.7 | C124: SINALIZAÇÃO COM TELA PLÁSTICA LARANJA FIXADA EM CONE PLÁSTICO | D124: 23 | E124: m | F124: =Composições!C206 -> 22.34 | G124: =Composições!C209 -> 5.69 | H124: =+F124+G124 -> 28.03 | I124: 27.2797 | J124: 6.9503 | K124: =Composições!F215 -> 34.23 | L124: 787.29
A125: SINAPI C 99064 | B125: 18.8 | C125: LOCAÇÃO DE OBRA | D125: 30 | E125: m | F125: 0 | G125: =Composições!C220 -> 0.51 | H125: 0.51 | I125: -0.0029 | J125: 0.6229 | K125: =Composições!F226 -> 0.62 | L125: 18.6
A126: SMAMS 565 | B126: 18.9 | C126: NIVELAMENTO | D126: 71 | E126: m² | F126: =Composições!C232 -> 0.03 | G126: =Composições!C236 -> 0.22 | H126: 0.25 | I126: 0.04 | J126: =+TRUNC((G126*(1+$L$11)),2) -> 0.26 | K126: =Composições!F242 -> 0.3 | L126: 21.3
B127: TOTAL DE INSTALAÇÕES PROVISÓRIAS | L127: =SUM(L118:L126) -> 14808.59
B128: 19 | C128: ADMINISTRAÇÃO LOCAL
A129: SMAMS 701 | B129: 19.1 | C129: ADMINISTRAÇÃO LOCAL SIMÕES LOPES NETO | D129: 100 | E129: % | F129: 0 | G129: =Composições!C286 -> 201.5342 | H129: =+F129+G129 -> 201.5342 | I129: =+K129-J129 -> 0 | J129: =+TRUNC((G129*(1+$L$11)),4) -> 246.174 | K129: =Composições!F292 -> 246.174 | L129: =TRUNC((D129*K129),2) -> 24617.4
B130: TOTAL DE ADMINISTRAÇÃO LOCAL | L130: =SUM(L129) -> 24617.4
B131: 20 | C131: MOVIMENTO DE TERRA
A132: SMAMS 1002 | B132: 20.1 | C132: MODELAGEM (MOVIMENTO DE TERRA ATÉ 15CM) | D132: 71 | E132: m² | F132: =Composições!C325 -> 0.08 | G132: =Composições!C328 -> 2.34 | H132: =+F132+G132 -> 2.42 | I132: =+K132-J132 -> 0.1 | J132: =+TRUNC((G132*(1+$L$11)),2) -> 2.85 | K132: =Composições!F334 -> 2.95 | L132: =TRUNC((D132*K132),2) -> 209.45
B133: TOTAL DE MOVIMENTO DE TERRA | L133: =SUM(L132:L132) -> 209.45
B134: 21 | C134: PAVIMENTAÇÃO
A135: =CONCATENATE("SMAMS ",Composições!A389) -> SMAMS 2023 | B135: 21.1 | C135: PISO CONCRETO ARMADO E= 10 cm - ACADEMIA AO AR LIVRE | D135: 50 | E135: m² | F135: =+Composições!C404 -> 81.76 | G135: =Composições!C410 -> 15.1 | H135: =+F135+G135 -> 96.86 | I135: =+K135-J135 -> 99.87 | J135: =+TRUNC((G135*(1+$L$11)),2) -> 18.44 | K135: =Composições!F416 -> 118.31 | L135: =TRUNC((D135*K135),2) -> 5915.5
B136: TOTAL DE PAVIMENTAÇÃO | L136: =SUM(L135:L135) -> 5915.5
B137: 22 | C137: MOBILIÁRIO URBANO
A138: SMAMS 2601 | B138: 22.1 | C138: BANCO B (C/ ENCOSTO) - L=2,00 m - PADRÃO SMAM (NOVO) | D138: 1 | E138: un | F138: =+Composições!C459 -> 1021.84 | G138: =+Composições!C466 -> 355.29 | H138: =+F138+G138 -> 1377.13 | I138: =+K138-J138 -> 1248.18 | J138: =+TRUNC((G138*(1+$L$11)),2) -> 433.98 | K138: =+Composições!F472 -> 1682.16 | L138: =TRUNC((D138*K138),2) -> 1682.16
A139: SMAMS 3723 | B139: 22.2 | C139: INSTALAÇÃO DE BANCO S/ENCOSTO TIPO A (EXISTENTE) | D139: 1 | E139: un | F139: =Composições!C479 -> 61.14 | G139: =Composições!C482 -> 36.62 | H139: 97.76 | I139: 74.68 | J139: 44.73 | K139: =Composições!F488 -> 119.41 | L139: 119.41
A140: SMAMS 2671 | B140: 22.3 | C140: LIXEIRA METÁLICA - V=30 LITROS INSTALADA | D140: 1 | E140: un | F140: =+Composições!C497 -> 971.95 | G140: =+Composições!C500 -> 52.81 | H140: 1024.76 | I140: 1187.24 | J140: 64.5 | K140: =+Composições!F506 -> 1251.74 | L140: 1251.74
B141: TOTAL DE EQUIPAMENTOS/MOBILIÁRIO URBANO | L141: =SUM(L138:L140) -> 3053.31
B142: 23 | C142: ACADEMIA AO AR LIVRE - GALVANIZADA
A143: SMAMS 3205 | B143: 23.1 | C143: PLACA ORIENTATIVA - GALVANIZADA | D143: 1 | E143: un | F143: =+Composições!C616+Composições!C618 -> 7782.09 | G143: =+Composições!C621 -> 44.72 | H143: =+F143+G143 -> 7826.81 | I143: =+K143-J143 -> 8855.57 | J143: =+TRUNC((G143*(1+$L$11)),2) -> 54.62 | K143: =+Composições!F628 -> 8910.19 | L143: =TRUNC((D143*K143),2) -> 8910.19
A144: SMAMS 3220 | B144: 23.2 | C144: SIMULADOR DE CAMINHADA TRIPLO CONJUGADO - GALVANIZADO | D144: 1 | E144: un | F144: =+Composições!C653 -> 13224.66 | G144: =+Composições!C656 -> 24.08 | H144: 13248.74 | I144: 15036.43 | J144: 29.41 | K144: =+Composições!F663 -> 15065.84 | L144: 15065.84
A145: SMAMS 3235 | B145: 23.3 | C145: ADUÇÃO E ABDUÇÃO DE PERNAS DUPLO - GALVANIZADO | D145: 1 | E145: un | F145: =+Composições!C684+Composições!C686 -> 9193.38 | G145: =+Composições!C689 -> 28.77 | H145: 9222.15 | I145: 10456.54 | J145: 35.14 | K145: =+Composições!F696 -> 10491.68 | L145: 10491.68
A146: SMAMS 3025 | B146: 23.4 | C146: ESPALDAR - EQUIPAMENTO PADRÃO SMAMS | D146: 1 | E146: un | F146: =Composições!C519 -> 1643.62 | G146: =Composições!C523 -> 596.02 | H146: 2239.64 | I146: 2007.69 | J146: 728.03 | K146: =Composições!F529 -> 2735.72 | L146: 2735.72
A147: SMAMS 3252 | B147: 23.5 | C147: SIMULADOR DE REMO - GALVANIZADO | D147: 1 | E147: un | F147: =+Composições!F719 -> 5640 | G147: =+Composições!C723 -> 24.08 | H147: 5664.08 | I147: 6412.68 | J147: 29.41 | K147: =+Composições!F730 -> 6442.09 | L147: 6442.09
A148: SMAMS 3276 | B148: 23.6 | C148: REMADA ESPECIAL PPNE - GALVANIZADA | D148: 1 | E148: un | F148: =+Composições!C755 -> 5940 | G148: =+Composições!C758 -> 18.9 | H148: 5958.9 | I148: 6753.78 | J148: 23.08 | K148: =+Composições!F765 -> 6776.86 | L148: 6776.86
B149: TOTAL DE ACADEMIA AO AR LIVRE | L149: =SUM(L143:L148) -> 50422.38
B150: 24 | C150: PLANTIO
A151: =CONCATENATE("SMAMS ",Composições!A835) -> SMAMS 4105 | B151: 24.1 | C151: PLANTIO DE GRAMA CATARINA (SÃO MARCOS) COM COMPOSTO ORGÂNICO | D151: 21 | E151: m² | F151: =+Composições!C838 -> 24.44 | G151: =+Composições!C841 -> 3.45 | H151: =+F151+G151 -> 27.89 | I151: =+K151-J151 -> 29.85 | J151: =+TRUNC((G151*(1+$L$11)),2) -> 4.21 | K151: =+Composições!F847 -> 34.06 | L151: =TRUNC((D151*K151),2) -> 715.26
B152: TOTAL DE PLANTIO | L152: =SUM(L151:L151) -> 715.26
B153: SUBTOTAL PRAÇA SIMÕES LOPES NETO (3) | L153: =SUM(L114:L152)/2 -> 100547.39
B156: TOTAL OBRA (1) + (2) + (3) | L156: =L153+L109+L60 -> 376995.68

Sheet Cronograma
A1: CRONOGRAMA FÍSICO-FINANCEIRO | AC1: INSTRUÇÕES
AC2: *Preencher com as porcentagens de cada item. *Ocultar colunas não utilizadas (não deletar). *As linhas devem ser ocultadas, nunca deletadas. *Não preencher as porcentagens de engenheiro, mestre e encarregado.
A3: OBJETO: | B3: =+PO!$B$9 -> Obras de Aquisição e Instalação de Academias de Ginástica ao ar livre na Praça Grêmio Futebol Portoalegrense (110/03), Praça Guia Lopes (118/08) e Praça Simões Lopes Neto (125/06)
A4: DATA: | B4: =IF(PO!$B$10="","",PO!$B$10) -> 2021-09-14 | C4: =+PO!B3:L3 -> 0
A5: ART nº: | B5: =IF(PO!$B$11="","",PO!$B$11) -> 
A7: ITEM | B7: SERVIÇO | C7: VALOR DO SERVIÇO | D7: 30 dias | F7: 60 dias | H7: 90 dias | J7: 120 dias | L7: 150 dias | N7: 180 dias | P7: 210 dias | R7: 240 dias | T7: 270 dias | V7: 300 dias | X7: 330 dias | Z7: 360 dias
D8: % | E8: Valor | F8: % | G8: Valor | H8: % | I8: Valor | J8: % | K8: Valor | L8: % | M8: Valor | N8: % | O8: Valor | P8: % | Q8: Valor | R8: % | S8: Valor | T8: % | U8: Valor | V8: % | W8: Valor | X8: % | Y8: Valor | Z8: % | AA8: Valor
B9: PRAÇA PROFESSOR EMÍLIO MABILDE RÍPOLE
A10: 1 | B10: DESPESAS LEGAIS, LICENÇAS, TAXAS, CONTRIBUIÇÕES
A11: 1.1 | B11: ART (ANOTAÇÃO DE RESPONSABILIDADE TÉCNICA PELA EXECUÇÃO TOTAL DO OBJETO) | C11: =PO!L16 -> 276.05 | D11: 1 | E11: =D11*$C11 -> 276.05 | G11: =F11*$C11 -> 0 | I11: =H11*$C11 -> 0 | K11: =J11*$C11 -> 0 | M11: =L11*$C11 -> 0 | O11: =N11*$C11 -> 0 | Q11: =P11*$C11 -> 0 | S11: =R11*$C11 -> 0 | U11: =T11*$C11 -> 0 | W11: =V11*$C11 -> 0 | Y11: =X11*$C11 -> 0 | AA11: =Z11*$C11 -> 0 | AC11: =+D11+F11+H11+J11+L11+N11+P11+R11+T11+V11+X11+Z11 -> 1 | AD11: =+E11+G11+I11+K11+M11+O11+Q11+S11+U11+W11+Y11+AA11 -> 276.05 | AE11: =IF(C11=AD11,"ok!","incompleto") -> ok!
A12: 1.2 | B12: REMOÇÃO DE ENTULHOS COM CAÇAMBA 4M³ | C12: =PO!L17 -> 1564.5 | D12: 1 | E12: =D12*$C12 -> 1564.5 | G12: =F12*$C12 -> 0 | I12: =H12*$C12 -> 0 | K12: =J12*$C12 -> 0 | M12: =L12*$C12 -> 0 | O12: =N12*$C12 -> 0 | Q12: =P12*$C12 -> 0 | S12: =R12*$C12 -> 0 | U12: =T12*$C12 -> 0 | W12: =V12*$C12 -> 0 | Y12: =X12*$C12 -> 0 | AA12: =Z12*$C12 -> 0 | AC12: =+D12+F12+H12+J12+L12+N12+P12+R12+T12+V12+X12+Z12 -> 1 | AD12: 1564.5 | AE12: =IF(C12=AD12,"ok!","incompleto") -> ok!
A13: 2 | B13: INSTALAÇÕES PROVISÓRIAS
A14: 2.1 | B14: TAPUME EM CHAPA DE COMPENSADO RESINADO (L=10,00m; C=10,00m e H=2,20M) | C14: =PO!L20 -> 7262.64 | D14: 1 | E14: 7262.64 | G14: =F14*$C14 -> 0 | I14: 0 | K14: =J14*$C14 -> 0 | M14: =L14*$C14 -> 0 | O14: =N14*$C14 -> 0 | Q14: =P14*$C14 -> 0 | S14: =R14*$C14 -> 0 | U14: =T14*$C14 -> 0 | W14: =V14*$C14 -> 0 | Y14: =X14*$C14 -> 0 | AA14: =Z14*$C14 -> 0 | AC14: =+D14+F14+H14+J14+L14+N14+P14+R14+T14+V14+X14+Z14 -> 1 | AD14: =+E14+G14+I14+K14+M14+O14+Q14+S14+U14+W14+Y14+AA14 -> 7262.64 | AE14: =IF(C14=AD14,"ok!","incompleto") -> ok!
A15: 2.2 | B15: LOCAÇÃO DE BANHEIRO QUÍMICO | C15: =PO!L21 -> 830.62 | D15: 1 | E15: 830.62 | G15: 0 | I15: 0 | K15: 0 | M15: 0 | O15: 0 | Q15: 0 | S15: 0 | U15: 0 | W15: 0 | Y15: 0 | AA15: 0 | AC15: 1 | AD15: 830.62 | AE15: ok!
A16: 2.3 | B16: FRETE P/ BANHEIRO QUÍMICO LOCADO (IDA E VOLTA) | C16: =PO!L22 -> 1085.48 | D16: 1 | E16: =D16*$C16 -> 1085.48 | G16: =F16*$C16 -> 0 | I16: =H16*$C16 -> 0 | K16: =J16*$C16 -> 0 | M16: =L16*$C16 -> 0 | O16: =N16*$C16 -> 0 | Q16: =P16*$C16 -> 0 | S16: =R16*$C16 -> 0 | U16: =T16*$C16 -> 0 | W16: =V16*$C16 -> 0 | Y16: =X16*$C16 -> 0 | AA16: =Z16*$C16 -> 0 | AC16: =+D16+F16+H16+J16+L16+N16+P16+R16+T16+V16+X16+Z16 -> 1 | AD16: =+E16+G16+I16+K16+M16+O16+Q16+S16+U16+W16+Y16+AA16 -> 1085.48 | AE16: =IF(C16=AD16,"ok!","incompleto") -> ok!
A17: 2.4 | B17: INSTALAÇÃO PROVISÓRIA DE ENERGIA, AÉREA, BIFÁSICA, COM CAIXA DE EMBUTIR C/ POSTE H=9,00M | C17: =PO!L23 -> 2979.99 | D17: 1 | E17: 2979.99 | G17: 0 | I17: 0 | K17: 0 | M17: 0 | O17: 0 | Q17: 0 | S17: 0 | U17: 0 | W17: 0 | Y17: 0 | AA17: 0 | AC17: 1 | AD17: 2979.99 | AE17: ok!
A18: 2.5 | B18: INSTALAÇÃO PROVISÓRIA DE ÁGUA | C18: =PO!L24 -> 897.15 | D18: 1 | E18: 897.15 | G18: 0 | I18: 0 | K18: 0 | M18: 0 | O18: 0 | Q18: 0 | S18: 0 | U18: 0 | W18: 0 | Y18: 0 | AA18: 0 | AC18: 1 | AD18: 897.15 | AE18: ok!
A19: 2.6 | B19: PLACA DE OBRA EM CHAPA GALVANIZADA | C19: =PO!L25 -> 925.52 | D19: 1 | E19: =D19*$C19 -> 925.52 | G19: =F19*$C19 -> 0 | I19: =H19*$C19 -> 0 | K19: =J19*$C19 -> 0 | M19: =L19*$C19 -> 0 | O19: =N19*$C19 -> 0 | Q19: =P19*$C19 -> 0 | S19: =R19*$C19 -> 0 | U19: =T19*$C19 -> 0 | W19: =V19*$C19 -> 0 | Y19: =X19*$C19 -> 0 | AA19: =Z19*$C19 -> 0 | AC19: =+D19+F19+H19+J19+L19+N19+P19+R19+T19+V19+X19+Z19 -> 1 | AD19: =+E19+G19+I19+K19+M19+O19+Q19+S19+U19+W19+Y19+AA19 -> 925.52 | AE19: =IF(C19=AD19,"ok!","incompleto") -> ok!
A20: 2.7 | B20: SINALIZAÇÃO COM TELA PLÁSTICA LARANJA FIXADA EM CONE PLÁSTICO | C20: =PO!L26 -> 1848.42 | D20: 1 | E20: =D20*$C20 -> 1848.42 | G20: =F20*$C20 -> 0 | I20: =H20*$C20 -> 0 | K20: =J20*$C20 -> 0 | M20: =L20*$C20 -> 0 | O20: =N20*$C20 -> 0 | Q20: =P20*$C20 -> 0 | S20: =R20*$C20 -> 0 | U20: =T20*$C20 -> 0 | W20: =V20*$C20 -> 0 | Y20: =X20*$C20 -> 0 | AA20: =Z20*$C20 -> 0 | AC20: =+D20+F20+H20+J20+L20+N20+P20+R20+T20+V20+X20+Z20 -> 1 | AD20: =+E20+G20+I20+K20+M20+O20+Q20+S20+U20+W20+Y20+AA20 -> 1848.42 | AE20: =IF(C20=AD20,"ok!","incompleto") -> ok!
A21: 2.8 | B21: LOCAÇÃO DE OBRA | C21: =PO!L27 -> 30.38 | D21: 1 | E21: 30.38 | G21: 0 | I21: 0 | K21: 0 | M21: 0 | O21: 0 | Q21: 0 | S21: 0 | U21: 0 | W21: 0 | Y21: 0 | AA21: 0 | AC21: 1 | AD21: 30.38 | AE21: ok!
A22: 2.9 | B22: NIVELAMENTO | C22: =PO!L28 -> 45.73 | D22: 1 | E22: =D22*$C22 -> 45.73 | G22: =F22*$C22 -> 0 | I22: =H22*$C22 -> 0 | K22: =J22*$C22 -> 0 | M22: =L22*$C22 -> 0 | O22: =N22*$C22 -> 0 | Q22: =P22*$C22 -> 0 | S22: =R22*$C22 -> 0 | U22: =T22*$C22 -> 0 | W22: =V22*$C22 -> 0 | Y22: =X22*$C22 -> 0 | AA22: =Z22*$C22 -> 0 | AC22: =+D22+F22+H22+J22+L22+N22+P22+R22+T22+V22+X22+Z22 -> 1 | AD22: =+E22+G22+I22+K22+M22+O22+Q22+S22+U22+W22+Y22+AA22 -> 45.73 | AE22: =IF(C22=AD22,"ok!","incompleto") -> ok!
A23: 3 | B23: ADMINISTRAÇÃO LOCAL
A24: 3.1 | B24: ADMINISTRAÇÃO LOCAL | C24: =PO!L31 -> 24761.29 | D24: 1 | E24: =D24*$C24 -> 24761.29 | G24: =F24*$C24 -> 0 | I24: =H24*$C24 -> 0 | K24: =J24*$C24 -> 0 | M24: =L24*$C24 -> 0 | O24: =N24*$C24 -> 0 | Q24: =P24*$C24 -> 0 | S24: =R24*$C24 -> 0 | U24: =T24*$C24 -> 0 | W24: =V24*$C24 -> 0 | Y24: =X24*$C24 -> 0 | AA24: =Z24*$C24 -> 0 | AC24: =+D24+F24+H24+J24+L24+N24+P24+R24+T24+V24+X24+Z24 -> 1 | AD24: =+E24+G24+I24+K24+M24+O24+Q24+S24+U24+W24+Y24+AA24 -> 24761.29 | AE24: =IF(C24=AD24,"ok!","incompleto") -> ok!
A25: 4 | B25: MOVIMENTO DE TERRA
A26: 4.1 | B26: MODELAGEM (MOVIMENTO DE TERRA ATÉ 15CM) | C26: =PO!L34 -> 449.72 | D26: 1 | E26: =D26*$C26 -> 449.72 | G26: =F26*$C26 -> 0 | I26: =H26*$C26 -> 0 | K26: =J26*$C26 -> 0 | M26: =L26*$C26 -> 0 | O26: =N26*$C26 -> 0 | Q26: =P26*$C26 -> 0 | S26: =R26*$C26 -> 0 | U26: =T26*$C26 -> 0 | W26: =V26*$C26 -> 0 | Y26: =X26*$C26 -> 0 | AA26: =Z26*$C26 -> 0 | AC26: =+D26+F26+H26+J26+L26+N26+P26+R26+T26+V26+X26+Z26 -> 1 | AD26: 449.72 | AE26: =IF(C26=AD26,"ok!","incompleto") -> ok!
A27: 4.2 | B27: ATERRO MANUAL C/MATERIAL IMPORTADO C/COMPACTAÇÃO MANUAL | C27: =PO!L35 -> 973.66 | D27: 1 | E27: 973.66 | G27: 0 | I27: 0 | K27: 0 | M27: 0 | O27: 0 | Q27: 0 | S27: 0 | U27: 0 | W27: 0 | Y27: 0 | AA27: 0 | AC27: 1 | AD27: 973.66 | AE27: ok!
A28: 5 | B28: PAVIMENTAÇÃO
A29: 5.1 | B29: EXECUÇÃO DE PASSEIO (CALÇADA) OU PISO DE CONCRETO COM CONCRETO MOLDADO IN LOCO, FEITO EM OBRA, ACABAMENTO CONVENCIONAL, ESPESSURA 8 CM, ARMADO | C29: =PO!L38 -> 589.13 | D29: 1 | E29: 589.13 | G29: 0 | I29: 0 | K29: 0 | M29: 0 | O29: 0 | Q29: 0 | S29: 0 | U29: 0 | W29: 0 | Y29: 0 | AA29: 0 | AC29: =+D29+F29+H29+J29+L29+N29+P29+R29+T29+V29+X29+Z29 -> 1 | AD29: =+E29+G29+I29+K29+M29+O29+Q29+S29+U29+W29+Y29+AA29 -> 589.13 | AE29: =IF(C29=AD29,"ok!","incompleto") -> ok!
A30: 5.2 | B30: PISO CONCRETO ARMADO E= 10 cm - ACADEMIA AO AR LIVRE | C30: =PO!L39 -> 11712.69 | D30: 1 | E30: 11712.69 | G30: 0 | I30: 0 | K30: 0 | M30: 0 | O30: 0 | Q30: 0 | S30: 0 | U30: 0 | W30: 0 | Y30: 0 | AA30: 0 | AC30: 1 | AD30: 11712.69 | AE30: ok!
A31: 5.3 | B31: PISO PODOTÁTIL 25x25 cm - E=2,5CM | C31: =PO!L40 -> 101.37 | D31: 1 | E31: 101.37 | G31: 0 | I31: 0 | K31: 0 | M31: 0 | O31: 0 | Q31: 0 | S31: 0 | U31: 0 | W31: 0 | Y31: 0 | AA31: 0 | AC31: 1 | AD31: 101.37 | AE31: ok!
A32: 6 | B32: MOBILIÁRIO URBANO
A33: 6.1 | B33: BANCO B (C/ ENCOSTO) - L=2,00 m - PADRÃO SMAM | C33: =PO!L43 -> 3364.32 | D33: 1 | E33: =D33*$C33 -> 3364.32 | G33: =F33*$C33 -> 0 | I33: =H33*$C33 -> 0 | K33: =J33*$C33 -> 0 | M33: =L33*$C33 -> 0 | O33: =N33*$C33 -> 0 | Q33: =P33*$C33 -> 0 | S33: =R33*$C33 -> 0 | U33: =T33*$C33 -> 0 | W33: =V33*$C33 -> 0 | Y33: =X33*$C33 -> 0 | AA33: =Z33*$C33 -> 0 | AC33: =+D33+F33+H33+J33+L33+N33+P33+R33+T33+V33+X33+Z33 -> 1 | AD33: =+E33+G33+I33+K33+M33+O33+Q33+S33+U33+W33+Y33+AA33 -> 3364.32 | AE33: =IF(C33=AD33,"ok!","incompleto") -> ok!
A34: 6.2 | B34: LIXEIRA METÁLICA - V=30 LITROS INSTALADA | C34: =PO!L44 -> 1251.74 | D34: 1 | E34: =D34*$C34 -> 1251.74 | G34: =F34*$C34 -> 0 | I34: =H34*$C34 -> 0 | K34: =J34*$C34 -> 0 | M34: =L34*$C34 -> 0 | O34: =N34*$C34 -> 0 | Q34: =P34*$C34 -> 0 | S34: =R34*$C34 -> 0 | U34: =T34*$C34 -> 0 | W34: =V34*$C34 -> 0 | Y34: =X34*$C34 -> 0 | AA34: =Z34*$C34 -> 0 | AC34: =+D34+F34+H34+J34+L34+N34+P34+R34+T34+V34+X34+Z34 -> 1 | AD34: 1251.74 | AE34: =IF(C34=AD34,"ok!","incompleto") -> ok!
A35: 7 | B35: ACADEMIA AO AR LIVRE
A36: 7.1 | B36: PLACA ORIENTATIVA - GALVANIZADA | C36: =PO!L47 -> 8910.19 | D36: 1 | E36: =D36*$C36 -> 8910.19 | G36: =F36*$C36 -> 0 | I36: =H36*$C36 -> 0 | K36: =J36*$C36 -> 0 | M36: =L36*$C36 -> 0 | O36: =N36*$C36 -> 0 | Q36: =P36*$C36 -> 0 | S36: =R36*$C36 -> 0 | U36: =T36*$C36 -> 0 | W36: =V36*$C36 -> 0 | Y36: =X36*$C36 -> 0 | AA36: =Z36*$C36 -> 0 | AC36: =+D36+F36+H36+J36+L36+N36+P36+R36+T36+V36+X36+Z36 -> 1 | AD36: 8910.19 | AE36: =IF(C36=AD36,"ok!","incompleto") -> ok!
A37: 7.2 | B37: SIMULADOR DE CAMINHADA TRIPLO CONJUGADO - GALVANIZADO | C37: =PO!L48 -> 15065.84 | D37: 1 | E37: 15065.84 | G37: 0 | I37: 0 | K37: 0 | M37: 0 | O37: 0 | Q37: 0 | S37: 0 | U37: 0 | W37: 0 | Y37: 0 | AA37: 0 | AC37: 1 | AD37: 15065.84 | AE37: ok!
A38: 7.3 | B38: ESQUI TRIPLO CONJUGADO - GALVANIZADO | C38: =PO!L49 -> 1095.3 | D38: 1 | E38: =D38*$C38 -> 1095.3 | G38: =F38*$C38 -> 0 | I38: =H38*$C38 -> 0 | K38: =J38*$C38 -> 0 | M38: =L38*$C38 -> 0 | O38: =N38*$C38 -> 0 | Q38: =P38*$C38 -> 0 | S38: =R38*$C38 -> 0 | U38: =T38*$C38 -> 0 | W38: =V38*$C38 -> 0 | Y38: =X38*$C38 -> 0 | AA38: =Z38*$C38 -> 0 | AC38: =+D38+F38+H38+J38+L38+N38+P38+R38+T38+V38+X38+Z38 -> 1 | AD38: =+E38+G38+I38+K38+M38+O38+Q38+S38+U38+W38+Y38+AA38 -> 1095.3 | AE38: =IF(C38=AD38,"ok!","incompleto") -> ok!
A39: 7.4 | B39: ADUÇÃO E ABDUÇÃO DE PERNAS DUPLO - GALVANIZADO | C39: =PO!L50 -> 10491.68 | D39: 1 | E39: 10491.68 | G39: 0 | I39: 0 | K39: 0 | M39: 0 | O39: 0 | Q39: 0 | S39: 0 | U39: 0 | W39: 0 | Y39: 0 | AA39: 0 | AC39: 1 | AD39: 10491.68 | AE39: ok!
A40: 7.5 | B40: JOGO DE BARRAS | C40: =PO!L51 -> 10945.66 | D40: 1 | E40: =D40*$C40 -> 10945.66 | G40: =F40*$C40 -> 0 | I40: =H40*$C40 -> 0 | K40: =J40*$C40 -> 0 | M40: =L40*$C40 -> 0 | O40: =N40*$C40 -> 0 | Q40: =P40*$C40 -> 0 | S40: =R40*$C40 -> 0 | U40: =T40*$C40 -> 0 | W40: =V40*$C40 -> 0 | Y40: =X40*$C40 -> 0 | AA40: =Z40*$C40 -> 0 | AC40: =+D40+F40+H40+J40+L40+N40+P40+R40+T40+V40+X40+Z40 -> 1 | AD40: =+E40+G40+I40+K40+M40+O40+Q40+S40+U40+W40+Y40+AA40 -> 10945.66 | AE40: =IF(C40=AD40,"ok!","incompleto") -> ok!
A41: 7.6 | B41: SIMULADOR DE REMO - GALVANIZADO | C41: =PO!L52 -> 6442.09 | D41: 1 | E41: 6442.09 | G41: 0 | I41: 0 | K41: 0 | M41: 0 | O41: 0 | Q41: 0 | S41: 0 | U41: 0 | W41: 0 | Y41: 0 | AA41: 0 | AC41: 1 | AD41: 6442.09 | AE41: ok!
A42: 7.7 | B42: MULTIEXERCITADOR CONJUGADO 6 FUNÇÕES - GALVANIZADO | C42: =PO!L53 -> 2735.72 | D42: 1 | E42: 2735.72 | G42: 0 | I42: 0 | K42: 0 | M42: 0 | O42: 0 | Q42: 0 | S42: 0 | U42: 0 | W42: 0 | Y42: 0 | AA42: 0 | AC42: 1 | AD42: 2735.72 | AE42: ok!
A43: 7.8 | B43: REMADA ESPECIAL - GALVANIZADO | C43: =PO!L54 -> 6776.86 | D43: 1 | E43: 6776.86 | G43: 0 | I43: 0 | K43: 0 | M43: 0 | O43: 0 | Q43: 0 | S43: 0 | U43: 0 | W43: 0 | Y43: 0 | AA43: 0 | AC43: 1 | AD43: 6776.86 | AE43: ok!
A44: 7.9 | B44: VOADOR PEITORAL E VOADOR DORSAL - GALVANIZADO | C44: =PO!L55 -> 7137.53 | D44: 1 | E44: 7137.53 | G44: 0 | I44: 0 | K44: 0 | M44: 0 | O44: 0 | Q44: 0 | S44: 0 | U44: 0 | W44: 0 | Y44: 0 | AA44: 0 | AC44: 1 | AD44: 7137.53 | AE44: ok!
A45: 8 | B45: PLANTIO
A46: 8.1 | B46: PLANTIO DE GRAMA CATARINA (SÃO MARCOS) COM COMPOSTO ORGÂNICO | C46: =PO!L58 -> 1651.91 | D46: 1 | E46: =D46*$C46 -> 1651.91 | G46: =F46*$C46 -> 0 | I46: =H46*$C46 -> 0 | K46: =J46*$C46 -> 0 | M46: =L46*$C46 -> 0 | O46: =N46*$C46 -> 0 | Q46: =P46*$C46 -> 0 | S46: =R46*$C46 -> 0 | U46: =T46*$C46 -> 0 | W46: =V46*$C46 -> 0 | Y46: =X46*$C46 -> 0 | AA46: =Z46*$C46 -> 0 | AC46: =+D46+F46+H46+J46+L46+N46+P46+R46+T46+V46+X46+Z46 -> 1 | AD46: 1651.91 | AE46: =IF(C46=AD46,"ok!","incompleto") -> ok!
B47: PRAÇA GUIA LOPES
A48: 9 | B48: SERVIÇOS PRELIMINARES
A49: 9.1 | B49: DEMOLIÇÃO DE MURETAS E CANTEIROS | C49: =PO!L65 -> 292.08 | E49: =D49*$C49 -> 0 | F49: 1 | G49: =F49*$C49 -> 292.08 | I49: =H49*$C49 -> 0 | K49: =J49*$C49 -> 0 | M49: =L49*$C49 -> 0 | O49: =N49*$C49 -> 0 | Q49: =P49*$C49 -> 0 | S49: =R49*$C49 -> 0 | U49: =T49*$C49 -> 0 | W49: =V49*$C49 -> 0 | Y49: =X49*$C49 -> 0 | AA49: =Z49*$C49 -> 0 | AC49: =+D49+F49+H49+J49+L49+N49+P49+R49+T49+V49+X49+Z49 -> 1 | AD49: =+E49+G49+I49+K49+M49+O49+Q49+S49+U49+W49+Y49+AA49 -> 292.08 | AE49: =IF(C49=AD49,"ok!","incompleto") -> ok!
A50: 9.2 | B50: REMOÇÃO DE ENTULHOS COM CAÇAMBA 4M³ | C50: =PO!L66 -> 5851.5 | E50: =D50*$C50 -> 0 | F50: 1 | G50: =F50*$C50 -> 5851.5 | I50: =H50*$C50 -> 0 | K50: =J50*$C50 -> 0 | M50: =L50*$C50 -> 0 | O50: =N50*$C50 -> 0 | Q50: =P50*$C50 -> 0 | S50: =R50*$C50 -> 0 | U50: =T50*$C50 -> 0 | W50: =V50*$C50 -> 0 | Y50: =X50*$C50 -> 0 | AA50: =Z50*$C50 -> 0 | AC50: =+D50+F50+H50+J50+L50+N50+P50+R50+T50+V50+X50+Z50 -> 1 | AD50: =+E50+G50+I50+K50+M50+O50+Q50+S50+U50+W50+Y50+AA50 -> 5851.5 | AE50: =IF(C50=AD50,"ok!","incompleto") -> ok!
A51: 10 | B51: INSTALAÇÕES PROVISÓRIAS
A52: 10.1 | B52: TAPUME EM CHAPA DE COMPENSADO RESINADO (L=7,70m; C=11,00m e H=2,20M) | C52: =PO!L69 -> 7262.64 | E52: =D52*$C52 -> 0 | F52: 1 | G52: =F52*$C52 -> 7262.64 | I52: =H52*$C52 -> 0 | K52: =J52*$C52 -> 0 | M52: =L52*$C52 -> 0 | O52: =N52*$C52 -> 0 | Q52: =P52*$C52 -> 0 | S52: =R52*$C52 -> 0 | U52: =T52*$C52 -> 0 | W52: =V52*$C52 -> 0 | Y52: =X52*$C52 -> 0 | AA52: =Z52*$C52 -> 0 | AC52: =+D52+F52+H52+J52+L52+N52+P52+R52+T52+V52+X52+Z52 -> 1 | AD52: =+E52+G52+I52+K52+M52+O52+Q52+S52+U52+W52+Y52+AA52 -> 7262.64 | AE52: =IF(C52=AD52,"ok!","incompleto") -> ok!
A53: 10.2 | B53: LOCAÇÃO DE BANHEIRO QUÍMICO | C53: =PO!L70 -> 769 | E53: 0 | F53: 1 | G53: 769 | I53: 0 | K53: 0 | M53: 0 | O53: 0 | Q53: 0 | S53: 0 | U53: 0 | W53: 0 | Y53: 0 | AA53: 0 | AC53: 1 | AD53: 769 | AE53: ok!
A54: 10.3 | B54: FRETE P/ BANHEIRO QUÍMICO LOCADO (IDA E VOLTA) | C54: =PO!L71 -> 1085.48 | E54: 0 | F54: 1 | G54: 1085.48 | I54: 0 | K54: 0 | M54: 0 | O54: 0 | Q54: 0 | S54: 0 | U54: 0 | W54: 0 | Y54: 0 | AA54: 0 | AC54: 1 | AD54: 1085.48 | AE54: ok!
A55: 10.4 | B55: INSTALAÇÃO PROVISÓRIA DE ENERGIA, AÉREA, BIFÁSICA, COM CAIXA DE EMBUTIR C/ POSTE H=9,00M | C55: =PO!L72 -> 2979.99 | E55: 0 | F55: 1 | G55: 2979.99 | I55: 0 | K55: 0 | M55: 0 | O55: 0 | Q55: 0 | S55: 0 | U55: 0 | W55: 0 | Y55: 0 | AA55: 0 | AC55: 1 | AD55: 2979.99 | AE55: ok!
A56: 10.5 | B56: INSTALAÇÃO PROVISÓRIA DE ÁGUA | C56: =PO!L73 -> 897.15 | E56: 0 | F56: 1 | G56: 897.15 | I56: 0 | K56: 0 | M56: 0 | O56: 0 | Q56: 0 | S56: 0 | U56: 0 | W56: 0 | Y56: 0 | AA56: 0 | AC56: 1 | AD56: 897.15 | AE56: ok!
A57: 10.6 | B57: PLACA DE OBRA | C57: =PO!L74 -> 925.52 | E57: 0 | F57: 1 | G57: 925.52 | I57: 0 | K57: 0 | M57: 0 | O57: 0 | Q57: 0 | S57: 0 | U57: 0 | W57: 0 | Y57: 0 | AA57: 0 | AC57: 1 | AD57: 925.52 | AE57: ok!
A58: 10.7 | B58: SINALIZAÇÃO COM TELA PLÁSTICA LARANJA FIXADA EM CONE PLÁSTICO | C58: =PO!L75 -> 1690.96 | E58: 0 | F58: 1 | G58: 1690.96 | I58: 0 | K58: 0 | M58: 0 | O58: 0 | Q58: 0 | S58: 0 | U58: 0 | W58: 0 | Y58: 0 | AA58: 0 | AC58: 1 | AD58: 1690.96 | AE58: ok!
A59: 10.8 | B59: LOCAÇÃO DE OBRA | C59: =PO!L76 -> 40.42 | E59: 0 | F59: 1 | G59: 40.42 | I59: 0 | K59: 0 | M59: 0 | O59: 0 | Q59: 0 | S59: 0 | U59: 0 | W59: 0 | Y59: 0 | AA59: 0 | AC59: 1 | AD59: 40.42 | AE59: ok!
A60: 10.9 | B60: NIVELAMENTO | C60: =PO!L77 -> 50.31 | E60: 0 | F60: 1 | G60: 50.31 | I60: 0 | K60: 0 | M60: 0 | O60: 0 | Q60: 0 | S60: 0 | U60: 0 | W60: 0 | Y60: 0 | AA60: 0 | AC60: 1 | AD60: 50.31 | AE60: ok!
A61: 11 | B61: ADMINISTRAÇÃO LOCAL
A62: 11.1 | B62: ADMINISTRAÇÃO LOCAL | C62: =PO!L80 -> 24761.29 | E62: =D62*$C62 -> 0 | F62: 1 | G62: =F62*$C62 -> 24761.29 | I62: =H62*$C62 -> 0 | K62: =J62*$C62 -> 0 | M62: =L62*$C62 -> 0 | O62: =N62*$C62 -> 0 | Q62: =P62*$C62 -> 0 | S62: =R62*$C62 -> 0 | U62: =T62*$C62 -> 0 | W62: =V62*$C62 -> 0 | Y62: =X62*$C62 -> 0 | AA62: =Z62*$C62 -> 0 | AC62: =+D62+F62+H62+J62+L62+N62+P62+R62+T62+V62+X62+Z62 -> 1 | AD62: =+E62+G62+I62+K62+M62+O62+Q62+S62+U62+W62+Y62+AA62 -> 24761.29 | AE62: =IF(C62=AD62,"ok!","incompleto") -> ok!
A63: 12 | B63: MOVIMENTO DE TERRA
A64: 12.1 | B64: MODELAGEM (MOVIMENTO DE TERRA ATÉ 15CM) | C64: =PO!L83 -> 494.74 | E64: =D64*$C64 -> 0 | F64: 1 | G64: =F64*$C64 -> 494.74 | I64: =H64*$C64 -> 0 | K64: =J64*$C64 -> 0 | M64: =L64*$C64 -> 0 | O64: =N64*$C64 -> 0 | Q64: =P64*$C64 -> 0 | S64: =R64*$C64 -> 0 | U64: =T64*$C64 -> 0 | W64: =V64*$C64 -> 0 | Y64: =X64*$C64 -> 0 | AA64: =Z64*$C64 -> 0 | AC64: =+D64+F64+H64+J64+L64+N64+P64+R64+T64+V64+X64+Z64 -> 1 | AD64: =+E64+G64+I64+K64+M64+O64+Q64+S64+U64+W64+Y64+AA64 -> 494.74 | AE64: =IF(C64=AD64,"ok!","incompleto") -> ok!
A65: 12.2 | B65: ATERRO MANUAL C/MATERIAL IMPORTADO C/COMPACTAÇÃO MANUAL | C65: =PO!L84 -> 1032.67 | E65: 0 | F65: 1 | G65: 1032.67 | I65: 0 | K65: 0 | M65: 0 | O65: 0 | Q65: 0 | S65: 0 | U65: 0 | W65: 0 | Y65: 0 | AA65: 0 | AC65: 1 | AD65: 1032.67 | AE65: ok!
A66: 13 | B66: PAVIMENTAÇÃO
A67: 13.1 | B67: REPOSIÇÃO DE SAIBRO ROSA - COMPACTAÇÃO MECÂNICA - E= 6 CM | C67: =PO!L87 -> 877.03 | E67: =D67*$C67 -> 0 | F67: 1 | G67: =F67*$C67 -> 877.03 | I67: =H67*$C67 -> 0 | K67: =J67*$C67 -> 0 | M67: =L67*$C67 -> 0 | O67: =N67*$C67 -> 0 | Q67: =P67*$C67 -> 0 | S67: =R67*$C67 -> 0 | U67: =T67*$C67 -> 0 | W67: =V67*$C67 -> 0 | Y67: =X67*$C67 -> 0 | AA67: =Z67*$C67 -> 0 | AC67: =+D67+F67+H67+J67+L67+N67+P67+R67+T67+V67+X67+Z67 -> 1 | AD67: =+E67+G67+I67+K67+M67+O67+Q67+S67+U67+W67+Y67+AA67 -> 877.03 | AE67: =IF(C67=AD67,"ok!","incompleto") -> ok!
A68: 13.2 | B68: PISO CONCRETO ARMADO E= 10 cm - ACADEMIA AO AR LIVRE | C68: =PO!L88 -> 12424.91 | E68: 0 | F68: 1 | G68: 12424.91 | I68: 0 | K68: 0 | M68: 0 | O68: 0 | Q68: 0 | S68: 0 | U68: 0 | W68: 0 | Y68: 0 | AA68: 0 | AC68: 1 | AD68: 12424.91 | AE68: ok!
A69: 14 | B69: MOBILIÁRIO URBANO
A70: 14.1 | B70: BANCO B (C/ ENCOSTO) - L=2,00 m - PADRÃO SMAM | C70: =PO!L91 -> 1682.16 | E70: =D70*$C70 -> 0 | F70: 1 | G70: =F70*$C70 -> 1682.16 | I70: =H70*$C70 -> 0 | K70: =J70*$C70 -> 0 | M70: =L70*$C70 -> 0 | O70: =N70*$C70 -> 0 | Q70: =P70*$C70 -> 0 | S70: =R70*$C70 -> 0 | U70: =T70*$C70 -> 0 | W70: =V70*$C70 -> 0 | Y70: =X70*$C70 -> 0 | AA70: =Z70*$C70 -> 0 | AC70: =+D70+F70+H70+J70+L70+N70+P70+R70+T70+V70+X70+Z70 -> 1 | AD70: =+E70+G70+I70+K70+M70+O70+Q70+S70+U70+W70+Y70+AA70 -> 1682.16 | AE70: =IF(C70=AD70,"ok!","incompleto") -> ok!
A71: 14.2 | B71: LIXEIRA METÁLICA - V=30 LITROS INSTALADA | C71: =PO!L92 -> 1251.74 | E71: =D71*$C71 -> 0 | F71: 1 | G71: =F71*$C71 -> 1251.74 | I71: =H71*$C71 -> 0 | K71: =J71*$C71 -> 0 | M71: =L71*$C71 -> 0 | O71: =N71*$C71 -> 0 | Q71: =P71*$C71 -> 0 | S71: =R71*$C71 -> 0 | U71: =T71*$C71 -> 0 | W71: =V71*$C71 -> 0 | Y71: =X71*$C71 -> 0 | AA71: =Z71*$C71 -> 0 | AC71: 1 | AD71: 1251.74 | AE71: =IF(C71=AD71,"ok!","incompleto") -> ok!
A72: 15 | B72: ACADEMIA AO AR LIVRE
A73: 15.1 | B73: PLACA ORIENTATIVA - GALVANIZADA | C73: =PO!L95 -> 8910.19 | E73: =D73*$C73 -> 0 | F73: 1 | G73: =F73*$C73 -> 8910.19 | I73: =H73*$C73 -> 0 | K73: =J73*$C73 -> 0 | M73: =L73*$C73 -> 0 | O73: =N73*$C73 -> 0 | Q73: =P73*$C73 -> 0 | S73: =R73*$C73 -> 0 | U73: =T73*$C73 -> 0 | W73: =V73*$C73 -> 0 | Y73: =X73*$C73 -> 0 | AA73: =Z73*$C73 -> 0 | AC73: =+D73+F73+H73+J73+L73+N73+P73+R73+T73+V73+X73+Z73 -> 1 | AD73: =+E73+G73+I73+K73+M73+O73+Q73+S73+U73+W73+Y73+AA73 -> 8910.19 | AE73: =IF(C73=AD73,"ok!","incompleto") -> ok!
A74: 15.2 | B74: SIMULADOR DE CAMINHADA TRIPLO CONJUGADO - GALVANIZADO | C74: =PO!L96 -> 15065.84 | E74: 0 | F74: 1 | G74: 15065.84 | I74: 0 | K74: 0 | M74: 0 | O74: 0 | Q74: 0 | S74: 0 | U74: 0 | W74: 0 | Y74: 0 | AA74: 0 | AC74: 1 | AD74: 15065.84 | AE74: ok!
A75: 15.3 | B75: ESQUI TRIPLO CONJUGADO - GALVANIZADO | C75: =PO!L97 -> 18380.59 | E75: 0 | F75: 1 | G75: 18380.59 | I75: 0 | K75: 0 | M75: 0 | O75: 0 | Q75: 0 | S75: 0 | U75: 0 | W75: 0 | Y75: 0 | AA75: 0 | AC75: 1 | AD75: 18380.59 | AE75: ok!
A76: 15.4 | B76: ADUÇÃO E ABDUÇÃO DE PERNAS DUPLO - GALVANIZADO | C76: =PO!L98 -> 10491.68 | E76: 0 | F76: 1 | G76: 10491.68 | I76: 0 | K76: 0 | M76: 0 | O76: 0 | Q76: 0 | S76: 0 | U76: 0 | W76: 0 | Y76: 0 | AA76: 0 | AC76: 1 | AD76: 10491.68 | AE76: ok!
A77: 15.5 | B77: PRESSÃO DE PERNAS TRIPLO CONJUGADO - GALVANIZADO | C77: =PO!L99 -> 10857.79 | E77: 0 | F77: 1 | G77: 10857.79 | I77: 0 | K77: 0 | M77: 0 | O77: 0 | Q77: 0 | S77: 0 | U77: 0 | W77: 0 | Y77: 0 | AA77: 0 | AC77: 1 | AD77: 10857.79 | AE77: ok!
A78: 15.6 | B78: SIMULADOR DE REMO - GALVANIZADO | C78: =PO!L100 -> 6442.09 | E78: 0 | F78: 1 | G78: 6442.09 | I78: 0 | K78: 0 | M78: 0 | O78: 0 | Q78: 0 | S78: 0 | U78: 0 | W78: 0 | Y78: 0 | AA78: 0 | AC78: 1 | AD78: 6442.09 | AE78: ok!
A79: 15.7 | B79: ABDOMINAL SIMPLES - GALVANIZADO | C79: =PO!L101 -> 1777.22 | E79: 0 | F79: 1 | G79: 1777.22 | I79: 0 | K79: 0 | M79: 0 | O79: 0 | Q79: 0 | S79: 0 | U79: 0 | W79: 0 | Y79: 0 | AA79: 0 | AC79: 1 | AD79: 1777.22 | AE79: ok!
A80: 15.8 | B80: VOADOR PEITORAL E VOADOR DORSAL - GALVANIZADO | C80: =PO!L102 -> 7137.53 | E80: 0 | F80: 1 | G80: 7137.53 | I80: 0 | K80: 0 | M80: 0 | O80: 0 | Q80: 0 | S80: 0 | U80: 0 | W80: 0 | Y80: 0 | AA80: 0 | AC80: 1 | AD80: 7137.53 | AE80: ok!
A81: 16 | B81: PLANTIO
A82: 16.1 | B82: CHAPISCO APLICADO EM ALVENARIA (SEM PRESENÇA DE VÃOS) E ESTRUTURAS DE CONCRETO DE FACHADA, COM EQUIPAMENTO DE PROJEÇÃO. ARGAMASSA TRAÇO 1:3 COM PREPARO EM BETONEIRA 400 L. AF_06/2014 | C82: =PO!L105 -> 50.88 | E82: =D82*$C82 -> 0 | F82: 1 | G82: =F82*$C82 -> 50.88 | I82: =H82*$C82 -> 0 | K82: =J82*$C82 -> 0 | M82: =L82*$C82 -> 0 | O82: =N82*$C82 -> 0 | Q82: =P82*$C82 -> 0 | S82: =R82*$C82 -> 0 | U82: =T82*$C82 -> 0 | W82: =V82*$C82 -> 0 | Y82: =X82*$C82 -> 0 | AA82: =Z82*$C82 -> 0 | AC82: =+D82+F82+H82+J82+L82+N82+P82+R82+T82+V82+X82+Z82 -> 1 | AD82: =+E82+G82+I82+K82+M82+O82+Q82+S82+U82+W82+Y82+AA82 -> 50.88 | AE82: =IF(C82=AD82,"ok!","incompleto") -> ok!
A83: 16.2 | B83: EMBOÇO OU MASSA ÚNICA EM ARGAMASSA TRAÇO 1:2:8, PREPARO MANUAL, APLICADA MANUALMENTE EM PANOS CEGOS DE FACHADA (SEM PRESENÇA DE VÃOS), ESPESSURA DE 25 MM. AF_06/2014 | C83: =PO!L106 -> 359.69 | E83: 0 | F83: 1 | G83: 359.69 | I83: 0 | K83: 0 | M83: 0 | O83: 0 | Q83: 0 | S83: 0 | U83: 0 | W83: 0 | Y83: 0 | AA83: 0 | AC83: 1 | AD83: 359.69 | AE83: ok!
A84: 16.3 | B84: APLICAÇÃO MANUAL DE PINTURA COM TINTA LÁTEX ACRÍLICA EM PAREDES, DUAS DEMÃOS. AF_06/2014 | C84: =PO!L107 -> 402.02 | E84: =D84*$C84 -> 0 | F84: 1 | G84: =F84*$C84 -> 402.02 | I84: =H84*$C84 -> 0 | K84: =J84*$C84 -> 0 | M84: =L84*$C84 -> 0 | O84: =N84*$C84 -> 0 | Q84: =P84*$C84 -> 0 | S84: =R84*$C84 -> 0 | U84: =T84*$C84 -> 0 | W84: =V84*$C84 -> 0 | Y84: =X84*$C84 -> 0 | AA84: =Z84*$C84 -> 0 | AC84: =+D84+F84+H84+J84+L84+N84+P84+R84+T84+V84+X84+Z84 -> 1 | AD84: =+E84+G84+I84+K84+M84+O84+Q84+S84+U84+W84+Y84+AA84 -> 402.02 | AE84: =IF(C84=AD84,"ok!","incompleto") -> ok!
B85: PRAÇA SIMÕES LOPES NETO
A86: 17 | B86: SERVIÇOS PRELIMINARES
A87: 17.1 | B87: REMOÇÃO DE PASSEIOS - SEM REMOÇÃO DE ENTULHOS | C87: =PO!L114 -> 61.5 | E87: =D87*$C87 -> 0 | G87: =F87*$C87 -> 0 | H87: 1 | I87: =H87*$C87 -> 61.5 | K87: =J87*$C87 -> 0 | M87: =L87*$C87 -> 0 | O87: =N87*$C87 -> 0 | Q87: =P87*$C87 -> 0 | S87: =R87*$C87 -> 0 | U87: =T87*$C87 -> 0 | W87: =V87*$C87 -> 0 | Y87: =X87*$C87 -> 0 | AA87: =Z87*$C87 -> 0 | AC87: =+D87+F87+H87+J87+L87+N87+P87+R87+T87+V87+X87+Z87 -> 1 | AD87: =+E87+G87+I87+K87+M87+O87+Q87+S87+U87+W87+Y87+AA87 -> 61.5 | AE87: =IF(C87=AD87,"ok!","incompleto") -> ok!
A88: 17.2 | B88: REMOÇÃO DE ENTULHOS COM CAÇAMBA 4M³ | C88: =PO!L115 -> 744 | E88: 0 | G88: =F88*$C88 -> 0 | H88: 1 | I88: 744 | K88: =J88*$C88 -> 0 | M88: =L88*$C88 -> 0 | O88: =N88*$C88 -> 0 | Q88: =P88*$C88 -> 0 | S88: =R88*$C88 -> 0 | U88: =T88*$C88 -> 0 | W88: =V88*$C88 -> 0 | Y88: =X88*$C88 -> 0 | AA88: =Z88*$C88 -> 0 | AC88: 1 | AD88: 744 | AE88: =IF(C88=AD88,"ok!","incompleto") -> ok!
A89: 18 | B89: INSTALAÇÕES PROVISÓRIAS
A90: 18.1 | B90: TAPUME EM CHAPA DE COMPENSADO RESINADO (L=7,70m; C=11,00m e H=2,20M) | C90: =PO!L118 -> 7262.64 | E90: =D90*$C90 -> 0 | G90: =F90*$C90 -> 0 | H90: 1 | I90: =H90*$C90 -> 7262.64 | K90: =J90*$C90 -> 0 | M90: =L90*$C90 -> 0 | O90: =N90*$C90 -> 0 | Q90: =P90*$C90 -> 0 | S90: =R90*$C90 -> 0 | U90: =T90*$C90 -> 0 | W90: =V90*$C90 -> 0 | Y90: =X90*$C90 -> 0 | AA90: =Z90*$C90 -> 0 | AC90: =+D90+F90+H90+J90+L90+N90+P90+R90+T90+V90+X90+Z90 -> 1 | AD90: =+E90+G90+I90+K90+M90+O90+Q90+S90+U90+W90+Y90+AA90 -> 7262.64 | AE90: =IF(C90=AD90,"ok!","incompleto") -> ok!
A91: 18.2 | B91: LOCAÇÃO DE BANHEIRO QUÍMICO | C91: =PO!L119 -> 830.62 | E91: =D91*$C91 -> 0 | G91: =F91*$C91 -> 0 | H91: 1 | I91: =H91*$C91 -> 830.62 | K91: 0 | M91: 0 | O91: 0 | Q91: 0 | S91: 0 | U91: 0 | W91: 0 | Y91: 0 | AA91: 0 | AC91: 1 | AD91: 830.62 | AE91: ok!
A92: 18.3 | B92: FRETE P/ BANHEIRO QUÍMICO LOCADO (IDA E VOLTA) | C92: =PO!L120 -> 1085.48 | E92: 0 | G92: 0 | H92: 1 | I92: 1085.48 | K92: 0 | M92: 0 | O92: 0 | Q92: 0 | S92: 0 | U92: 0 | W92: 0 | Y92: 0 | AA92: 0 | AC92: 1 | AD92: 1085.48 | AE92: ok!
A93: 18.4 | B93: INSTALAÇÃO PROVISÓRIA DE ENERGIA, AÉREA, BIFÁSICA, COM CAIXA DE EMBUTIR C/ POSTE H=9,00M | C93: =PO!L121 -> 2979.99 | E93: 0 | G93: 0 | H93: 1 | I93: 2979.99 | K93: 0 | M93: 0 | O93: 0 | Q93: 0 | S93: 0 | U93: 0 | W93: 0 | Y93: 0 | AA93: 0 | AC93: 1 | AD93: 2979.99 | AE93: ok!
A94: 18.5 | B94: INSTALAÇÃO PROVISÓRIA DE ÁGUA | C94: =PO!L122 -> 897.15 | E94: 0 | G94: 0 | H94: 1 | I94: 897.15 | K94: 0 | M94: 0 | O94: 0 | Q94: 0 | S94: 0 | U94: 0 | W94: 0 | Y94: 0 | AA94: 0 | AC94: 1 | AD94: 897.15 | AE94: ok!
A95: 18.6 | B95: PLACA DE OBRA | C95: =PO!L123 -> 925.52 | E95: 0 | G95: 0 | H95: 1 | I95: 925.52 | K95: 0 | M95: 0 | O95: 0 | Q95: 0 | S95: 0 | U95: 0 | W95: 0 | Y95: 0 | AA95: 0 | AC95: 1 | AD95: 925.52 | AE95: ok!
A96: 18.7 | B96: SINALIZAÇÃO COM TELA PLÁSTICA LARANJA FIXADA EM CONE PLÁSTICO | C96: =PO!L124 -> 787.29 | E96: 0 | G96: 0 | H96: 1 | I96: 787.29 | K96: 0 | M96: 0 | O96: 0 | Q96: 0 | S96: 0 | U96: 0 | W96: 0 | Y96: 0 | AA96: 0 | AC96: 1 | AD96: 787.29 | AE96: ok!
A97: 18.8 | B97: LOCAÇÃO DE OBRA | C97: =PO!L125 -> 18.6 | E97: 0 | G97: 0 | H97: 1 | I97: 18.6 | K97: 0 | M97: 0 | O97: 0 | Q97: 0 | S97: 0 | U97: 0 | W97: 0 | Y97: 0 | AA97: 0 | AC97: 1 | AD97: 18.6 | AE97: ok!
A98: 18.9 | B98: NIVELAMENTO | C98: =PO!L126 -> 21.3 | E98: 0 | G98: 0 | H98: 1 | I98: 21.3 | K98: 0 | M98: 0 | O98: 0 | Q98: 0 | S98: 0 | U98: 0 | W98: 0 | Y98: 0 | AA98: 0 | AC98: 1 | AD98: 21.3 | AE98: ok!
A99: 19 | B99: ADMINISTRAÇÃO LOCAL
A100: 19.1 | B100: ADMINISTRAÇÃO LOCAL SIMÕES LOPES NETO | C100: =PO!L129 -> 24617.4 | E100: =D100*$C100 -> 0 | G100: =F100*$C100 -> 0 | H100: 1 | I100: =H100*$C100 -> 24617.4 | K100: =J100*$C100 -> 0 | M100: =L100*$C100 -> 0 | O100: =N100*$C100 -> 0 | Q100: =P100*$C100 -> 0 | S100: =R100*$C100 -> 0 | U100: =T100*$C100 -> 0 | W100: =V100*$C100 -> 0 | Y100: =X100*$C100 -> 0 | AA100: =Z100*$C100 -> 0 | AC100: =+D100+F100+H100+J100+L100+N100+P100+R100+T100+V100+X100+Z100 -> 1 | AD100: =+E100+G100+I100+K100+M100+O100+Q100+S100+U100+W100+Y100+AA100 -> 24617.4 | AE100: =IF(C100=AD100,"ok!","incompleto") -> ok!
A101: 20 | B101: MOVIMENTO DE TERRA
A102: 20.1 | B102: MODELAGEM (MOVIMENTO DE TERRA ATÉ 15CM) | C102: =PO!L132 -> 209.45 | E102: =D102*$C102 -> 0 | G102: =F102*$C102 -> 0 | H102: 1 | I102: =H102*$C102 -> 209.45 | K102: =J102*$C102 -> 0 | M102: =L102*$C102 -> 0 | O102: =N102*$C102 -> 0 | Q102: =P102*$C102 -> 0 | S102: =R102*$C102 -> 0 | U102: =T102*$C102 -> 0 | W102: =V102*$C102 -> 0 | Y102: =X102*$C102 -> 0 | AA102: =Z102*$C102 -> 0 | AC102: =+D102+F102+H102+J102+L102+N102+P102+R102+T102+V102+X102+Z102 -> 1 | AD102: =+E102+G102+I102+K102+M102+O102+Q102+S102+U102+W102+Y102+AA102 -> 209.45 | AE102: =IF(C102=AD102,"ok!","incompleto") -> ok!
A103: 21 | B103: PAVIMENTAÇÃO
A104: 21.2 | B104: PISO CONCRETO ARMADO E= 10 cm - ACADEMIA AO AR LIVRE | C104: =PO!L135 -> 5915.5 | E104: =D104*$C104 -> 0 | G104: =F104*$C104 -> 0 | H104: 1 | I104: =H104*$C104 -> 5915.5 | K104: =J104*$C104 -> 0 | M104: =L104*$C104 -> 0 | O104: =N104*$C104 -> 0 | Q104: =P104*$C104 -> 0 | S104: =R104*$C104 -> 0 | U104: =T104*$C104 -> 0 | W104: =V104*$C104 -> 0 | Y104: =X104*$C104 -> 0 | AA104: =Z104*$C104 -> 0 | AC104: =+D104+F104+H104+J104+L104+N104+P104+R104+T104+V104+X104+Z104 -> 1 | AD104: =+E104+G104+I104+K104+M104+O104+Q104+S104+U104+W104+Y104+AA104 -> 5915.5 | AE104: =IF(C104=AD104,"ok!","incompleto") -> ok!
A105: 22 | B105: MOBILIÁRIO URBANO
A106: 22.1 | B106: BANCO B (C/ ENCOSTO) - L=2,00 m - PADRÃO SMAM | C106: =PO!L138 -> 1682.16 | E106: =D106*$C106 -> 0 | G106: =F106*$C106 -> 0 | H106: 1 | I106: =H106*$C106 -> 1682.16 | K106: =J106*$C106 -> 0 | M106: =L106*$C106 -> 0 | O106: =N106*$C106 -> 0 | Q106: =P106*$C106 -> 0 | S106: =R106*$C106 -> 0 | U106: =T106*$C106 -> 0 | W106: =V106*$C106 -> 0 | Y106: =X106*$C106 -> 0 | AA106: =Z106*$C106 -> 0 | AC106: =+D106+F106+H106+J106+L106+N106+P106+R106+T106+V106+X106+Z106 -> 1 | AD106: =+E106+G106+I106+K106+M106+O106+Q106+S106+U106+W106+Y106+AA106 -> 1682.16 | AE106: =IF(C106=AD106,"ok!","incompleto") -> ok!
A107: 22.2 | B107: INSTALAÇÃO DE BANCO S/ENCOSTO TIPO A (EXISTENTE) | C107: =PO!L139 -> 119.41 | E107: =D107*$C107 -> 0 | G107: =F107*$C107 -> 0 | H107: 1 | I107: =H107*$C107 -> 119.41 | K107: =J107*$C107 -> 0 | M107: =L107*$C107 -> 0 | O107: =N107*$C107 -> 0 | Q107: =P107*$C107 -> 0 | S107: =R107*$C107 -> 0 | U107: =T107*$C107 -> 0 | W107: =V107*$C107 -> 0 | Y107: =X107*$C107 -> 0 | AA107: =Z107*$C107 -> 0 | AC107: =+D107+F107+H107+J107+L107+N107+P107+R107+T107+V107+X107+Z107 -> 1 | AD107: =+E107+G107+I107+K107+M107+O107+Q107+S107+U107+W107+Y107+AA107 -> 119.41 | AE107: =IF(C107=AD107,"ok!","incompleto") -> ok!
A108: 22.3 | B108: LIXEIRA METÁLICA - V=30 LITROS INSTALADA | C108: =PO!L140 -> 1251.74 | E108: =D108*$C108 -> 0 | G108: =F108*$C108 -> 0 | H108: 1 | I108: =H108*$C108 -> 1251.74 | K108: =J108*$C108 -> 0 | M108: =L108*$C108 -> 0 | O108: =N108*$C108 -> 0 | Q108: =P108*$C108 -> 0 | S108: =R108*$C108 -> 0 | U108: =T108*$C108 -> 0 | W108: =V108*$C108 -> 0 | Y108: =X108*$C108 -> 0 | AA108: =Z108*$C108 -> 0 | AC108: 1 | AD108: 1251.74 | AE108: =IF(C108=AD108,"ok!","incompleto") -> ok!
A109: 23 | B109: ACADEMIA AO AR LIVRE
A110: 23.1 | B110: PLACA ORIENTATIVA - GALVANIZADA | C110: =PO!L143 -> 8910.19 | E110: =D110*$C110 -> 0 | G110: =F110*$C110 -> 0 | H110: 1 | I110: =H110*$C110 -> 8910.19 | K110: =J110*$C110 -> 0 | M110: =L110*$C110 -> 0 | O110: =N110*$C110 -> 0 | Q110: =P110*$C110 -> 0 | S110: =R110*$C110 -> 0 | U110: =T110*$C110 -> 0 | W110: =V110*$C110 -> 0 | Y110: =X110*$C110 -> 0 | AA110: =Z110*$C110 -> 0 | AC110: =+D110+F110+H110+J110+L110+N110+P110+R110+T110+V110+X110+Z110 -> 1 | AD110: =+E110+G110+I110+K110+M110+O110+Q110+S110+U110+W110+Y110+AA110 -> 8910.19 | AE110: =IF(C110=AD110,"ok!","incompleto") -> ok!
A111: 23.2 | B111: SIMULADOR DE CAMINHADA TRIPLO CONJUGADO - GALVANIZADO | C111: =PO!L144 -> 15065.84 | E111: 0 | G111: 0 | H111: 1 | I111: 15065.84 | K111: 0 | M111: 0 | O111: 0 | Q111: 0 | S111: 0 | U111: 0 | W111: 0 | Y111: 0 | AA111: 0 | AC111: 1 | AD111: 15065.84 | AE111: ok!
A112: 23.3 | B112: ADUÇÃO E ABDUÇÃO DE PERNAS DUPLO - GALVANIZADO | C112: =PO!L145 -> 10491.68 | E112: 0 | G112: 0 | H112: 1 | I112: 10491.68 | K112: 0 | M112: 0 | O112: 0 | Q112: 0 | S112: 0 | U112: 0 | W112: 0 | Y112: 0 | AA112: 0 | AC112: 1 | AD112: 10491.68 | AE112: ok!
A113: 23.4 | B113: ESPALDAR - EQUIPAMENTO PADRÃO SMAMS | C113: =PO!L146 -> 2735.72 | E113: 0 | G113: 0 | H113: 1 | I113: 2735.72 | K113: 0 | M113: 0 | O113: 0 | Q113: 0 | S113: 0 | U113: 0 | W113: 0 | Y113: 0 | AA113: 0 | AC113: 1 | AD113: 2735.72 | AE113: ok!
A114: 23.5 | B114: SIMULADOR DE REMO - GALVANIZADO | C114: =PO!L147 -> 6442.09 | E114: 0 | G114: 0 | H114: 1 | I114: 6442.09 | K114: 0 | M114: 0 | O114: 0 | Q114: 0 | S114: 0 | U114: 0 | W114: 0 | Y114: 0 | AA114: 0 | AC114: 1 | AD114: 6442.09 | AE114: ok!
A115: 23.6 | B115: REMADA ESPECIAL PPNE - GALVANIZADA | C115: =PO!L148 -> 6776.86 | E115: =D115*$C115 -> 0 | G115: =F115*$C115 -> 0 | H115: 1 | I115: =H115*$C115 -> 6776.86 | K115: =J115*$C115 -> 0 | M115: =L115*$C115 -> 0 | O115: =N115*$C115 -> 0 | Q115: =P115*$C115 -> 0 | S115: =R115*$C115 -> 0 | U115: =T115*$C115 -> 0 | W115: =V115*$C115 -> 0 | Y115: =X115*$C115 -> 0 | AA115: =Z115*$C115 -> 0 | AC115: =+D115+F115+H115+J115+L115+N115+P115+R115+T115+V115+X115+Z115 -> 1 | AD115: =+E115+G115+I115+K115+M115+O115+Q115+S115+U115+W115+Y115+AA115 -> 6776.86 | AE115: =IF(C115=AD115,"ok!","incompleto") -> ok!
A116: 24 | B116: PLANTIO
A117: 24.1 | B117: PLANTIO DE GRAMA CATARINA (SÃO MARCOS) COM COMPOSTO ORGÂNICO | C117: =PO!L151 -> 715.26 | E117: =D117*$C117 -> 0 | G117: =F117*$C117 -> 0 | H117: 1 | I117: =H117*$C117 -> 715.26 | K117: =J117*$C117 -> 0 | M117: =L117*$C117 -> 0 | O117: =N117*$C117 -> 0 | Q117: =P117*$C117 -> 0 | S117: =R117*$C117 -> 0 | U117: =T117*$C117 -> 0 | W117: =V117*$C117 -> 0 | Y117: =X117*$C117 -> 0 | AA117: =Z117*$C117 -> 0 | AC117: =+D117+F117+H117+J117+L117+N117+P117+R117+T117+V117+X117+Z117 -> 1 | AD117: =+E117+G117+I117+K117+M117+O117+Q117+S117+U117+W117+Y117+AA117 -> 715.26 | AE117: =IF(C117=AD117,"ok!","incompleto") -> ok!
A119: TOTAL PARCIAL | C119: =SUM(C11:C117) -> 376995.68 | D119: =E119/C119 -> 0.3506755833 | E119: =SUM(E11:E117) -> 132203.18 | F119: =G119/C119 -> 0.3826174082 | G119: =SUM(G11:G117) -> 144245.11 | H119: =I119/C119 -> 0.2667070084 | I119: =SUM(I11:I117) -> 100547.39 | J119: =K119/#REF! ->  | K119: =SUM(K88:K117) -> 0 | L119: =M119/#REF! ->  | M119: =SUM(M88:M117) -> 0 | N119: =O119/#REF! ->  | O119: =SUM(O88:O117) -> 0 | P119: =Q119/#REF! ->  | Q119: =SUM(Q88:Q117) -> 0 | R119: =S119/#REF! ->  | S119: =SUM(S88:S117) -> 0 | T119: =U119/#REF! ->  | U119: =SUM(U88:U117) -> 0 | V119: =W119/#REF! ->  | W119: =SUM(W88:W117) -> 0 | X119: =Y119/#REF! ->  | Y119: =SUM(Y88:Y117) -> 0 | Z119: =AA119/#REF! ->  | AA119: =SUM(AA88:AA117) -> 0 | AC119: =D119+F119+H119 -> 1 | AD119: =SUM(AD11:AD117) -> 376995.68 | AE119: =IF(C119=AD119,"ok!","incompleto") -> ok!
A120: TOTAL ACUMULADO | D120: =E120/C119 -> 0.3506755833 | E120: =E119 -> 132203.18 | F120: =G120/C119 -> 0.7332929916 | G120: =G119+E120 -> 276448.29 | H120: =H119+F120 -> 1 | I120: =I119+G120 -> 376995.68 | J120: =K120/#REF! ->  | K120: =K119+I120 -> 376995.68 | L120: =M120/#REF! ->  | M120: =M119+K120 -> 376995.68 | N120: =O120/#REF! ->  | O120: =O119+M120 -> 376995.68 | P120: =Q120/#REF! ->  | Q120: =Q119+O120 -> 376995.68 | R120: =S120/#REF! ->  | S120: =S119+Q120 -> 376995.68 | T120: =U120/#REF! ->  | U120: =U119+S120 -> 376995.68 | V120: =W120/#REF! ->  | W120: =W119+U120 -> 376995.68 | X120: =Y120/#REF! ->  | Y120: =Y119+W120 -> 376995.68 | Z120: =AA120/#REF! ->  | AA120: =AA119+Y120 -> 376995.68

Sheet Composições
A1: PLANILHA COMPOSIÇÕES SMAMUS
A3: Data Base SINAPI: JUNHO / 2021 - Data da Cotaçãoes: Julho / 2021
A5: OBJETO: | B5: =+PO!$B$9 -> Obras de Aquisição e Instalação de Academias de Ginástica ao ar livre na Praça Grêmio Futebol Portoalegrense (110/03), Praça Guia Lopes (118/08) e Praça Simões Lopes Neto (125/06) | C5: Leis Sociais Horistas (SINAPI): | F5: =+Planilha_M.O.!$D$7 -> 1.111
A6: DATA: | B6: =IF(PO!$B$10="","",PO!$B$10) -> 2021-09-14 | C6: Leis Sociais Mensalistas (SINAPI): | F6: =+Planilha_M.O.!$D$8 -> 0.6916
A7: ART nº: | B7: =IF(PO!$B$11="","",PO!$B$11) ->  | C7: BDI: | F7: =+Planilha_M.O.!$F$7 -> 22,15%
C8: BDI diferenciado Academia ar livre: | F8: =IF($F$7="28,21%",19.35%,13.7%) -> 0.137
A10: CÓDIGO | B10: DISCRIMINAÇÃO | C10: UN | D10: COEFIC. | E10: UNITÁRIO | F10: TOTAL
A11: 390 | B11: REMOÇÃO DE ENTULHO C/CAÇAMBA | C11: m³
A12: COTAÇÃO 113 | B12: CAÇAMBA V=4,0M³ | C12: m³ | D12: 0.25 | E12: =Insumos!G66 -> 443.33 | F12: =TRUNC(D12*E12,2) -> 110.83
A13: SUB-TOTAL - MATERIAL / EQUIPAMENTOS: | C13: =SUM(F12:F12) -> 110.83
A14: SINAPI C 88316 | B14: SERVENTE C/ENCARGOS COMPLEMENTARES | C14: h | D14: 0.7 | E14: =Planilha_M.O.!E18 -> 17.11 | F14: =TRUNC(D14*E14,2) -> 11.97
A15: SUB-TOTAL - MÃO-DE-OBRA: | C15: =SUM(F14:F14) -> 11.97
B17: CUSTO TOTAL: | F17: =+C13+C15 -> 122.8
B19: BDI: | C19: % | D19: =+$F$7 -> 22,15% | F19: =TRUNC(F17*D19,2) -> 27.2
B21: PREÇO: | F21: =+F17+F19 -> 150
A24: CÓDIGO | B24: DISCRIMINAÇÃO | C24: UN | D24: COEFIC. | E24: UNITÁRIO | F24: TOTAL
A25: 101 | B25: REMOÇÃO BANCO S/ENCOSTO | C25: un
A26: =CONCATENATE("SINAPI C ",'[3]Composições Aux. SINAPI'!$A$56,) -> SINAPI C 5795 | B26: MARTELETE OU ROMPEDOR PNEUMÁTICO MANUAL, 28 KG, COM SILENCIADOR (chp) | C26: chp | D26: 0.112 | E26: ='Composições Aux. SINAPI'!E59:F59 -> 26.44 | F26: =TRUNC(D26*E26,2) -> 2.96
A27: =CONCATENATE("SINAPI C ",'[3]Composições Aux. SINAPI'!$A$57,) -> SINAPI C 5952 | B27: MARTELETE OU ROMPEDOR PNEUMÁTICO MANUAL, 28 KG, COM SILENCIADOR (chi) | C27: chi | D27: 0.0317 | E27: ='Composições Aux. SINAPI'!E60:F60 -> 24.44 | F27: 0.77
A28: =CONCATENATE("SINAPI C ",'[3]Composições Aux. SINAPI'!$A$28,) -> SINAPI C 5953 | B28: COMPRESSOR DE AR REBOCÁVEL, VAZÃO 189 PCM, MOTOR DIESEL, POTÊNCIA 63 CV (chp) | C28: chp | D28: 0.112 | E28: ='Composições Aux. SINAPI'!E34:F34 -> 41.39 | F28: 4.63
A29: =CONCATENATE("SINAPI C ",'[3]Composições Aux. SINAPI'!$A$29,) -> SINAPI C 5954 | B29: COMPRESSOR DE AR REBOCÁVEL, VAZÃO 189 PCM, MOTOR DIESEL, POTÊNCIA 63 CV (chi) | C29: chi | D29: 0.0317 | E29: ='Composições Aux. SINAPI'!E35:F35 -> 3.73 | F29: 0.11
A30: COTAÇÃO 113 | B30: CAÇAMBA 4,00 m³ | C30: un | D30: 0.0234 | E30: =Insumos!G66 -> 443.33 | F30: 10.37
A31: =CONCATENATE("SINAPI I ",[3]Insumos!$B$87) -> SINAPI I 6081 | B31: ARGILA OU BARRO PARA ATERRO OU REATERRO | C31: m³ | D31: 0.09 | E31: =Insumos!G35 -> 31.59 | F31: 2.84
A32: SUB-TOTAL - MATERIAL / EQUIPAMENTOS: | C32: =SUM(F26:F31) -> 21.68
A33: SINAPI C 88309 | B33: PEDREIRO C/ENCARGOS COMPLEMENTARES | C33: h | D33: 0.022 | E33: =Planilha_M.O.!E24 -> 20.71 | F33: =TRUNC(D33*E33,2) -> 0.45
A34: SINAPI C 88316 | B34: SERVENTE C/ ENCARGOS COMPLEMENTARES | C34: h | D34: 1.6497 | E34: =Planilha_M.O.!E18 -> 17.11 | F34: =TRUNC(D34*E34,2) -> 28.22
A35: SUB-TOTAL - MÃO-DE-OBRA: | C35: =SUM(F33:F34) -> 28.67
B37: CUSTO TOTAL: | F37: =+C32+C35 -> 50.35
B39: BDI: | C39: % | D39: =+$F$7 -> 22,15% | F39: =TRUNC(F37*D39,2) -> 11.15
B41: PREÇO: | F41: =+F37+F39 -> 61.5
A45: CÓDIGO | B45: DISCRIMINAÇÃO | C45: UN | D45: COEFIC. | E45: UNITÁRIO | F45: TOTAL
A46: 122 | B46: DEMOLIÇÃO DE MURETAS E CANTEIRO | C46: m
A47: =CONCATENATE("COTAÇÃO ",Insumos!$B$66) -> COTAÇÃO 113 | B47: CAÇAMBA 4,00 m³ | C47: un | D47: 0.04 | E47: =+Insumos!$G$66 -> 443.33 | F47: =TRUNC(D47*E47,2) -> 17.73
A48: =CONCATENATE("SINAPI C ",'Composições Aux. SINAPI'!$A$59,) -> SINAPI C 5795 | B48: MARTELETE OU ROMPEDOR PNEUMÁTICO MANUAL, 28 KG, COM SILENCIADOR (chp) | C48: chp | D48: 0.0252 | E48: =+'Composições Aux. SINAPI'!$E$59:$F$59 -> 26.44 | F48: =TRUNC(D48*E48,2) -> 0.66
A49: =CONCATENATE("SINAPI C ",'Composições Aux. SINAPI'!$A$60,) -> SINAPI C 5952 | B49: MARTELETE OU ROMPEDOR PNEUMÁTICO MANUAL, 28 KG, COM SILENCIADOR (chi) | C49: chi | D49: 0.0252 | E49: =+'Composições Aux. SINAPI'!$E$60:$F$60 -> 24.44 | F49: 0.61
A50: =CONCATENATE("SINAPI C ",'Composições Aux. SINAPI'!$A$34,) -> SINAPI C 5953 | B50: COMPRESSOR DE AR REBOCÁVEL, VAZÃO 189 PCM, MOTOR DIESEL, POTÊNCIA 63 CV (chp) | C50: chp | D50: 0.0252 | E50: =+'Composições Aux. SINAPI'!$E$34:$F$34 -> 41.39 | F50: 1.04
A51: =CONCATENATE("SINAPI C ",'Composições Aux. SINAPI'!$A$35,) -> SINAPI C 5954 | B51: COMPRESSOR DE AR REBOCÁVEL, VAZÃO 189 PCM, MOTOR DIESEL, POTÊNCIA 63 CV (chi) | C51: chi | D51: 0.0252 | E51: =+'Composições Aux. SINAPI'!$E$35:$F$35 -> 3.73 | F51: 0.09
A52: =CONCATENATE("SINAPI I ",Insumos!$B$35) -> SINAPI I 6081 | B52: ARGILA OU BARRO PARA ATERRO OU REATERRO | C52: m³ | D52: 0.0855 | E52: =+Insumos!$G$35 -> 31.59 | F52: =TRUNC(D52*E52,2) -> 2.7
A53: SUB-TOTAL - MATERIAL / EQUIPAMENTOS: | C53: =SUM(F47:F52) -> 22.83
A54: SINAPI C 88309 | B54: PEDREIRO C/ENCARGOS COMPLEMENTARES | C54: h | D54: 0.01 | E54: =Planilha_M.O.!E24 -> 20.71 | F54: =TRUNC(D54*E54,2) -> 0.2
A55: SINAPI C 88316 | B55: SERVENTE C/ ENCARGOS COMPLEMENTARES | C55: h | D55: 0.01 | E55: =Planilha_M.O.!E18 -> 17.11 | F55: =TRUNC(D55*E55,2) -> 0.17
A56: SUB-TOTAL - MÃO-DE-OBRA: | C56: =SUM(F54:F55) -> 0.37
B58: CUSTO TOTAL: | F58: =+C53+C56 -> 23.2
B60: BDI: | C60: % | D60: =+$F$7 -> 22,15% | F60: =TRUNC(F58*D60,2) -> 5.13
B62: PREÇO: | F62: =+F58+F60 -> 28.33
A65: CÓDIGO | B65: DISCRIMINAÇÃO | C65: UN | D65: COEFIC. | E65: UNITÁRIO | F65: TOTAL
A66: 450 | B66: ART - ANOTAÇÃO DE RESPONSABILIDADE TÉCNICA PELA EXECUÇÃO | C66: un
A67: =CONCATENATE("COTAÇÃO ",Insumos!$B$38) -> COTAÇÃO 128 | B67: ART | C67: un | D67: 1 | E67: =+Insumos!$G$38 -> 226 | F67: =TRUNC(D67*E67,2) -> 226
A68: SUB-TOTAL - MATERIAL / EQUIPAMENTOS: | C68: =SUM(F67) -> 226
B70: CUSTO TOTAL: | F70: =+C68 -> 226
B72: BDI: | C72: % | D72: =+$F$7 -> 22,15% | F72: =TRUNC(F70*D72,2) -> 50.05
B74: PREÇO: | F74: =+F70+F72 -> 276.05
A77: CÓDIGO | B77: DISCRIMINAÇÃO | C77: UN | D77: COEFIC. | E77: UNITÁRIO | F77: TOTAL
A78: 500 | B78: TAPUME EM CHAPA DE COMPENSADO RESINADO | C78: m²
A79: SINAPI I 002745 | B79: PONTALETE ROLIÇO S/TRATAMENTO EUCALIPTO D=8 A 11 cm | C79: m | D79: 0.2622 | E79: =Insumos!G159 -> 3.39 | F79: =TRUNC(D79*E79,2) -> 0.88
A80: SINAPI I 004460 | B80: SARRAFO DE MADEIRA NÃO APARELHADA 2,5 x 10 cm | C80: m | D80: 0.708 | E80: =Insumos!G179 -> 7.48 | F80: 5.29
A81: SINAPI I 001355 | B81: CHAPA DE MADEIRA COMPENSADA RESINADA 14 mm | C81: m² | D81: 0.525 | E81: =Insumos!G78 -> 28.72 | F81: 15.07
A82: SINAPI C 91692 | B82: SERRA CIRCULAR DE BANCADA C/COIFA PARA DISCO 10" (chp) | C82: chp | D82: 0.0044 | E82: ='Composições Aux. SINAPI'!E74:F74 -> 26.83 | F82: 0.11
A83: SINAPI C 91693 | B83: SERRA CIRCULAR DE BANCADA C/COIFA PARA DISCO 10" (chi) | C83: chi | D83: 0.0191 | E83: ='Composições Aux. SINAPI'!E75:F75 -> 23.89 | F83: 0.45
A84: SINAPI I 5061 | B84: PREGO DE AÇO 18 x 27 C/CABEÇA | C84: kg | D84: 0.0428 | E84: =Insumos!G170 -> 20.75 | F84: 0.88
A85: SINAPI I 35693 | B85: TINTA LÁTEX ACRÍLICA ECONÔMICA, COR BRANCA | C85: l | D85: 0.2698 | E85: =Insumos!G207 -> 11.78 | F85: =TRUNC(D85*E85,2) -> 3.17
A86: =CONCATENATE("SINAPI I ",[4]Insumos!$B$228) -> SINAPI I 3767 | B86: LIXA P/MADEIRA | C86: un | D86: 0.8 | E86: =Insumos!G120 -> 0.79 | F86: =TRUNC(D86*E86,2) -> 0.63
A87: SUB-TOTAL - MATERIAL / EQUIPAMENTOS: | C87: =SUM(F79:F86) -> 26.48
A88: SINAPI C 88262 | B88: CARPINTEIRO C/ENCARGOS COMPLEMENTARES | C88: h | D88: 0.6127 | E88: =Planilha_M.O.!E26 -> 20.5 | F88: =TRUNC(D88*E88,2) -> 12.56
A89: SINAPI C 88239 | B89: AJUDANTE DE CARPINTEIRO C/ENCARGOS COMPLEMENTARES | C89: h | D89: 0.2042 | E89: =Planilha_M.O.!E20 -> 17.06 | F89: =TRUNC(D89*E89,2) -> 3.48
A90: SINAPI C 88310 | B90: PINTOR C/ENCARGOS COMPLEMENTARES | C90: h | D90: 0.8 | E90: =Planilha_M.O.!E25 -> 21.7 | F90: =TRUNC(D90*E90,2) -> 17.36
A91: SINAPI C 88316 | B91: SERVENTE C/ ENCARGOS COMPLEMENTARES | C91: h | D91: 0.45 | E91: =Planilha_M.O.!E18 -> 17.11 | F91: =TRUNC(D91*E91,2) -> 7.69
A92: SUB-TOTAL - MÃO-DE-OBRA: | C92: =SUM(F88:F91) -> 41.09
B94: CUSTO TOTAL: | F94: =+C87+C92 -> 67.57
B96: BDI: | C96: % | D96: =+$F$7 -> 22,15% | F96: =TRUNC(F94*D96,2) -> 14.96
B98: PREÇO: | F98: =+F94+F96 -> 82.53
A101: CÓDIGO | B101: DISCRIMINAÇÃO | C101: UN | D101: COEFIC. | E101: UNITÁRIO | F101: TOTAL
A102: 510 | B102: LOCAÇÃO DE BANHEIRO QUÍMICO | C102: %
A103: SUDECAP 89.50.09 | B103: LOCAÇÃO SANITÁRIO QUÍMICO | C103: ms | D103: 0.01 | E103: =+Insumos!G121 -> 680 | F103: =TRUNC(D103*E103,4) -> 6.8
A104: SUB-TOTAL - MATERIAL / EQUIPAMENTOS: | C104: =SUM(F103) -> 6.8
B106: CUSTO TOTAL: | F106: =+C104 -> 6.8
B108: BDI: | C108: % | D108: =+$F$7 -> 22,15% | F108: =TRUNC(F106*D108,4) -> 1.5062
B110: PREÇO: | F110: =+F106+F108 -> 8.3062
B111: CÁLCULO: LOCAÇÃO BANHEIRO: NÚMERO DE MESES: 1,0 MÊS
B112: NECESSÁRIO 1% DO VALOR TOTAL DA OBRA, DESSA FORMA , COEFICIENTE =1,0 MÊS /100%
A114: CÓDIGO | B114: DISCRIMINAÇÃO | C114: UN | D114: COEFIC. | E114: UNITÁRIO | F114: TOTAL
A115: 520 | B115: FRETE P/ SANITÁRIO QUÍMICO | C115: cj
A116: SINAPI C 93402 | B116: GUINDAUTO HIDRÁULICO, CAP. 3300 KG, INCLUSIVE CAMINHÃO TOCO | C116: chp | D116: 5 | E116: ='Composições Aux. SINAPI'!E51:F51 -> 177.73 | F116: =TRUNC(D116*E116,2) -> 888.65
A117: SUB-TOTAL - MATERIAL / EQUIPAMENTOS: | C117: =SUM(F116) -> 888.65
B119: CUSTO TOTAL: | F119: =+C117 -> 888.65
B120: Auxiliar para composições 510
B121: BDI: | C121: % | D121: =+$F$7 -> 22,15% | F121: =TRUNC(F119*D121,2) -> 196.83
B123: PREÇO: | F123: =+F119+F121 -> 1085.48
A125: CÓDIGO | B125: DISCRIMINAÇÃO | C125: UN | D125: COEFIC. | E125: UNITÁRIO | F125: TOTAL
A126: 530 | B126: INSTALAÇÃO PROVISÓRIA DE ENERGIA, AÉREA, TRIFASICA, COM CAIXA DE EMBUTIR C/ POSTE H=9,00M | C126: pt
A127: SINAPI C 91872 | B127: ELETRODUTO RÍGIDO ROSCÁVEL, PVC, DN 32 mm (1"), PARA CIRCUITOS TERMINAIS | C127: m | D127: 6.05 | E127: ='Composições Aux. SINAPI'!E49:F49 -> 14.97 | F127: =TRUNC(D127*E127,2) -> 90.56
A128: SINAPI C 91885 | B128: LUVA PARA ELETRODUTO, PVC, ROSCÁVEL, DN 32 mm (1") | C128: un | D128: 1 | E128: ='Composições Aux. SINAPI'!E58:F58 -> 8.88 | F128: 8.88
A129: SINAPI C 91917 | B129: CURVA 90° PARA ELETRODUTO, PVC, ROSCÁVEL, DN 32 mm (1") | C129: un | D129: 1 | E129: ='Composições Aux. SINAPI'!E44:F44 -> 14.99 | F129: 14.99
A130: SINAPI C 91919 | B130: CURVA 180° P/ELETRODUTO, PVC, ROSCÁVEL, DN 32 mm (1") | C130: un | D130: 1 | E130: ='Composições Aux. SINAPI'!E45:F45 -> 16.98 | F130: 16.98
A131: SINAPI C 91933 | B131: CABO DE COBRE FLEXÍVEL ISOLADO, 10 mm², ANTI-CHAMA 0,6/1,0 kV | C131: m | D131: 22.2 | E131: ='Composições Aux. SINAPI'!E27:F27 -> 16.22 | F131: 360.08
A132: SINAPI C 93673 | B132: DISJUNTOR TRIPOLAR TIPO DIN, CORRENTE NOMINAL DE 50 A | C132: un | D132: 1 | E132: ='Composições Aux. SINAPI'!E48:F48 -> 94.12 | F132: 94.12
A133: SINAPI C 96977 | B133: CORDOALHA DE COBRE NU 50 mm², ENTERRADA, SEM ISOLADOR | C133: m | D133: 1.95 | E133: ='Composições Aux. SINAPI'!E43:F43 -> 50.13 | F133: 97.75
A134: SINAPI C 96986 | B134: HASTE DE ATERRAMENTO 3/4" PARA SPDA | C134: un | D134: 1 | E134: ='Composições Aux. SINAPI'!E52:F52 -> 102.57 | F134: 102.57
A135: SINAPI C 100578 | B135: ASSENTAMENTO DE POSTE DE CONCRETO COM COMPRIMENTO NOMINAL DE 9 m | C135: un | D135: 1 | E135: ='Composições Aux. SINAPI'!E24:F24 -> 412.48 | F135: 412.48
A136: SINAPI I 001094 | B136: ARMAÇÃO VERTICAL C/HASTE E CONTRA-PINO, EM CHAPA DE FG 3/16", C/1 ESTRIBO | C136: un | D136: 1 | E136: =Insumos!G36 -> 13.98 | F136: 13.98
A137: SINAPI I 003398 | B137: ISOLADOR DE PORCELANA, TIPO ROLDANA, DIMENSÕES DE 72 x 72 mm | C137: un | D137: 1 | E137: =Insumos!G114 -> 4.77 | F137: 4.77
A138: SINAPI I 004346 | B138: PARAFUSO FERRO POLIDO, SEXTAVADO, D=5/8", C/PORCA E ARRUELA DE PRESSÃO MÉDIA | C138: un | D138: 3 | E138: =Insumos!G140 -> 6.93 | F138: 20.79
A139: SINAPI I 011267 | B139: ARRUELA LISA, DE LATÃO POLIDO, DIÂMETRO NOMINAL 5/8", DIÂMETRO DO FURO = 17 mm | C139: un | D139: 2 | E139: =Insumos!G37 -> 0.8 | F139: 1.6
A140: SINAPI I 011864 | B140: CONECTOR METÁLICO TIPO PARAFUSO FENDIDO (SPLIT BOLT), PARA CABOS ATÉ 95 mm2 | C140: un | D140: 1 | E140: =Insumos!G87 -> 29.18 | F140: 29.18
A141: SINAPI I 011950 | B141: BUCHA NYLON S/ABA S6, C/PARAFUSO DE 4,2 x 40 mm EM AÇO ZINCADO C/ROSCA SOBERBA | C141: un | D141: 4 | E141: =Insumos!G64 -> 0.37 | F141: 1.48
A142: SINAPI I 014153 | B142: FITA METÁLICA PERFURADA, L = 18 mm, ROLO DE 30 m, CARGA RECOMENDADA = 30 kgf | C142: un | D142: 0.06 | E142: =Insumos!G103 -> 52.81 | F142: 3.16
A143: SINAPI I 034643 | B143: CAIXA INSPEÇÃO EM POLIETILENO PARA ATERRAMENTO E PÁRA RAIOS DIÂMETRO = 300 mm | C143: un | D143: 1 | E143: =Insumos!G69 -> 20.08 | F143: 20.08
A144: SINAPI I 039809 | B144: CAIXA P/MEDIDOR POLIFÁSICO, EM POLICARBONATO/TERMOPLÁSTICO, P/1 DISJUNTOR | C144: un | D144: 1 | E144: =Insumos!G70 -> 138.18 | F144: 138.18
A145: SINAPI I 039996 | B145: VERGALHÃO ZINCADO ROSCA TOTAL, 1/4 " (6,3 mm) | C145: m | D145: 0.1664 | E145: =Insumos!G227 -> 5.38 | F145: 0.89
A146: SINAPI I 039997 | B146: PORCA ZINCADA, SEXTAVADA, DIÂMETRO 1/4" | C146: un | D146: 2 | E146: =Insumos!G163 -> 0.2 | F146: 0.4
A147: SINAPI I 005044 | B147: POSTE DE CONCRETO CIRCULAR, 200 kg, H = 9 m | C147: un | D147: 1 | E147: =Insumos!G172 -> 920.7 | F147: 920.7
A148: SUB-TOTAL - MATERIAL / EQUIPAMENTOS: | C148: =SUM(F127:F147) -> 2353.62
A149: =CONCATENATE("SINAPI C ",[5]Insumos!$B$23) -> SINAPI C 88264 | B149: ELETRICISTA C/ENCARGOS COMPLEMENTARES | C149: h | D149: 3.5078 | E149: =Planilha_M.O.!E41 -> 22.61 | F149: =TRUNC(D149*E149,2) -> 79.31
A150: =CONCATENATE("SINAPI C ",[5]Insumos!$B$16) -> SINAPI C 88247 | B150: AUXILIAR DE ELETRICISTA C/ENCARGOS COMPLEMENTARES | C150: h | D150: 0.3897 | E150: =Planilha_M.O.!E42 -> 17.17 | F150: =TRUNC(D150*E150,2) -> 6.69
A151: SUB-TOTAL - MÃO-DE-OBRA: | C151: =SUM(F149:F150) -> 86
B153: CUSTO TOTAL: | F153: =+C148+C151 -> 2439.62
B155: BDI: | C155: % | D155: =+$F$7 -> 22,15% | F155: =TRUNC(F153*D155,2) -> 540.37
B158: PREÇO: | F158: =+F153+F155 -> 2979.99
A161: CÓDIGO | B161: DISCRIMINAÇÃO | C161: UN | D161: COEFIC. | E161: UNITÁRIO | F161: TOTAL
A162: 535 | B162: INSTALAÇÃO PROVISÓRIA DE ÁGUA | C162: pt
A163: =CONCATENATE("SINAPI C ",'[5]Composições Aux. SINAPI'!$A$62) -> SINAPI C 89971 | B163: KIT DE REGISTRO DE GAVETA BRUTO DE LATÃO ½", INCLUSIVE CONEXÕES, ROSCÁVEL | C163: un | D163: 1 | E163: ='Composições Aux. SINAPI'!E54:F54 -> 50.53 | F163: =TRUNC(D163*E163,2) -> 50.53
A164: =CONCATENATE("SINAPI C ",'[5]Composições Aux. SINAPI'!$A$50) -> SINAPI C 93358 | B164: ESCAVAÇÃO MANUAL DE VALA COM PROFUNDIDADE MENOR OU IGUAL A 1,30 M | C164: m³ | D164: 0.16 | E164: ='Composições Aux. SINAPI'!E50:F50 -> 67.68 | F164: 10.82
A165: =CONCATENATE("SINAPI C ",'[5]Composições Aux. SINAPI'!$A$91) -> SINAPI C 89401 | B165: TUBO, PVC, SOLDÁVEL, DN 20MM - FORNECIMENTO E INSTALAÇÃO | C165: m | D165: 8 | E165: ='Composições Aux. SINAPI'!E78:F78 -> 7.63 | F165: 61.04
A166: =CONCATENATE("SINAPI C ",'[5]Composições Aux. SINAPI'!$A$61) -> SINAPI C 89358 | B166: JOELHO 90 GRAUS, PVC, SOLDÁVEL, DN 20MM - FORNECIMENTO E INSTALAÇÃO | C166: un | D166: 4 | E166: ='Composições Aux. SINAPI'!E53:F53 -> 6.38 | F166: 25.52
A167: =CONCATENATE("SINAPI C ",'[5]Composições Aux. SINAPI'!$A$25) -> SINAPI C 95676 | B167: CAIXA EM CONCRETO PRÉ-MOLDADO PARA ABRIGO DE HIDRÔMETRO COM DN 20 (½) | C167: un | D167: 1 | E167: ='Composições Aux. SINAPI'!E28:F28 -> 93.49 | F167: 93.49
A168: =CONCATENATE("SINAPI C ",'[5]Composições Aux. SINAPI'!$A$83) -> SINAPI C 86913 | B168: TORNEIRA CROMADA 1/2" OU 3/4" PARA TANQUE, PADRÃO POPULAR | C168: un | D168: 1 | E168: ='Composições Aux. SINAPI'!E76:F76 -> 27.71 | F168: 27.71
A169: =CONCATENATE("COTAÇÃO ",[5]Insumos!$B$339) -> COTAÇÃO 116 | B169: TAXA INSTALAÇÃO ÁGUA DMAE | C169: cj | D169: 1 | E169: =Cotações!M134 -> 465.36 | F169: 465.36
A170: SUB-TOTAL - MATERIAL / EQUIPAMENTOS: | C170: =SUM(F163:F169) -> 734.47
B172: CUSTO TOTAL: | F172: =+C170 -> 734.47
B174: BDI: | C174: % | D174: =+$F$7 -> 22,15% | F174: =TRUNC(F172*D174,2) -> 162.68
B176: PREÇO: | F176: =+F172+F174 -> 897.15
A179: CÓDIGO | B179: DISCRIMINAÇÃO | C179: UN | D179: COEFIC. | E179: UNITÁRIO | F179: TOTAL
A180: 542 | B180: PLACA DE OBRA EM CHAPA GALVANIZADA | C180: m²
A181: COTAÇÃO 16 | B181: CAIBRO CEDRINHO 5 x 7 cm | C181: m | D181: 0.5711 | E181: =Cotações!M11 -> 22.2 | F181: =TRUNC(D181*E181,2) -> 12.67
A182: SINAPI I 44481 | B182: VIGA DE MADEIRA NÃO APARELHADA 8 x 16 cm | C182: m | D182: 0.5711 | E182: =Insumos!G228 -> 43.33 | F182: 24.74
A183: SINAPI I 5075 | B183: PREGO DE AÇO 18 x 30 C/CABEÇA | C183: kg | D183: 0.0987 | E183: =Insumos!G166 -> 21.11 | F183: 2.08
A184: COTAÇÃO 113 | B184: CAÇAMBA 4,00 m³ | C184: un | D184: 0.008 | E184: =Insumos!G66 -> 443.33 | F184: 3.54
A185: SINAPI C 94962 | B185: CONCRETO MAGRO PARA LASTRO,PREPARO COM BETONEIRA | C185: m³ | D185: 0.0299 | E185: ='Composições Aux. SINAPI'!E36:F36 -> 294.53 | F185: 8.8
A186: SINAPI C 92873 | B186: LANÇAMENTO, ADENSAMENTO E ACABAMENTO CONCRETO | C186: m³ | D186: 0.0299 | E186: =+'[4]Composições Aux. SINAPI'!$E$53:$F$53 -> 154.36 | F186: 4.61
A187: SINAPI I 4813 | B187: PLACA DE OBRA (PARA CONSTRUCAO CIVIL) EM CHAPA GALVANIZADA *N. 22*, ADESIVADA, DE *2,0 X 1,125* M | C187: m² | D187: 1 | E187: =Insumos!G157 -> 225 | F187: 225
A188: SUB-TOTAL - MATERIAL / EQUIPAMENTOS: | C188: =SUM(F181:F187) -> 281.44
A189: SINAPI C 88262 | B189: CARPINTEIRO C/ENCARGOS COMPLEMENTARES | C189: h | D189: 0.518 | E189: =Planilha_M.O.!E26 -> 20.5 | F189: =TRUNC(D189*E189,2) -> 10.61
A190: SINAPI C 88239 | B190: AJUDANTE DE CARPINTEIRO C/ENCARGOS COMPLEMENTARES | C190: h | D190: 0.4001 | E190: =Planilha_M.O.!E20 -> 17.06 | F190: =TRUNC(D190*E190,2) -> 6.82
A191: SINAPI C 88309 | B191: PEDREIRO C/ENCARGOS COMPLEMENTARES | C191: h | D191: 0.0755 | E191: =Planilha_M.O.!E24 -> 20.71 | F191: =TRUNC(D191*E191,2) -> 1.56
A192: SINAPI C 88316 | B192: SERVENTE C/ ENCARGOS COMPLEMENTARES | C192: h | D192: 0.1551 | E192: =Planilha_M.O.!E18 -> 17.11 | F192: =TRUNC(D192*E192,2) -> 2.65
A193: SUB-TOTAL - MÃO-DE-OBRA: | C193: =SUM(F189:F192) -> 21.64
B195: CUSTO TOTAL: | F195: =+C188+C193 -> 303.08
B197: BDI: | C197: % | D197: =+$F$7 -> 22,15% | F197: =TRUNC(F195*D197,2) -> 67.13
B199: PREÇO: | F199: =+F195+F197 -> 370.21
A202: CÓDIGO | B202: DISCRIMINAÇÃO | C202: UN | D202: COEFIC. | E202: UNITÁRIO | F202: TOTAL
A203: 552 | B203: SINALIZAÇÃO COM TELA PLÁSTICA LARANJA FIXADA EM CONE PLÁSTICO | C203: m
A204: SINAPI I 34498 | B204: CONE DE SINALIZAÇÃO EM PVC FLEXÍVEL, h=70/76 cm | C204: un | D204: 0.175 | E204: =Insumos!G86 -> 114.77 | F204: =TRUNC(D204*E204,2) -> 20.08
A205: SINAPI I 37524 | B205: TELA PLÁSTICA LARANJA | C205: m | D205: 1.1 | E205: =Insumos!G194 -> 2.06 | F205: =TRUNC(D205*E205,2) -> 2.26
A206: SUB-TOTAL - MATERIAL / EQUIPAMENTOS: | C206: =SUM(F204:F205) -> 22.34
A207: =CONCATENATE("SINAPI C ",[4]Insumos!$B$23) -> SINAPI C 88262 | B207: CARPINTEIRO C/ENCARGOS COMPLEMENTARES | C207: h | D207: 0.168 | E207: =Planilha_M.O.!E26 -> 20.5 | F207: =TRUNC(D207*E207,2) -> 3.44
A208: =CONCATENATE("SINAPI C ",[4]Insumos!$B$15) -> SINAPI C 88239 | B208: AJUDANTE DE CARPINTEIRO C/ENCARGOS COMPLEMENTARES | C208: h | D208: 0.132 | E208: =Planilha_M.O.!E20 -> 17.06 | F208: =TRUNC(D208*E208,2) -> 2.25
A209: SUB-TOTAL - MÃO-DE-OBRA: | C209: =SUM(F207:F208) -> 5.69
B211: CUSTO TOTAL: | F211: =+C206+C209 -> 28.03
B213: BDI: | C213: % | D213: =+$F$7 -> 22,15% | F213: =TRUNC(F211*D213,2) -> 6.2
B215: PREÇO: | F215: =+F211+F213 -> 34.23
A217: CÓDIGO | B217: DISCRIMINAÇÃO | C217: UN | D217: COEFIC. | E217: UNITÁRIO | F217: TOTAL
A218: 99064 | B218: LOCAÇÃO DE OBRA | C218: m
A219: SINAPI C 99058 | B219: LOCAÇÃO DE PONTO PARA REFERÊNCIA TOPOGRÁFICA | C219: un | D219: 0.05 | E219: ='Composições Aux. SINAPI'!E57:F57 -> 10.33 | F219: =TRUNC(D219*E219,2) -> 0.51
A220: SUB-TOTAL - MATERIAL / EQUIPAMENTOS: | C220: =SUM(F219:F219) -> 0.51
B222: CUSTO TOTAL: | F222: =+C220 -> 0.51
B224: BDI: | C224: % | D224: =+$F$7 -> 22,15% | F224: =TRUNC(F222*D224,2) -> 0.11
B226: PREÇO: | F226: =+F222+F224 -> 0.62
A228: CÓDIGO | B228: DISCRIMINAÇÃO | C228: UN | D228: COEFIC. | E228: UNITÁRIO | F228: TOTAL
A229: 565 | B229: NIVELAMENTO | C229: m²
A230: SINAPI I 4460 | B230: SARRAFO NÃO APARELHADO 2,5 X 10 cm | C230: m | D230: 0.0029 | E230: =Insumos!G179 -> 7.48 | F230: =TRUNC(D230*E230,2) -> 0.02
A231: SINAPI I 7252 | B231: LOCACAO DE NIVEL OPTICO, COM PRECISAO DE 0,7 MM, AUMENTO DE 32X | C231: h | D231: 0.0025 | E231: =Insumos!G130 -> 2.03 | F231: =ROUND(D231*E231,2) -> 0.01
A232: SUB-TOTAL - MATERIAL / EQUIPAMENTOS: | C232: =SUM(F230:F231) -> 0.03
A233: SINAPI C 88253 | B233: AUXILIAR DE TOPÓGRAFO C/ENCARGOS COMPLEMENTARES | C233: h | D233: 0.0025 | E233: =Planilha_M.O.!E21 -> 13.69 | F233: =TRUNC(D233*E233,2) -> 0.03
A234: SINAPI C 90781 | B234: TOPÓGRAFO C/ ENCARGOS COMPLEMENTARES | C234: h | D234: 0.0025 | E234: =Planilha_M.O.!E39 -> 31.8 | F234: =TRUNC(D234*E234,2) -> 0.07
A235: SINAPI C 88316 | B235: SERVENTE C/ ENCARGOS COMPLEMENTARES | C235: h | D235: 0.0075 | E235: =Planilha_M.O.!E18 -> 17.11 | F235: =TRUNC(D235*E235,2) -> 0.12
A236: SUB-TOTAL - MÃO-DE-OBRA: | C236: =SUM(F233:F235) -> 0.22
B238: CUSTO TOTAL: | F238: =+C232+C236 -> 0.25
B240: BDI: | C240: % | D240: =+$F$7 -> 22,15% | F240: =TRUNC(F238*D240,2) -> 0.05
B242: PREÇO: | F242: =+F238+F240 -> 0.3
A244: CÓDIGO | B244: DISCRIMINAÇÃO | C244: UN | D244: COEFIC. | E244: UNITÁRIO | F244: TOTAL
A245: 97053 | B245: SINALIZAÇÃO COM FITA ZEBRADA FIXADA EM CONE PLÁSTICO | C245: m
A246: SINAPI I 34498 | B246: CONE DE SINALIZAÇÃO EM PVC FLEXÍVEL, h=70/76 cm | C246: un | D246: 0.0219 | E246: =+Insumos!$G$86 -> 114.77 | F246: =TRUNC(D246*E246,2) -> 2.51
A247: SINAPI I 42015 | B247: FITA ZEBRADA | C247: m | D247: 1.1 | E247: =+Insumos!$G$105 -> 1.12 | F247: =TRUNC(D247*E247,2) -> 1.23
A248: SUB-TOTAL - MATERIAL / EQUIPAMENTOS: | C248: =SUM(F246:F247) -> 3.74
A249: SINAPI C 88262 | B249: CARPINTEIRO C/ENCARGOS COMPLEMENTARES | C249: h | D249: 0.1384 | E249: =Planilha_M.O.!E26 -> 20.5 | F249: =TRUNC(D249*E249,2) -> 2.83
A250: SINAPI C 88239 | B250: AJUDANTE DE CARPINTEIRO C/ENCARGOS COMPLEMENTARES | C250: h | D250: 0.1088 | E250: =Planilha_M.O.!E20 -> 17.06 | F250: =TRUNC(D250*E250,2) -> 1.85
A251: SUB-TOTAL - MÃO-DE-OBRA: | C251: =SUM(F249:F250) -> 4.68
B253: CUSTO TOTAL: | F253: =+C248+C251 -> 8.42
B255: BDI: | C255: % | D255: =+$F$7 -> 22,15% | F255: =TRUNC(F253*D255,2) -> 1.86
B257: PREÇO: | F257: =+F253+F255 -> 10.28
A259: CÓDIGO | B259: DISCRIMINAÇÃO | C259: UN | D259: COEFIC. | E259: UNITÁRIO | F259: TOTAL
A260: 700 | B260: ADMINISTRAÇÃO LOCAL | C260: %
A261: SINAPI C 90778 | B261: ENGENHEIRO CIVIL DE OBRA C/ENCARGOS COMPLEMENTARES | C261: h | D261: 0.44 | E261: =Planilha_M.O.!E38 -> 107.35 | F261: =TRUNC(D261*E261,4) -> 47.234
A262: SINAPI C 93572 | B262: ENCARREGADO DE OBRAS | C262: mês | D262: 0.01 | E262: =Planilha_M.O.!E37 -> 7828.88 | F262: =TRUNC(D262*E262,4) -> 78.2888
A263: SINAPI C 88326 | B263: VIGIA NOTURNO COM ENCARGOS COMPLEMENTARES | C263: h | D263: =(30*10)/100 -> 3 | E263: =Planilha_M.O.!E40 -> 22.41 | F263: =TRUNC(D263*E263,4) -> 67.23
A264: SINAPI I 10886 | B264: EXTINTOR DE INCENDIO PORTATIL COM CARGA DE AGUA PRESSURIZADA DE 10 L, CLASSE A | C264: un | D264: 0.01 | E264: =Insumos!G98 -> 183.75 | F264: =TRUNC(D264*E264,4) -> 1.8375
A265: SINAPI I 10891 | B265: EXTINTOR DE INCENDIO PORTATIL COM CARGA DE PO QUIMICO SECO (PQS) DE 4 KG, CLASSE BC | C265: un | D265: 0.01 | E265: =Insumos!G99 -> 177.69 | F265: =TRUNC(D265*E265,4) -> 1.7769
A266: SMAMS 750 | B266: CONSUMO DE ENERGIA ELÉTRICA | C266: kWh | D266: 3 | E266: =F301 -> 0.91 | F266: =TRUNC(D266*E266,4) -> 2.73
A267: SMAMS 753 | B267: CONSUMO DE AGUA TRATADA | C267: m³ | D267: 0.5 | E267: =C312 -> 7.23 | F267: 3.615
A268: SUB-TOTAL - MÃO-DE-OBRA: | C268: =SUM(F261:F267) -> 202.7122
... 445 more rows

Sheet Memória_Cálculo
A6: MEMÓRIA DE CÁLCULO
A7: OBJETO: | B7: Obras de Aquisição e Instalação de Academias de Ginástica ao ar livre na Praça
B8: Grêmio Futebol Portoalegrense (110/03)
A10: 1 EXECUÇÃO DE ACADEMIA AO AR LIVRE PRAÇA GRÊMIO FUTEBOL PORTOALEGRENSE
A12: 1.1 ART
A13: DEVERÁ SER ELABORADA APENAS UMA ART PARA AS TRÊS ACADEMIAS.
A16: 1.2 REMOÇÃO DE ENTULHOS COM CAÇAMBA 4M³
A18: ACADEMIA
A19: LARGURA (M) | B19: COMPRIMENTO (M) | C19: ÁREA (M²) | D19: ESPESSURA (M) | E19: VOLUME | F19: EMPLOAMENTO 25% | G19: VOLUME REMOÇÃO
A20: 9 | B20: 11 | C20: =B20*A20 -> 99 | D20: 0.08 | E20: =D20*C20 -> 7.92 | F20: =0.25*E20 -> 1.98 | G20: =F20+E20 -> 9.9
A22: PASSEIO
A23: LARGURA (M) | B23: COMPRIMENTO (M) | C23: ÁREA (M²) | D23: ESPESSURA (M) | E23: VOLUME | F23: EMPLOAMENTO 25% | G23: VOLUME REMOÇÃO
A24: 1.4 | B24: 3 | C24: =B24*A24 -> 4.2 | D24: 0.1 | E24: =D24*C24 -> 0.42 | F24: =0.25*E24 -> 0.105 | G24: =F24+E24 -> 0.525
G26: VOLUME TOTAL (M³)
G27: =G24+G20 -> 10.425
A28: 2.1 TAPUME EM CHAPA DE COMPENSADO RESINADO (L=10,00; C=10,00m e H=2,20M)
A30: LARGURA (M) | B30: COMPRIMENTO (M) | C30: PERÍMETRO (M) | D30: ALTURA H=2,20M | E30: ÁREA(M²)
A31: 10 | B31: 10 | C31: =A31*2+B31*2 -> 40 | D31: 2.2 | E31: =D31*C31 -> 88
A33: 2.2 LOCAÇÃO DE SANITÁRIO QUÍMICO E 2.3 FRETE
A35: QUANTIDADE | B35: PRAZO | C35: LIMPEZA / SEMANAIS | D35: FRETE IDA | E35: FRETE VOLTA
A36: 1 | B36: 30 DIAS | C36: 3 | D36: 1 | E36: 1
A38: 2.6 PLACA DE OBRA (PARA CONSTRUCAO CIVIL) EM CHAPA GALVANIZADA *N. 22*, ADESIVADA, DE *2,0 X 1,125* M
A40: LARGURA (M) | B40: ALTURA (M) | C40: ÁREA(M²)
A41: 2 | B41: 1.25 | C41: =B41*A41 -> 2.5
A44: 2.7 SINALIZAÇÃO COM TELA PLÁSTICA LARANJA FIXADA EM CONE PLÁSTICO
A46: ACADEMIA
A47: LARGURA 1 (M) | B47: LARGURA 2 (M) | C47: COMPRIMENTO 1 | D47: COMPRIMENTO 2
A48: 11 | B48: 11 | C48: 13 | D48: 13
A50: PASSEIO
A51: COMPRIMENTO 1 (M) | B51: COMPRIMENTO 2 (M) | D51: TOTAL TELA(M)
A52: 3 | B52: 3 | D52: =B52+A52+A48+B48+C48+D48 -> 54
A55: 2.8 LOCAÇÃO DE OBRA
A57: PISO ACADEMIA
A58: LARGURA (M) | B58: LARGURA (M) | C58: COMPRIMENTO (M) | D58: COMPRIMENTO (M)
A59: 9 | B59: 9 | C59: 11 | D59: 11
A61: PASSEIO
A62: COMPRIMENTO (M) | B62: COMPRIMENTO (M) | D62: TOTAL LOCAÇÃO (M)
A63: 6 | B63: 3 | D63: =B63+A63+A59+B59+C59+D59 -> 49
A66: 2.8 NIVELAMENTO
A68: ACADEMIA ÁREA | B68: PASSEIO ÁREA (M²) | C68: GRAMA ÁREA | D68: PODOTAIL ÁREA | E68: TOTAL (M²)
A69: =C106 -> 99 | B69: =B88 -> 4.2 | C69: =C88 -> 48.5 | D69: =12*0.25*0.25 -> 0.75 | E69: =C69+B69+A69+D69 -> 152.45
A72: 3 ADMINISTRAÇÃO LOCAL
A73: ENGENHEIRO
A74: DIAS | B74: MESES | C74: HORAS / DIA | D74: TOTAL | E74: PERCENTUAL | F74: COEFICIENTE
A75: 22 | B75: 1 | C75: 2 | D75: =C75*A75 -> 44 | E75: 100 | F75: =D75/E75 -> 0.44
A77: ENCARREGADO
A78: PRAZO OBRA | B78: MESES | C78: PERCENTUAL | D78: COEFICIENTE
A79: 30 DIAS | B79: 1 | C79: 100 | D79: =B79/C79 -> 0.01
A81: VIGIA NOTURNO
A82: PRAZO OBRA | B82: HORAS / DIA | C82: TOTAL HORAS | D82: PERCENTUAL | E82: COEFICIENTE
A83: 30 | B83: 10 | C83: =B83*A83 -> 300 | D83: 100 | E83: =C83/D83 -> 3
A85: 4.1 MODELAGEM (MOVIMENTO DE TERRA ATÉ 15CM)
A87: ACADEMIA ÁREA | B87: PASSEIO ÁREA (M²) | C87: GRAMA ÁREA | D87: PODOTAIL ÁREA | E87: TOTAL (M²)
A88: =C106 -> 99 | B88: =C100 -> 4.2 | C88: =C135 -> 48.5 | D88: =12*0.25*0.25 -> 0.75 | E88: =C88+B88+A88+D88 -> 152.45
A90: 4.2 ATERRO MECÂNICO COM MATERIAL IMPORTADO COM COMPACTAÇÃO MECÂNICA
A92: LARGURA (M) | B92: COMPRIMENTO (M) | C92: ÁREA (M²) | D92: ALTURA ATERRO | E92: VOLUME (M³)
A93: 9 | B93: 11 | C93: =A93*B93 -> 99 | D93: 0.1 | E93: =D93*C93 -> 9.9
A96: 5.1 EXECUÇÃO DE PASSEIO (CALÇADA) OU PISO DE CONCRETO COM CONCRETO MOLDADO IN LOCO,
A97: FEITO EM OBRA, ACABAMENTO CONVENCIONAL, ESPESSURA 8 CM, ARMADO
A99: LARGURA (M) | B99: COMPRIMENTO (M) | C99: ÁREA(M²)
A100: 1.4 | B100: 3 | C100: =B100*A100 -> 4.2
A103: 5.2 PISO CONCRETO ARMADO E= 10 cm - ACADEMIA AO AR LIVRE
A105: LARGURA | B105: COMPRIMENTO | C105: ÁREA (M²)
A106: 9 | B106: 11 | C106: =A106*B106 -> 99
A109: 5.3 PISO PODOTÁTIL 25x25 cm
A110: QUATDADE PEÇAS | B110: DIMENSÕES | C110: COMPRIMENTO (M)
A111: 12 | B111: 0.25 | C111: =B111*A111 -> 3
A113: 8.1 PLANTIO DE GRAMA CATARINA COM COMPOSTO ORGANICO
A115: LARGURA (M) | B115: COMPRIMENTO (M) | C115: ÁREA(M²)
A116: 1 | B116: 11 | C116: =B116*A116 -> 11
A118: LARGURA (M) | B118: COMPRIMENTO (M) | C118: ÁREA(M²)
A119: 1 | B119: 11 | C119: =B119*A119 -> 11
A121: LARGURA (M) | B121: COMPRIMENTO (M) | C121: ÁREA(M²)
A122: 1 | B122: =11-1.5 -> 9.5 | C122: =B122*A122 -> 9.5
A124: LARGURA (M) | B124: COMPRIMENTO (M) | C124: ÁREA(M²)
A125: 1 | B125: 11 | C125: =B125*A125 -> 11
A127: PASSEIO
A128: LARGURA (M) | B128: COMPRIMENTO (M) | C128: ÁREA(M²)
A129: 1 | B129: 3 | C129: =B129*A129 -> 3
A131: LARGURA (M) | B131: COMPRIMENTO (M) | C131: ÁREA(M²)
A132: 1 | B132: 3 | C132: =B132*A132 -> 3
C134: ATOTAL (M²)
C135: =C116+C119+C122+C125+C129+C132 -> 48.5
A137: 9 EXECUÇÃO DE ACADEMIA AO AR LIVRE PRAÇA GUIA LOPES (118/08)
A138: 9.1 DEMOLIÇÃO DE MURETAS E CANTEIRO
A139: CANTEIRO DIREITA (CD)
A140: LARGURA 1 (M) | B140: LARGURA 2 (M) | C140: LARGURA 1 (M) | D140: TOTAL (M) | E140: ALTURA (M)
A141: 6.05 | B141: 6.23 | C141: 6.04 | D141: =C141+B141+A141 -> 18.32 | E141: 0.45
A143: VOLUME (M³) | B143: EMPOLAMENTO 25% | C143: REMOÇÃO SUBTOTAL (M³)
A144: =D141*E141 -> 8.244 | B144: =A144*0.25 -> 2.061 | C144: =B144+A144 -> 10.305
A147: 9.2 REMOÇÃO DE ENTULHOS COM CAÇAMBA 4M³
A149: REMOÇÃO DO MATERIAL ORIUNDO DO CANTEIROS INTEGRL (CD)
A150: TOTAL CANTEIRO CD | B150: =C144 -> 10.305
A152: REMOÇÃO DE 8 CM DE SAIBRO NA ÁREA DA ACADEMIA
A153: LARGURA (M) | B153: COMPRIMENTO (M) | C153: ALTURA(M) | D153: VOLUME | E153: EMPOL. 25% | F153: TOTAL (M³)
A154: 5.9 | B154: 17.8 | C154: 0.08 | D154: =C154*B154*A154 -> 8.4016 | E154: =D154*0.25 -> 2.1004 | F154: =E154+D154 -> 10.502
G155: TOTAL (M³)
A156: REMOÇÃO DE 40 CM DE SOLO ORIUNDO DO CANTEIRO LADO DIREITO | G156: =B150+F154+F158 -> 39.0131
A157: LARGURA (M) | B157: COMPRIMENTO (M) | C157: ALTURA(M) | D157: VOLUME (M3) | E157: EMPOL. 25% | F157: TOTAL (M³)
A158: 5.94 | B158: 6.13 | C158: 0.4 | D158: =C158*B158*A158 -> 14.56488 | E158: =D158*0.25 -> 3.64122 | F158: =E158+D158 -> 18.2061
A160: 10.1 TAPUME EM CHAPA DE COMPENSADO RESINADO (L=10,00; C=10,00m e H=2,20M)
A162: LARGURA (M) | B162: COMPRIMENTO (M) | C162: PERÍMETRO (M) | D162: ALTURA H=2,20M | E162: ÁREA(M²)
A163: 10 | B163: 10 | C163: =A163*2+B163*2 -> 40 | D163: 2.2 | E163: =D163*C163 -> 88
A166: 10.6 PLACA DE OBRA (PARA CONSTRUCAO CIVIL) EM CHAPA GALVANIZADA *N. 22*, ADESIVADA, DE *2,0 X 1,125* M
A168: LARGURA (M) | B168: ALTURA (M) | C168: ÁREA(M²)
A169: 2 | B169: 1.25 | C169: =B169*A169 -> 2.5
A172: 10.7 SINALIZAÇÃO COM TELA PLÁSTICA LARANJA FIXADA EM CONE PLÁSTICO
B173: COMPRIMENTO 1 (M)
B174: 6.9
B176: COMPRIMENTO 2 (M)
B177: 6.9 | D177: COMPRIMENTO TOTAL (M)
D178: =B174+B177+B180+B183 -> 49.4
B179: COMPRIMENTO 3 (M)
B180: 17.8
B182: COMPRIMENTO 4 (M)
B183: 17.8
A184: SERÁ UTILIZADA NO PERÍMETRO DO PISO DE CONCRETO DA ACADEMIA
A187: 10.8 LOCAÇÃO DE OBRA
A189: PISO ACADEMIA
A190: LARGURA (M) | B190: LARGURA (M) | C190: COMPRIMENTO (M) | D190: COMPRIMENTO (M)
A191: 5.9 | B191: 5.9 | C191: 17.8 | D191: 17.8
A193: SAIBRO
A194: COMPRIMENTO (M) | C194: TOTAL LOCAÇÃO (M)
A195: 17.8 | C195: =+A195+A191+B191+C191+D191 -> 65.2
A198: 10.9 NIVELAMENTO
A200: ACADEMIA ÁREA (M²) | B200: REPOSIÇÃO SAIBRO ROSA | C200: TOTAL (M²)
A201: =C240 -> 105.02 | B201: =B220 -> 62.686 | C201: =B201+A201 -> 167.706
A204: 11.1 ADMINISTRAÇÃO LOCAL
A205: ENGENHEIRO
A206: DIAS | B206: MESES | C206: HORAS / DIA | D206: TOTAL | E206: PERCENTUAL | F206: COEFICIENTE
A207: 22 | B207: 1 | C207: 2 | D207: =C207*A207 -> 44 | E207: 100 | F207: =D207/E207 -> 0.44
A209: ENCARREGADO
A210: PRAZO OBRA | B210: MESES | C210: PERCENTUAL | D210: COEFICIENTE
A211: 30 DIAS | B211: 1 | C211: 100 | D211: =B211/C211 -> 0.01
A213: VIGIA NOTURNO
A214: PRAZO OBRA | B214: HOAS / DIA | C214: TOTAL HORAS | D214: PERCENTUAL | E214: COEFICIENTE
A215: 30 | B215: 10 | C215: =B215*A215 -> 300 | D215: 100 | E215: =C215/D215 -> 3
A217: 12.1 MODELAGEM (MOVIMENTO DE TERRA ATÉ 15CM)
A219: ACADEMIA ÁREA (M²) | B219: RECOMPOSIÇÃO SAIBRO ROSA | C219: TOTAL (M²)
A220: =C240 -> 105.02 | B220: =E234 -> 62.686 | C220: =B220+A220 -> 167.706
A223: 12.2 ATERRO MECÂNICO COM MATERIAL IMPORTADO COM COMPACTAÇÃO MECÂNICA
A225: LARGURA | B225: COMPRIMENTO | C225: ÁREA (M²) | D225: ALTURA ATERRO | E225: VOLUME (M³)
A226: 5.9 | B226: 17.8 | C226: =A226*B226 -> 105.02 | D226: 0.1 | E226: =D226*C226 -> 10.502
A228: 13.1 REPOSIÇÃO DE SAIBRO ROSA - COMPACTAÇÃO MECÂNICA - E= 6 CM
A231: COMPRIMENTO 1 (M) | B231: LARGURA (M) | C231: ÁREA (M²)
A232: 5.9 | B232: 2.66 | C232: =B232*A232 -> 15.694
E233: ÁREA TOTAL (M²)
A234: COMPRIMENTO 2 (M) | B234: LARGURA (M) | C234: ÁREA (M²) | E234: =C235+C232 -> 62.686
A235: 17.8 | B235: 2.64 | C235: =B235*A235 -> 46.992
A237: 13.2 PISO CONCRETO ARMADO E= 10 cm - ACADEMIA AO AR LIVRE
A239: LARGURA | B239: COMPRIMENTO | C239: ÁREA (M²)
A240: 5.9 | B240: 17.8 | C240: =A240*B240 -> 105.02
A243: 16.1 CHAPISCO APLICADO EM ALVENARIA (SEM PRESENÇA DE VÃOS)
A245: LARGURA (M) | B245: ALTURA (M) | C245: ÁREA(M²)
A246: 6.23 | B246: 1.35 | C246: =B246*A246 -> 8.4105
A249: 16.2 EMBOÇO OU MASSA ÚNICA EM ARGAMASSA TRAÇO 1:2:8, PREPARO MANUAL
A251: LARGURA (M) | B251: ALTURA (M) | C251: ÁREA(M²)
A252: 6.23 | B252: 1.35 | C252: =B252*A252 -> 8.4105
A255: 16.3 APLICAÇÃO MANUAL DE PINTURA COM TINTA LÁTEX ACRÍLICA EM PAREDES, DUAS DEMÃOS. AF_06/2014
A257: LARGURA (M) | B257: ALTURA (M) | C257: ÁREA(M²)
A258: 17.8 | B258: 1.35 | C258: =B258*A258 -> 24.03
A260: 17 EXECUÇÃO DE ACADEMIA AO AR LIVRE PRAÇA SIMÕES LOPES NETO
A262: 17.1 REMOÇÃO BANCO S/ ENCOSTO - TIPO A
A264: QUANTIDADE BANCOS SEM ENCOSTO TIPO A
A265: QTDADE
A266: 1
A269: 17.2 REMOÇÃO DE ENTULHOS COM CAÇAMBA 4M³
A270: REFERE-SE AO DESCARTE DE ENTUHLO ORIUNDO DA DEMOLIÇÃO DE PARTE DO PASSEIO GRES
A272: ÁREA TOTAL (M²) | B272: ESPESSURA (M) | C272: VOLUME (M³) | D272: EMPLOLAM(25%) | E272: TOTAL VOLUME (M³)
A273: =C346 -> 50 | B273: 0.08 | C273: =B273*A273 -> 4 | D273: =C273*0.24 -> 0.96 | E273: =D273+C273 -> 4.96
A276: 18.1 TAPUME EM CHAPA DE COMPENSADO RESINADO (L=7,70m; C=11,00 m e H=2,20M)
A278: LARGURA (M) | B278: COMPRIMENTO (M) | C278: PERÍMETRO (M) | D278: ALTURA H=2,20M | E278: ÁREA(M²)
A279: 7.7 | B279: 11 | C279: =A279*2+B279*2 -> 37.4 | D279: 2.2 | E279: =D279*C279 -> 82.28
A282: 18.6 PLACA DE OBRA (PARA CONSTRUCAO CIVIL) EM CHAPA GALVANIZADA *N. 22*, ADESIVADA, DE *2,0 X 1,125* M
A284: LARGURA (M) | B284: ALTURA (M) | C284: ÁREA(M²)
A285: 2 | B285: 1.25 | C285: =B285*A285 -> 2.5
A288: 18.7 SINALIZAÇÃO COM TELA PLÁSTICA LARANJA FIXADA EM CONE PLÁSTICO
A290: LARGURA 1 (M) | B290: COMPRIMENTO 1 (M)
A291: 6 | B291: 11
A293: LARGURA 2 (M) | C293: COMPRIM TOTAL
A294: 6 | C294: =A291+B291+A294 -> 23
A297: 18.8 LOCAÇÃO DE OBRA
A299: PISO ACADEMIA
A300: LARGURA (M) | B300: LARGURA (M) | C300: COMPRIMENTO (M) | D300: COMPRIMENTO (M)
A301: 5 | B301: 5 | C301: 10 | D301: 10
D304: TOTAL LOCAÇÃO (M)
D305: =B305+A305+A301+B301+C301+D301 -> 30
A307: 18.9 NIVELAMENTO
A309: ACADEMIA ÁREA | B309: GRAMA ÁREA | C309: TOTAL (M²)
A310: =C346 -> 50 | B310: =B335 -> 21 | C310: =B310+A310 -> 71
A313: 19.1 ADMINISTRAÇÃO LOCAL SIMÕES LOPES NETO
A314: ENGENHEIRO
A315: DIAS | B315: MESES | C315: HORAS / DIA | D315: TOTAL | E315: PERCENTUAL | F315: COEFICIENTE
A316: 22 | B316: 1 | C316: 2 | D316: =C316*A316 -> 44 | E316: 100 | F316: =D316/E316 -> 0.44
A318: ENCARREGADO
A319: PRAZO OBRA | B319: MESES | C319: PERCENTUAL | D319: COEFICIENTE
A320: 30 DIAS | B320: 1 | C320: 100 | D320: =B320/C320 -> 0.01
A322: VIGIA NOTURNO
A323: PRAZO OBRA | B323: HOAS / DIA | C323: TOTAL HORAS | D323: PERCENTUAL | E323: COEFICIENTE
A324: 30 | B324: 10 | C324: =B324*A324 -> 300 | D324: 100 | E324: =C324/D324 -> 3
... 24 more rows

Sheet Composições Aux. SINAPI
A1: COMPOSIÇÕES AUXILIARES
A3: Data Base SINAPI: JUNHO 2021 - Data Base das Cotações: Junho 2021
A6: =+Planilha_M.O.!$D$5 -> s/desoneração | C6: Leis Sociais Horistas: | D6: =+Planilha_M.O.!$D$7 -> 1.111 | E6: BDI= | F6: =+Planilha_M.O.!$F$7 -> 22,15%
C7: Leis Sociais Mensalistas: | D7: =+Planilha_M.O.!$D$8 -> 0.6916
A9: =+E16 -> JUNHO / 2021 | C9: Vem da aba Comp.SINAPI c_des. | D9: Vem da aba Comp.SINAPI s_des. | E9: Valor utilizado na composição
A16: Código SINAPI | B16: Composição | C16: Custo (c/desoneração) | D16: Custo (s/desoneração) | E16: =+Planilha_M.O.!$E$17 -> JUNHO / 2021
A17: 87292 | B17: ARGAMASSA TRAÇO 1:2:8 (EM VOLUME DE CIMENTO, CAL E AREIA MÉDIA ÚMIDA) PARA EMBOÇO/MASSA ÚNICA/ASSENTAMENTO DE ALVENARIA DE VEDAÇÃO, PREPARO MECÂNICO COM BETONEIRA 400 L. AF_08/2019 | C17: 399.47 | D17: 410.14 | E17: =IF(Planilha_M.O.!$D$5="c/desoneração",C17,(IF(Planilha_M.O.!$D$5="s/desoneração",D17))) -> 410.14
A18: 87313 | B18: ARGAMASSA TRAÇO 1:3 (EM VOLUME DE CIMENTO E AREIA GROSSA ÚMIDA) PARA CHAPISCO CONVENCIONAL, PREPARO MECÂNICO COM BETONEIRA 400 L. AF_08/2019 | C18: 416.61 | D18: 426.85 | E18: =IF(Planilha_M.O.!$D$5="c/desoneração",C18,(IF(Planilha_M.O.!$D$5="s/desoneração",D18))) -> 426.85
A19: 87335 | B19: ARGAMASSA TRAÇO 1:2:8 (CIMENTO, CAL E AREIA MÉDIA) PARA EMBOÇO/MASSA ÚNICA/ASSENTAMENTO DE ALVENARIA DE VEDAÇÃO, PREPARO MECÂNICO | C19: 395.78 | D19: 407.54 | E19: =IF(Planilha_M.O.!$D$5="c/desoneração",C19,(IF(Planilha_M.O.!$D$5="s/desoneração",D19))) -> 407.54
A20: 87369 | B20: ARGAMASSA TRAÇO 1:2:8 (EM VOLUME DE CIMENTO, CAL E AREIA MÉDIA ÚMIDA) PARA EMBOÇO/MASSA ÚNICA/ASSENTAMENTO DE ALVENARIA DE VEDAÇÃO, PREPARO MANUAL. AF_08/2019 | C20: 479.13 | D20: 498.67 | E20: =IF(Planilha_M.O.!$D$5="c/desoneração",C20,(IF(Planilha_M.O.!$D$5="s/desoneração",D20))) -> 498.67
A21: 88629 | B21: ARGAMASSA TRAÇO 1:3 (CIMENTO E AREIA MÉDIA), PREPARO MANUAL | C21: 513.4 | D21: 528.49 | E21: =IF(Planilha_M.O.!$D$5="c/desoneração",C21,(IF(Planilha_M.O.!$D$5="s/desoneração",D21))) -> 528.49
A22: 88630 | B22: ARGAMASSA TRAÇO 1:4 (CIMENTO E AREIA MÉDIA), PREPARO MECÂNICO COM BETONEIRA 400 L | C22: 372.59 | D22: 380.55 | E22: =IF(Planilha_M.O.!$D$5="c/desoneração",C22,(IF(Planilha_M.O.!$D$5="s/desoneração",D22))) -> 380.55
A23: 88631 | B23: ARGAMASSA TRAÇO 1:4 (EM VOLUME DE CIMENTO E AREIA MÉDIA ÚMIDA), PREPARO MANUAL | C23: 453.47 | D23: 468.06 | E23: =IF(Planilha_M.O.!$D$5="c/desoneração",C23,(IF(Planilha_M.O.!$D$5="s/desoneração",D23))) -> 468.06
A24: 100578 | B24: ASSENTAMENTO DE POSTE DE CONCRETO COM COMPRIMENTO NOMINAL DE 9 m | C24: 400.08 | D24: 412.48 | E24: =IF(Planilha_M.O.!$D$5="c/desoneração",C24,(IF(Planilha_M.O.!$D$5="s/desoneração",D24))) -> 412.48
A25: 88830 | B25: BETONEIRA 400 l, POTÊNCIA 2 cv, SEM CARREGADOR (chp) | C25: 1.65 | D25: 1.65 | E25: =IF(Planilha_M.O.!$D$5="c/desoneração",C25,(IF(Planilha_M.O.!$D$5="s/desoneração",D25))) -> 1.65
A26: 88831 | B26: BETONEIRA 400 l, POTÊNCIA 2 cv, SEM CARREGADOR (chi) | C26: 0.28 | D26: 0.28 | E26: =IF(Planilha_M.O.!$D$5="c/desoneração",C26,(IF(Planilha_M.O.!$D$5="s/desoneração",D26))) -> 0.28
A27: 91933 | B27: CABO DE COBRE FLEXÍVEL ISOLADO, 10 mm², ANTI-CHAMA 0,6/1,0 kV | C27: 15.88 | D27: 16.22 | E27: =IF(Planilha_M.O.!$D$5="c/desoneração",C27,(IF(Planilha_M.O.!$D$5="s/desoneração",D27))) -> 16.22
A28: 95676 | B28: CAIXA EM CONCRETO PRÉ-MOLDADO PARA ABRIGO DE HIDRÔMETRO COM DN 20 (½) | C28: 92.66 | D28: 93.49 | E28: =IF(Planilha_M.O.!$D$5="c/desoneração",C28,(IF(Planilha_M.O.!$D$5="s/desoneração",D28))) -> 93.49
A29: 91387 | B29: CAMINHÃO BASCULANTE 10 M3, TRUCADO CABINE SIMPLES, PESO BRUTO TOTAL 23.000 KG, CARGA ÚTIL MÁXIMA 15.935 KG, DISTÂNCIA ENTRE EIXOS 4,80 M, POTÊNCIA 230 CV INCLUSIVE CAÇAMBA METÁLICA - CHI DIURNO. AF_06/2014 | C29: 44.73 | D29: 47.29 | E29: =IF(Planilha_M.O.!$D$5="c/desoneração",C29,(IF(Planilha_M.O.!$D$5="s/desoneração",D29))) -> 47.29
A30: 91386 | B30: CAMINHÃO BASCULANTE 10 M3, TRUCADO CABINE SIMPLES, PESO BRUTO TOTAL 23.000 KG, CARGA ÚTIL MÁXIMA 15.935 KG, DISTÂNCIA ENTRE EIXOS 4,80 M, POTÊNCIA 230 CV INCLUSIVE CAÇAMBA METÁLICA - CHP DIURNO. AF_06/2014 | C30: 183.24 | D30: 185.8 | E30: =IF(Planilha_M.O.!$D$5="c/desoneração",C30,(IF(Planilha_M.O.!$D$5="s/desoneração",D30))) -> 185.8
A31: 91383 | B31: CAMINHÃO BASCULANTE 10 M3, TRUCADO CABINE SIMPLES, PESO BRUTO TOTAL 23.000 KG, CARGA ÚTIL MÁXIMA 15.935 KG, DISTÂNCIA ENTRE EIXOS 4,80 M, POTÊNCIA 230 CV INCLUSIVE CAÇAMBA METÁLICA - MANUTENÇÃO. AF_06/2014 | C31: 37.55 | D31: 37.55 | E31: =IF(Planilha_M.O.!$D$5="c/desoneração",C31,(IF(Planilha_M.O.!$D$5="s/desoneração",D31))) -> 37.55
A32: 91533 | B32: COMPACTADOR DE SOLOS DE PERCUSSÃO C/MOTOR A GASOLINA, POTÊNCIA 4 cv (chp) | C32: 29.27 | D32: 32.03 | E32: =IF(Planilha_M.O.!$D$5="c/desoneração",C32,(IF(Planilha_M.O.!$D$5="s/desoneração",D32))) -> 32.03
A33: 91534 | B33: COMPACTADOR DE SOLOS DE PERCUSSÃO C/MOTOR A GASOLINA, POTÊNCIA 4 cv (chi) | C33: 22.05 | D33: 24.83 | E33: =IF(Planilha_M.O.!$D$5="c/desoneração",C33,(IF(Planilha_M.O.!$D$5="s/desoneração",D33))) -> 24.83
A34: 5953 | B34: COMPRESSOR DE AR REBOCÁVEL, VAZÃO 189 PCM, PRESSÃO EFETIVA DE TRABALHO 102 PSI, MOTOR DIESEL, POTÊNCIA 63 CV - CHP DIURNO | C34: 41.39 | D34: 41.39 | E34: =IF(Planilha_M.O.!$D$5="c/desoneração",C34,(IF(Planilha_M.O.!$D$5="s/desoneração",D34))) -> 41.39
A35: 5954 | B35: COMPRESSOR DE AR REBOCÁVEL, VAZÃO 189 PCM, PRESSÃO EFETIVA DE TRABALHO 102 PSI, MOTOR DIESEL, POTÊNCIA 63 CV - CHI DIURNO | C35: 3.73 | D35: 3.73 | E35: =IF(Planilha_M.O.!$D$5="c/desoneração",C35,(IF(Planilha_M.O.!$D$5="s/desoneração",D35))) -> 3.73
A36: 94962 | B36: CONCRETO MAGRO PARA LASTRO, TRAÇO 1:4,5:4,5 (EM MASSA SECA DE CIMENTO/ AREIA MÉDIA/ BRITA 1) - PREPARO MECÂNICO COM BETONEIRA 400 L. AF_05/2021 | C36: 286.89 | D36: 294.53 | E36: =IF(Planilha_M.O.!$D$5="c/desoneração",C36,(IF(Planilha_M.O.!$D$5="s/desoneração",D36))) -> 294.53
A37: 94963 | B37: CONCRETO fck = 15MPa, TRAÇO 1:3,4:3,5 (CIMENTO/ AREIA MÉDIA/ BRITA 1) - PREPARO MECÂNICO COM BETONEIRA 400 l | C37: 324.74 | D37: 332.32 | E37: =IF(Planilha_M.O.!$D$5="c/desoneração",C37,(IF(Planilha_M.O.!$D$5="s/desoneração",D37))) -> 332.32
A38: 94964 | B38: CONCRETO FCK = 20MPA, TRAÇO 1:2,7:3 (CIMENTO/ AREIA MÉDIA/ BRITA 1) - PREPARO MECÂNICO COM BETONEIRA 400 L. AF_07/2016 | C38: 360.31 | D38: 368.57 | E38: =IF(Planilha_M.O.!$D$5="c/desoneração",C38,(IF(Planilha_M.O.!$D$5="s/desoneração",D38))) -> 368.57
A39: 91283 | B39: CORTADORA DE PISO, POTÊNCIA 13 hp, C/DISCO DE CORTE DIAMANTADO 350 mm (chp) | C39: 21.82 | D39: 21.82 | E39: =IF(Planilha_M.O.!$D$5="c/desoneração",C39,(IF(Planilha_M.O.!$D$5="s/desoneração",D39))) -> 21.82
A40: 91285 | B40: CORTADORA DE PISO, POTÊNCIA 13 hp, C/DISCO DE CORTE DIAMANTADO 350 mm (chi) | C40: 0.84 | D40: 0.84 | E40: =IF(Planilha_M.O.!$D$5="c/desoneração",C40,(IF(Planilha_M.O.!$D$5="s/desoneração",D40))) -> 0.84
A41: 92791 | B41: CORTE E DOBRA DE AÇO CA-60, DIÂMETRO DE 5,0 MM, UTILIZADO EM ESTRUTURAS DIVERSAS, EXCETO LAJES (4,2 mm, 5 mm, 6 mm e 7 mm) | C41: 13.82 | D41: 14 | E41: =IF(Planilha_M.O.!$D$5="c/desoneração",C41,(IF(Planilha_M.O.!$D$5="s/desoneração",D41))) -> 14
A42: 92794 | B42: CORTE E DOBRA DE AÇO CA-50, DIÂMETRO DE 10,0 MM, UTILIZADO EM ESTRUTURAS DIVERSAS, EXCETO LAJES | C42: 13.68 | D42: 13.71 | E42: =IF(Planilha_M.O.!$D$5="c/desoneração",C42,(IF(Planilha_M.O.!$D$5="s/desoneração",D42))) -> 13.71
A43: 96977 | B43: CORDOALHA DE COBRE NU 50 mm², ENTERRADA, SEM ISOLADOR | C43: 49.98 | D43: 50.13 | E43: =IF(Planilha_M.O.!$D$5="c/desoneração",C43,(IF(Planilha_M.O.!$D$5="s/desoneração",D43))) -> 50.13
A44: 91917 | B44: CURVA 90° PARA ELETRODUTO, PVC, ROSCÁVEL, DN 32 mm (1") | C44: 13.83 | D44: 14.99 | E44: =IF(Planilha_M.O.!$D$5="c/desoneração",C44,(IF(Planilha_M.O.!$D$5="s/desoneração",D44))) -> 14.99
A45: 91919 | B45: CURVA 180° P/ELETRODUTO, PVC, ROSCÁVEL, DN 32 mm (1") | C45: 15.82 | D45: 16.98 | E45: =IF(Planilha_M.O.!$D$5="c/desoneração",C45,(IF(Planilha_M.O.!$D$5="s/desoneração",D45))) -> 16.98
A46: 95282 | B46: DESEMPENADEIRA DE CONCRETO, PESO DE 75KG, 4 PÁS, MOTOR A GASOLINA, POTÊNCIA 5,5 HP - CHP DIURNO | C46: 9.33 | D46: 9.33 | E46: =IF(Planilha_M.O.!$D$5="c/desoneração",C46,(IF(Planilha_M.O.!$D$5="s/desoneração",D46))) -> 9.33
A47: 95283 | B47: DESEMPENADEIRA DE CONCRETO, PESO DE 75KG, 4 PÁS, MOTOR A GASOLINA, POTÊNCIA 5,5 HP - CHI DIURNO | C47: 0.49 | D47: 0.49 | E47: =IF(Planilha_M.O.!$D$5="c/desoneração",C47,(IF(Planilha_M.O.!$D$5="s/desoneração",D47))) -> 0.49
A48: 93673 | B48: DISJUNTOR TRIPOLAR TIPO DIN, CORRENTE NOMINAL DE 50 A | C48: 91.7 | D48: 94.12 | E48: =IF(Planilha_M.O.!$D$5="c/desoneração",C48,(IF(Planilha_M.O.!$D$5="s/desoneração",D48))) -> 94.12
A49: 91872 | B49: ELETRODUTO RÍGIDO ROSCÁVEL, PVC, DN 32 mm (1"), PARA CIRCUITOS TERMINAIS | C49: 14.14 | D49: 14.97 | E49: =IF(Planilha_M.O.!$D$5="c/desoneração",C49,(IF(Planilha_M.O.!$D$5="s/desoneração",D49))) -> 14.97
A50: 93358 | B50: ESCAVAÇÃO MANUAL DE VALA COM PROFUNDIDADE MENOR OU IGUAL A 1,30 M | C50: 60.72 | D50: 67.68 | E50: =IF(Planilha_M.O.!$D$5="c/desoneração",C50,(IF(Planilha_M.O.!$D$5="s/desoneração",D50))) -> 67.68
A51: 93402 | B51: GUINDAUTO HIDRÁULICO, CAP. 3.330 kg, INCLUSIVE CAMINHÃO TOCO (chp) | C51: 174.94 | D51: 177.73 | E51: =IF(Planilha_M.O.!$D$5="c/desoneração",C51,(IF(Planilha_M.O.!$D$5="s/desoneração",D51))) -> 177.73
A52: 96986 | B52: HASTE DE ATERRAMENTO 3/4" PARA SPDA | C52: 100.88 | D52: 102.57 | E52: =IF(Planilha_M.O.!$D$5="c/desoneração",C52,(IF(Planilha_M.O.!$D$5="s/desoneração",D52))) -> 102.57
A53: 89358 | B53: JOELHO 90 GRAUS, PVC, SOLDÁVEL, DN 20MM - FORNECIMENTO E INSTALAÇÃO | C53: 5.89 | D53: 6.38 | E53: =IF(Planilha_M.O.!$D$5="c/desoneração",C53,(IF(Planilha_M.O.!$D$5="s/desoneração",D53))) -> 6.38
A54: 89971 | B54: KIT DE REGISTRO DE GAVETA BRUTO DE LATÃO ½", INCLUSIVE CONEXÕES, ROSCÁVEL | C54: 49.13 | D54: 50.53 | E54: =IF(Planilha_M.O.!$D$5="c/desoneração",C54,(IF(Planilha_M.O.!$D$5="s/desoneração",D54))) -> 50.53
A55: 99833 | B55: LAVADORA DE ALTA PRESSÃO (LAVA-JATO) PARA ÁGUA FRIA, PRESSÃO DE OPERAÇÃO ENTRE 1400 E 1900 LIB/POL², VAZÃO MÁXIMA ENTRE 400 E 700 L/H - CHP DIURNO | C55: 1.43 | D55: 1.43 | E55: =IF(Planilha_M.O.!$D$5="c/desoneração",C55,(IF(Planilha_M.O.!$D$5="s/desoneração",D55))) -> 1.43
A56: 92873 | B56: LANÇAMENTO COM USO DE BALDES, ADENSAMENTO E ACABAMENTO DE CONCRETO EM ESTRUTURAS. AF_12/2015 | C56: 154.5 | D56: 172.47 | E56: =IF(Planilha_M.O.!$D$5="c/desoneração",C56,(IF(Planilha_M.O.!$D$5="s/desoneração",D56))) -> 172.47
A57: 99058 | B57: LOCAÇÃO DE PONTO PARA REFERÊNCIA TOPOGRÁFICA | C57: 9.15 | D57: 10.33 | E57: =IF(Planilha_M.O.!$D$5="c/desoneração",C57,(IF(Planilha_M.O.!$D$5="s/desoneração",D57))) -> 10.33
A58: 91885 | B58: LUVA PARA ELETRODUTO, PVC, ROSCÁVEL, DN 32 mm (1") | C58: 8.11 | D58: 8.88 | E58: =IF(Planilha_M.O.!$D$5="c/desoneração",C58,(IF(Planilha_M.O.!$D$5="s/desoneração",D58))) -> 8.88
A59: 5795 | B59: MARTELETE OU ROMPEDOR PNEUMÁTICO MANUAL, 28 KG, COM SILENCIADOR - CHP DIURNO | C59: 23.81 | D59: 26.44 | E59: =IF(Planilha_M.O.!$D$5="c/desoneração",C59,(IF(Planilha_M.O.!$D$5="s/desoneração",D59))) -> 26.44
A60: 5952 | B60: MARTELETE OU ROMPEDOR PNEUMÁTICO MANUAL, 28 KG, COM SILENCIADOR - CHI DIURNO | C60: 21.81 | D60: 24.44 | E60: =IF(Planilha_M.O.!$D$5="c/desoneração",C60,(IF(Planilha_M.O.!$D$5="s/desoneração",D60))) -> 24.44
A61: 97064 | B61: MONTAGEM E DESMONTAGEM DE ANDAIME TUBULAR TIPO TORRE (EXCLUSIVE ANDAIME E LIMPEZA) | C61: 14.38 | D61: 16.16 | E61: =IF(Planilha_M.O.!$D$5="c/desoneração",C61,(IF(Planilha_M.O.!$D$5="s/desoneração",D61))) -> 16.16
A62: 5940 | B62: PÁ CARREGADEIRA SOBRE RODAS, POTÊNCIA LÍQUIDA 128 HP, CAPACIDADE DA CAÇAMBA 1,7 A 2,8 M3, PESO OPERACIONAL 11632 KG - CHP DIURNO. AF_06/2014 | C62: 144.08 | D62: 147.06 | E62: =IF(Planilha_M.O.!$D$5="c/desoneração",C62,(IF(Planilha_M.O.!$D$5="s/desoneração",D62))) -> 147.06
A63: 5942 | B63: PÁ CARREGADEIRA SOBRE RODAS, POTÊNCIA LÍQUIDA 128 HP, CAPACIDADE DA CAÇAMBA 1,7 A 2,8 M3, PESO OPERACIONAL 11632 KG - CHI DIURNO. AF_06/2014 | C63: 53.18 | D63: 56.16 | E63: =IF(Planilha_M.O.!$D$5="c/desoneração",C63,(IF(Planilha_M.O.!$D$5="s/desoneração",D63))) -> 56.16
A64: 90668 | B64: PROJETOR PNEUMÁTICO DE ARGAMASSA PARA CHAPISCO E REBOCO COM RECIPIENTE ACOPLADO | C64: 22.32 | D64: 22.32 | E64: =IF(Planilha_M.O.!$D$5="c/desoneração",C64,(IF(Planilha_M.O.!$D$5="s/desoneração",D64))) -> 22.32
A65: 90669 | B65: PROJETOR PNEUMÁTICO DE ARGAMASSA PARA CHAPISCO E REBOCO COM RECIPIENTE ACOPLADO, TIPO CANEQUINHA, | C65: 5.89 | D65: 5.89 | E65: =IF(Planilha_M.O.!$D$5="c/desoneração",C65,(IF(Planilha_M.O.!$D$5="s/desoneração",D65))) -> 5.89
A66: 91277 | B66: PLACA VIBRATÓRIA REVERSÍVEL, POTÊNCIA 5,5 cv (chp) | C66: 9.84 | D66: 9.84 | E66: =IF(Planilha_M.O.!$D$5="c/desoneração",C66,(IF(Planilha_M.O.!$D$5="s/desoneração",D66))) -> 9.84
A67: 91278 | B67: PLACA VIBRATÓRIA REVERSÍVEL, POTÊNCIA 5,5 cv (chi) | C67: 0.7 | D67: 0.7 | E67: =IF(Planilha_M.O.!$D$5="c/desoneração",C67,(IF(Planilha_M.O.!$D$5="s/desoneração",D67))) -> 0.7
A68: 5678 | B68: RETROESCAVADEIRA SOBRE RODAS, POTÊNCIA 88 hp (chp) | C68: 107.63 | D68: 110.93 | E68: =IF(Planilha_M.O.!$D$5="c/desoneração",C68,(IF(Planilha_M.O.!$D$5="s/desoneração",D68))) -> 110.93
A69: 5679 | B69: RETROESCAVADEIRA SOBRE RODAS, POTÊNCIA 88 hp (chi) | C69: 45.92 | D69: 49.22 | E69: =IF(Planilha_M.O.!$D$5="c/desoneração",C69,(IF(Planilha_M.O.!$D$5="s/desoneração",D69))) -> 49.22
A70: 5684 | B70: ROLO COMPACTADOR VIBRATÓRIO DE UM CILINDRO AÇO LISO, POTÊNCIA 80 hp, PESO OPERACIONAL MÁXIMO 8,1 T, LARGURA DE TRABALHO 1,68 m (chp) | C70: 108.62 | D70: 110.98 | E70: =IF(Planilha_M.O.!$D$5="c/desoneração",C70,(IF(Planilha_M.O.!$D$5="s/desoneração",D70))) -> 110.98
A71: 5685 | B71: ROLO COMPACTADOR VIBRATÓRIO DE UM CILINDRO AÇO LISO, POTÊNCIA 80 hp, PESO OPERACIONAL MÁXIMO 8,1 T, LARGURA DE TRABALHO 1,68 m (chi) | C71: 41.96 | D71: 44.32 | E71: =IF(Planilha_M.O.!$D$5="c/desoneração",C71,(IF(Planilha_M.O.!$D$5="s/desoneração",D71))) -> 44.32
A72: 5867 | B72: ROLO COMPACTADOR VIBRATÓRIO TANDEM AÇO LISO, POTÊNCIA 58 hp, PESO SEM/COM LASTRO 6,5 / 9,4 t, LARGURA DE TRABALHO 1,2 m (chp) | C72: 107.71 | D72: 111.07 | E72: =IF(Planilha_M.O.!$D$5="c/desoneração",C72,(IF(Planilha_M.O.!$D$5="s/desoneração",D72))) -> 111.07
A73: 5869 | B73: ROLO COMPACTADOR VIBRATÓRIO TANDEM AÇO LISO, POTÊNCIA 58 hp, PESO SEM/COM LASTRO 6,5 / 9,4 t, LARGURA DE TRABALHO 1,2 m (chi) | C73: 47.34 | D73: 49.7 | E73: =IF(Planilha_M.O.!$D$5="c/desoneração",C73,(IF(Planilha_M.O.!$D$5="s/desoneração",D73))) -> 49.7
A74: 91692 | B74: SERRA CIRCULAR DE BANCADA COM MOTOR ELÉTRICO POTÊNCIA DE 5HP, COM COIFA PARA DISCO 10" - CHP DIURNO | C74: 24.05 | D74: 26.83 | E74: =IF(Planilha_M.O.!$D$5="c/desoneração",C74,(IF(Planilha_M.O.!$D$5="s/desoneração",D74))) -> 26.83
A75: 91693 | B75: SERRA CIRCULAR DE BANCADA COM MOTOR ELÉTRICO POTÊNCIA DE 5HP, COM COIFA PARA DISCO 10" - CHI DIURNO | C75: 21.11 | D75: 23.89 | E75: =IF(Planilha_M.O.!$D$5="c/desoneração",C75,(IF(Planilha_M.O.!$D$5="s/desoneração",D75))) -> 23.89
A76: 86913 | B76: TORNEIRA CROMADA 1/2" OU 3/4" PARA TANQUE, PADRÃO POPULAR | C76: 27.28 | D76: 27.71 | E76: =IF(Planilha_M.O.!$D$5="c/desoneração",C76,(IF(Planilha_M.O.!$D$5="s/desoneração",D76))) -> 27.71
A77: 95875 | B77: TRANSPORTE COM CAMINHÃO BASCULANTE DE 10 M³, EM VIA URBANA PAVIMENTADA, DMT ATÉ 30 KM (UNIDADE: M3XKM) | C77: 1.68 | D77: 1.71 | E77: =IF(Planilha_M.O.!$D$5="c/desoneração",C77,(IF(Planilha_M.O.!$D$5="s/desoneração",D77))) -> 1.71
A78: 89401 | B78: TUBO, PVC, SOLDÁVEL, DN 20MM - FORNECIMENTO E INSTALAÇÃO | C78: 7.26 | D78: 7.63 | E78: =IF(Planilha_M.O.!$D$5="c/desoneração",C78,(IF(Planilha_M.O.!$D$5="s/desoneração",D78))) -> 7.63
A79: 90586 | B79: VIBRADOR DE IMERSÃO, DIÂMETRO DE PONTEIRA 45 mm, MOTOR ELÉTRICO TRIFÁSICO POTÊNCIA DE 2 CV - CHP DIURNO | C79: 1.79 | D79: 1.79 | E79: =IF(Planilha_M.O.!$D$5="c/desoneração",C79,(IF(Planilha_M.O.!$D$5="s/desoneração",D79))) -> 1.79
A80: 90587 | B80: VIBRADOR DE IMERSÃO, DIÂMETRO DE PONTEIRA 45 mm MOTOR ELÉTRICO TRIFÁSICO POTÊNCIA DE 2 CV - CHI DIURNO | C80: 0.39 | D80: 0.39 | E80: =IF(Planilha_M.O.!$D$5="c/desoneração",C80,(IF(Planilha_M.O.!$D$5="s/desoneração",D80))) -> 0.39

Sheet Planilha_M.O.
A1: PLANILHA MÃO-DE-OBRA
A3: =CONCATENATE("Data Base SINAPI: ",$E$17) -> Data Base SINAPI: JUNHO / 2021
C5: SELECIONAR: | D5: s/desoneração
A7: =D5 -> s/desoneração | C7: Leis Sociais Horistas: | D7: =IF($D$5="c/desoneração",'Encargos Sociais'!C42,'Encargos Sociais'!E42) -> 1.111 | E7: BDI= | F7: =IF($D$5="c/desoneração","28,21%","22,15%") -> 22,15%
C8: Leis Sociais Mensalistas: | D8: =IF($D$5="c/desoneração",'Encargos Sociais'!D42,'Encargos Sociais'!F42) -> 0.6916
A10: =+E17 -> JUNHO / 2021 | C10: Vem da aba Comp.SINAPI c_des. | D10: Vem da aba Comp.SINAPI s_des. | E10: Valor utilizado
A17: Código | B17: Composição | C17: Custo unitário (c/desoneração) | D17: Custo unitário (s/desoneração) | E17: JUNHO / 2021
A18: 88316 | B18: Servente | C18: 15.35 | D18: 17.11 | E18: =IF($D$5="c/desoneração",C18,(IF($D$5="s/desoneração",D18))) -> 17.11
A19: 88238 | B19: Ajudante de armador | C19: 14.11 | D19: 15.67 | E19: 15.67
A20: 88239 | B20: Ajudante de carpinteiro | C20: 15.31 | D20: 17.06 | E20: 17.06
A21: 88253 | B21: Auxiliar de topógrafo | C21: 11.98 | D21: 13.69 | E21: 13.69
A22: 88248 | B22: Auxiliar de encanador | C22: 13.98 | D22: 15.58 | E22: 15.58
A23: 88251 | B23: Auxiliar de serralheiro | C23: 14.83 | D23: 16.49 | E23: 16.49
A24: 88309 | B24: Pedreiro | C24: 18.48 | D24: 20.71 | E24: 20.71
A25: 88310 | B25: Pintor | C25: 19.48 | D25: 21.7 | E25: 21.7
A26: 88262 | B26: Carpinteiro | C26: 18.28 | D26: 20.5 | E26: 20.5
A27: 88260 | B27: Calceteiro | C27: 17.31 | D27: 19.37 | E27: 19.37
A28: 88323 | B28: Telhadista | C28: 18.64 | D28: 20.93 | E28: 20.93
A29: 88245 | B29: Armador | C29: 18.38 | D29: 20.6 | E29: 20.6
A30: 88315 | B30: Serralheiro | C30: 18.38 | D30: 20.6 | E30: 20.6
A31: 88441 | B31: Jardineiro | C31: 17.85 | D31: 20 | E31: 20
A32: 88267 | B32: Encanador | C32: 18.15 | D32: 20.39 | E32: 20.39
A33: 88281 | B33: Motorista de caminhão | C33: 19.59 | D33: 22.14 | E33: 22.14
A34: 88377 | B34: Operador de betoneira | C34: 18.37 | D34: 20.74 | E34: 20.74
A35: 88297 | B35: Operador de máq. e equip. | C35: 21.02 | D35: 23.8 | E35: 23.8
A36: 88298 | B36: Operador de martelete | C36: 20.02 | D36: 22.65 | E36: 22.65
A37: 93572 | B37: Encarregado (mês) | C37: 6799.05 | D37: 7828.88 | E37: 7828.88
A38: 90778 | B38: Engenheiro Civil de Obra | C38: 92.87 | D38: 107.35 | E38: 107.35
A39: 90781 | B39: Topógrafo | C39: 27.62 | D39: 31.8 | E39: =IF($D$5="c/desoneração",C39,(IF($D$5="s/desoneração",D39))) -> 31.8
A40: 88326 | B40: VIGIA NOTURNO COM ENCARGOS COMPLEMENTARES | C40: 19.92 | D40: 22.41 | E40: =IF($D$5="c/desoneração",C40,(IF($D$5="s/desoneração",D40))) -> 22.41
A41: 88264 | B41: ELETRICISTA COM ENCARGOS COMPLEMENTARES | C41: 20.11 | D41: 22.61 | E41: =IF($D$5="c/desoneração",C41,(IF($D$5="s/desoneração",D41))) -> 22.61
A42: 88247 | B42: AUXILIAR DE ELETRICISTA COM ENCARGOS COMPLEMENTARES | C42: 15.41 | D42: 17.17 | E42: =IF($D$5="c/desoneração",C42,(IF($D$5="s/desoneração",D42))) -> 17.17

Sheet Planilha Cotações
A1: PLANILHA DE COTAÇÕES DE INSUMOS
A2: Data das Cotações: Junho2021
A4: OBJETO: | B4: =+PO!$B$9 -> Obras de Aquisição e Instalação de Academias de Ginástica ao ar livre na Praça Grêmio Futebol Portoalegrense (110/03), Praça Guia Lopes (118/08) e Praça Simões Lopes Neto (125/06)
A5: DATA: | B5: =IF(PO!$B$10="","",PO!$B$10) -> 2021-09-14
A6: ART nº: | B6: =IF(PO!$B$11="","",PO!$B$11) -> 
A8: 16 | B8: CAIBRO CEDRINHO 5 x 7 cm | C8: m | D8: CNPJ | E8: Telefone | F8: Contato | G8: Data | H8: Valor | I8: Valor Média
A9: =+Cotações!$D$7 -> Mondai Madeiras | D9: 01.434.693/0001-93 | E9: 3587-1643 | F9: Anderson R. | G9: 2021-06-15 | H9: 20 | I9: =Cotações!M11 -> 22.2
A10: =+Cotações!$F$7 -> Cunha Madeiras | D10: 14.071.368/0001-55 | E10: 3364-2778 | F10: Fábio | G10: 2021-06-15 | H10: 24.4
A11: SCHREINER MADEIRA | D11: 16.701.304/0001-16 | E11: 41-3543-1316 | F11: Carol | G11: 2021-07-07 | H11: 41.25
A13: =+Cotações!A34 -> 44 | B13: Tábua itaúba lixada e aplainada 3,5x19x1,80 | C13: pç | D13: CNPJ | E13: Telefone | F13: Contato | G13: Data | H13: Valor | I13: Valor Mediana
A14: =+Cotações!$D$7 -> Mondai Madeiras | D14: 01.434.693/0001-93 | E14: 3587-1643 | F14: Anderson R. | G14: 2021-06-15 | H14: =+Cotações!D34 -> 130.5 | I14: =Cotações!N34 -> 140.8
A15: =+Cotações!$F$7 -> Cunha Madeiras | D15: 14.071.368/0001-55 | E15: 3364-2778 | F15: Fábio | G15: 2021-06-15 | H15: =+Cotações!F34 -> 200
A16: SCHREINER MADEIRA | D16: 16.701.304/0001-16 | E16: 41-3543-1316 | F16: Carol | G16: 2021-07-07 | H16: =+Cotações!H34 -> 140.8
A18: =+Cotações!A35 -> 45 | B18: Tábua itaúba lixada e aplainada 3,5x19x2,00 | C18: pç | D18: CNPJ | E18: Telefone | F18: Contato | G18: Data | H18: Valor | I18: Valor Mediana
A19: =+Cotações!$D$7 -> Mondai Madeiras | D19: 01.434.693/0001-93 | E19: 3587-1643 | F19: Anderson R. | G19: 2021-06-15 | H19: =+Cotações!D35 -> 145 | I19: =Cotações!N35 -> 145
A20: =+Cotações!$F$7 -> Cunha Madeiras | D20: 14.071.368/0001-55 | E20: 3364-2778 | F20: Fábio | G20: 2021-06-15 | H20: =+Cotações!F35 -> 200
A21: SCHREINER MADEIRA | D21: 16.701.304/0001-16 | E21: 41-3543-1316 | F21: Carol | G21: 2021-07-07 | H21: =+Cotações!H35 -> 140.8
A23: =+Cotações!A43 -> 50 | B23: Parafuso francês zincado 5/16" x 2 1/2" c/ porca | C23: un | D23: CNPJ | E23: Telefone | F23: Contato | G23: Data | H23: Valor | I23: Valor Média
A24: =+Cotações!$D$40 -> SL Parafusos Ltda | D24: 06.046.959/0001-44 | E24: =+Cotações!$E$40 -> 3411-9800 | F24: Carina | G24: 2021-06-30 | H24: =+Cotações!D43 -> 1.39 | I24: =Cotações!M43 -> 1.06
A25: =+Cotações!$F$40 -> Guido A. Jacobus | D25: 92.690.106/0001-82 | E25: =+Cotações!$G$40 -> 3024-1200 | F25: Jéferson | G25: 2021-07-21 | H25: =+Cotações!F43 -> 0.44
A26: =+Cotações!$H$40 -> Central de Parafusos | D26: 91.526.467/0001-25 | E26: =+Cotações!$I$40 -> 3341-9353 | F26: Alexandre | G26: 2021-06-15 | H26: =+Cotações!H43 -> 1.17
A27: =+Cotações!$J$40 -> Brasil dos Parafusos | D27: 10.878.757/0001-36 | E27: =+Cotações!$K$40 -> 3326-1946 | F27: Marta Lopes | G27: 2021-06-17 | H27: =+Cotações!J43 -> 1.24
A29: =+Cotações!A44 -> 51 | B29: Parafuso francês zincado 5/16" x 4" c/ porca | C29: un | D29: CNPJ | E29: Telefone | F29: Contato | G29: Data | H29: Valor | I29: Valor Média
A30: =+Cotações!$D$40 -> SL Parafusos Ltda | D30: 06.046.959/0001-44 | E30: =+Cotações!$E$40 -> 3411-9800 | F30: Carina | G30: 2021-06-30 | H30: =+Cotações!D44 -> 1.91 | I30: =Cotações!M44 -> 1.47
A31: =+Cotações!$F$40 -> Guido A. Jacobus | D31: 92.690.106/0001-82 | E31: =+Cotações!$G$40 -> 3024-1200 | F31: Jéferson | G31: 2021-07-21 | H31: =+Cotações!F44 -> 0.61
A32: =+Cotações!$H$40 -> Central de Parafusos | D32: 91.526.467/0001-25 | E32: =+Cotações!$I$40 -> 3341-9353 | F32: Alexandre | G32: 2021-06-15 | H32: =+Cotações!H44 -> 1.65
A33: =+Cotações!$J$40 -> Brasil dos Parafusos | D33: 10.878.757/0001-36 | E33: =+Cotações!$K$40 -> 3326-1946 | F33: Marta Lopes | G33: 2021-06-17 | H33: =+Cotações!J44 -> 1.72
A35: =+Cotações!A51 -> 58 | B35: Parafuso sextavado aço zincado 1/4" x 2" c/ porca | C35: un | D35: CNPJ | E35: Telefone | F35: Contato | G35: Data | H35: Valor | I35: Valor Média
A36: =+Cotações!$D$40 -> SL Parafusos Ltda | D36: 06.046.959/0001-44 | E36: =+Cotações!$E$40 -> 3411-9800 | F36: Carina | G36: 2021-06-30 | H36: =+Cotações!D51 -> 0.8465 | I36: =Cotações!M51 -> 0.59
A37: =+Cotações!$F$40 -> Guido A. Jacobus | D37: 92.690.106/0001-82 | E37: =+Cotações!$G$40 -> 3024-1200 | F37: Jéferson | G37: 2021-07-21 | H37: =+Cotações!F51 -> 0.24
A38: =+Cotações!$H$40 -> Central de Parafusos | D38: 91.526.467/0001-25 | E38: =+Cotações!$I$40 -> 3341-9353 | F38: Alexandre | G38: 2021-06-15 | H38: =+Cotações!H51 -> 0.6
A39: =+Cotações!$J$40 -> Brasil dos Parafusos | D39: 10.878.757/0001-36 | E39: =+Cotações!$K$40 -> 3326-1946 | F39: Marta Lopes | G39: 2021-06-17 | H39: =+Cotações!J51 -> 0.68
A41: =+Cotações!A85 -> 82 | B41: Abdominal Simples | C41: un | D41: CNPJ | E41: Telefone | F41: Contato | G41: Data | H41: Valor | I41: Valor Média
A42: =+Cotações!$D$84 -> Ziober | D42: 08.374.053/0001-84 | E42: =+Cotações!$E$84 -> 44 3029-4410 | F42: Solaine Teline | G42: 2021-08-05 | H42: =Cotações!D85 -> 5610 | I42: =Cotações!N85 -> 4690
A43: =+Cotações!$F$84 -> Milla Equip. Met. | D43: 10.555.495/0001-79 | E43: =+Cotações!$G$84 -> 19 3363-1051 | F43: Tatiana Demétrio | G43: 2021-08-03 | H43: =+Cotações!F85 -> 4510
A44: =+Cotações!$H$84 -> Flex | D44: 13.898.616/0001-73 | E44: =+Cotações!$I$84 -> 17 3223-2766 | F44: Fernanda | G44: 2021-08-02 | H44: =+Cotações!H85 -> 4690
A46: =+Cotações!A86 -> 83 | B46: Adução e abdução de pernas duplo | C46: un | D46: CNPJ | E46: Telefone | F46: Contato | G46: Data | H46: Valor | I46: Valor Média
A47: =+Cotações!$D$84 -> Ziober | D47: 08.374.053/0001-84 | E47: =+Cotações!$E$84 -> 44 3029-4410 | F47: Solaine Teline | G47: 2021-08-05 | H47: =+Cotações!D86 -> 11490 | I47: =Cotações!N86 -> 9150
A48: =+Cotações!$F$84 -> Milla Equip. Met. | D48: 10.555.495/0001-79 | E48: =+Cotações!$G$84 -> 19 3363-1051 | F48: Tatiana Demétrio | G48: 2021-08-03 | H48: =+Cotações!F86 -> 9150
A49: =+Cotações!$H$84 -> Flex | D49: 13.898.616/0001-73 | E49: =+Cotações!$I$84 -> 17 3223-2766 | F49: Fernanda | G49: 2021-08-02 | H49: =+Cotações!H86 -> 6940
A51: =+Cotações!A87 -> 84 | B51: Esqui triplo conjugado | C51: un | D51: CNPJ | E51: Telefone | F51: Contato | G51: Data | H51: Valor | I51: Valor Média
A52: =+Cotações!$D$84 -> Ziober | D52: 08.374.053/0001-84 | E52: =+Cotações!$E$84 -> 44 3029-4410 | F52: Solaine Teline | G52: 2021-08-05 | H52: =+Cotações!D87 -> 18000 | I52: =Cotações!M87 -> 16140
A53: =+Cotações!$F$84 -> Milla Equip. Met. | D53: 10.555.495/0001-79 | E53: =+Cotações!$G$84 -> 19 3363-1051 | F53: Tatiana Demétrio | G53: 2021-08-03 | H53: =+Cotações!F87 -> 21430
A54: =+Cotações!$H$84 -> Flex | D54: 13.898.616/0001-73 | E54: =+Cotações!$I$84 -> 17 3223-2766 | F54: Fernanda | G54: 2021-08-02 | H54: =+Cotações!H87 -> 8990
A56: =+Cotações!A88 -> 85 | B56: Jogo de barras | C56: un | D56: CNPJ | E56: Telefone | F56: Contato | G56: Data | H56: Valor | I56: Valor Média
A57: =+Cotações!$D$84 -> Ziober | D57: 08.374.053/0001-84 | E57: =+Cotações!$E$84 -> 44 3029-4410 | F57: Solaine Teline | G57: 2021-08-05 | H57: =+Cotações!D88 -> 9600 | I57: =Cotações!M88 -> 9359.33
A58: =+Cotações!$F$84 -> Milla Equip. Met. | D58: 10.555.495/0001-79 | E58: =+Cotações!$G$84 -> 19 3363-1051 | F58: Tatiana Demétrio | G58: 2021-08-03 | H58: =+Cotações!F88 -> 11778
A59: =+Cotações!$H$84 -> Flex | D59: 13.898.616/0001-73 | E59: =+Cotações!$I$84 -> 17 3223-2766 | F59: Fernanda | G59: 2021-08-02 | H59: =+Cotações!H88 -> 6700
A61: =+Cotações!A89 -> 86 | B61: Multiexercitador conjugado 6 funções | C61: un | D61: CNPJ | E61: Telefone | F61: Contato | G61: Data | H61: Valor | I61: Valor Média
A62: =+Cotações!$D$84 -> Ziober | D62: 08.374.053/0001-84 | E62: =+Cotações!$E$84 -> 44 3029-4410 | F62: Solaine Teline | G62: 2021-08-05 | H62: =+Cotações!D89 -> 22200 | I62: =Cotações!M89 -> 16191.33
A63: =+Cotações!$F$84 -> Milla Equip. Met. | D63: 10.555.495/0001-79 | E63: =+Cotações!$G$84 -> 19 3363-1051 | F63: Tatiana Demétrio | G63: 2021-08-03 | H63: =+Cotações!F89 -> 17184
A64: =+Cotações!$H$84 -> Flex | D64: 13.898.616/0001-73 | E64: =+Cotações!$I$84 -> 17 3223-2766 | F64: Fernanda | G64: 2021-08-02 | H64: =+Cotações!H89 -> 9190
A66: =+Cotações!A90 -> 87 | B66: Peitoral duplo | C66: un | D66: CNPJ | E66: Telefone | F66: Contato | G66: Data | H66: Valor | I66: Valor Mediana
A67: =+Cotações!$D$84 -> Ziober | D67: 08.374.053/0001-84 | E67: =+Cotações!$E$84 -> 44 3029-4410 | F67: Solaine Teline | G67: 2021-08-05 | H67: =+Cotações!D90 -> 14220 | I67: =+Insumos!G44 -> 9790
A68: =+Cotações!$F$84 -> Milla Equip. Met. | D68: 10.555.495/0001-79 | E68: =+Cotações!$G$84 -> 19 3363-1051 | F68: Tatiana Demétrio | G68: 2021-08-03 | H68: =+Cotações!F90 -> 9790
A69: =+Cotações!$H$84 -> Flex | D69: 13.898.616/0001-73 | E69: =+Cotações!$I$84 -> 17 3223-2766 | F69: Fernanda | G69: 2021-08-02 | H69: =+Cotações!H90 -> 7700
A71: =+Cotações!A91 -> 88 | B71: Placa orientativa (ATI) | C71: un | D71: CNPJ | E71: Telefone | F71: Contato | G71: Data | H71: Valor | I71: Valor Média
A72: =+Cotações!$D$84 -> Ziober | D72: 08.374.053/0001-84 | E72: =+Cotações!$E$84 -> 44 3029-4410 | F72: Solaine Teline | G72: 2021-08-05 | H72: =+Cotações!D91 -> 8130 | I72: =Cotações!M91 -> 7695.33
A73: =+Cotações!$F$84 -> Milla Equip. Met. | D73: 10.555.495/0001-79 | E73: =+Cotações!$G$84 -> 19 3363-1051 | F73: Tatiana Demétrio | G73: 2021-08-03 | H73: =+Cotações!F91 -> 9966
A74: =+Cotações!$H$84 -> Flex | D74: 13.898.616/0001-73 | E74: =+Cotações!$I$84 -> 17 3223-2766 | F74: Fernanda | G74: 2021-08-02 | H74: =+Cotações!H91 -> 4990
A76: =+Cotações!A92 -> 89 | B76: Pressão de pernas triplo conjugado | C76: un | D76: CNPJ | E76: Telefone | F76: Contato | G76: Data | H76: Valor | I76: Valor Média
A77: =+Cotações!$D$84 -> Ziober | D77: 08.374.053/0001-84 | E77: =+Cotações!$E$84 -> 44 3029-4410 | F77: Solaine Teline | G77: 2021-08-05 | H77: =+Cotações!D92 -> 10860 | I77: =Cotações!M92 -> 9472
A78: =+Cotações!$F$84 -> Milla Equip. Met. | D78: 10.555.495/0001-79 | E78: =+Cotações!$G$84 -> 19 3363-1051 | F78: Tatiana Demétrio | G78: 2021-08-03 | H78: =+Cotações!F92 -> 10706
A79: =+Cotações!$H$84 -> Flex | D79: 13.898.616/0001-73 | E79: =+Cotações!$I$84 -> 17 3223-2766 | F79: Fernanda | G79: 2021-08-02 | H79: =+Cotações!H92 -> 6850
A81: =+Cotações!A93 -> 90 | B81: Puxador duplo | C81: un | D81: CNPJ | E81: Telefone | F81: Contato | G81: Data | H81: Valor | I81: Valor Mediana
A82: =+Cotações!$D$84 -> Ziober | D82: 08.374.053/0001-84 | E82: =+Cotações!$E$84 -> 44 3029-4410 | F82: Solaine Teline | G82: 2021-08-05 | H82: =+Cotações!D93 -> 14220 | I82: =+Insumos!G47 -> 10428
A83: =+Cotações!$F$84 -> Milla Equip. Met. | D83: 10.555.495/0001-79 | E83: =+Cotações!$G$84 -> 19 3363-1051 | F83: Tatiana Demétrio | G83: 2021-08-03 | H83: =+Cotações!F93 -> 10428
A84: =+Cotações!$H$84 -> Flex | D84: 13.898.616/0001-73 | E84: =+Cotações!$I$84 -> 17 3223-2766 | F84: Fernanda | G84: 2021-08-02 | H84: =+Cotações!H93 -> 7690
A86: =+Cotações!A94 -> 91 | B86: Remada (APC) | C86: un | D86: CNPJ | E86: Telefone | F86: Contato | G86: Data | H86: Valor | I86: Valor Mediana
A87: =+Cotações!$D$84 -> Ziober | D87: 08.374.053/0001-84 | E87: =+Cotações!$E$84 -> 44 3029-4410 | F87: Solaine Teline | G87: 2021-08-05 | H87: =+Cotações!D94 -> 8340 | I87: =Cotações!N94 -> 5940
A88: =+Cotações!$F$84 -> Milla Equip. Met. | D88: 10.555.495/0001-79 | E88: =+Cotações!$G$84 -> 19 3363-1051 | F88: Tatiana Demétrio | G88: 2021-08-03 | H88: =+Cotações!F94 -> 5940
A89: =+Cotações!$H$84 -> Flex | D89: 13.898.616/0001-73 | E89: =+Cotações!$I$84 -> 17 3223-2766 | F89: Fernanda | G89: 2021-08-02 | H89: =+Cotações!H94 -> 3890
A91: =+Cotações!A95 -> 92 | B91: Simulador de caminhada triplo conjugado | C91: un | D91: CNPJ | E91: Telefone | F91: Contato | G91: Data | H91: Valor | I91: Valor Média
A92: =+Cotações!$D$84 -> Ziober | D92: 08.374.053/0001-84 | E92: =+Cotações!$E$84 -> 44 3029-4410 | F92: Solaine Teline | G92: 2021-08-05 | H92: =+Cotações!D95 -> 16740 | I92: =Cotações!M95 -> 13224.66
A93: =+Cotações!$F$84 -> Milla Equip. Met. | D93: 10.555.495/0001-79 | E93: =+Cotações!$G$84 -> 19 3363-1051 | F93: Tatiana Demétrio | G93: 2021-08-03 | H93: =+Cotações!F95 -> 15134
A94: =+Cotações!$H$84 -> Flex | D94: 13.898.616/0001-73 | E94: =+Cotações!$I$84 -> 17 3223-2766 | F94: Fernanda | G94: 2021-08-02 | H94: =+Cotações!H95 -> 7800
A96: =+Cotações!A96 -> 93 | B96: Simulador de remo | C96: un | D96: CNPJ | E96: Telefone | F96: Contato | G96: Data | H96: Valor | I96: Valor Mediana
A97: =+Cotações!$D$84 -> Ziober | D97: 08.374.053/0001-84 | E97: =+Cotações!$E$84 -> 44 3029-4410 | F97: Solaine Teline | G97: 2021-08-05 | H97: =+Cotações!D96 -> 6660 | I97: =+Insumos!G50 -> 5640
A98: =+Cotações!$F$84 -> Milla Equip. Met. | D98: 10.555.495/0001-79 | E98: =+Cotações!$G$84 -> 19 3363-1051 | F98: Tatiana Demétrio | G98: 2021-08-03 | H98: =+Cotações!F96 -> 5240
A99: =+Cotações!$H$84 -> Flex | D99: 13.898.616/0001-73 | E99: =+Cotações!$I$84 -> 17 3223-2766 | F99: Fernanda | G99: 2021-08-02 | H99: =+Cotações!H96 -> 5640
A101: =+Cotações!A97 -> 94 | B101: Voador peitoral e voador dorsal (APC) | C101: un | D101: CNPJ | E101: Telefone | F101: Contato | G101: Data | H101: Valor | I101: Valor Mediana
A102: =+Cotações!$D$84 -> Ziober | D102: 08.374.053/0001-84 | E102: =+Cotações!$E$84 -> 44 3029-4410 | F102: Solaine Teline | G102: 2021-08-05 | H102: =+Cotações!D97 -> 13170 | I102: =+Insumos!G51 -> 6200
A103: =+Cotações!$F$84 -> Milla Equip. Met. | D103: 10.555.495/0001-79 | E103: =+Cotações!$G$84 -> 19 3363-1051 | F103: Tatiana Demétrio | G103: 2021-08-03 | H103: =+Cotações!F97 -> 6200
A104: =+Cotações!$H$84 -> Flex | D104: 13.898.616/0001-73 | E104: =+Cotações!$I$84 -> 17 3223-2766 | F104: Fernanda | G104: 2021-08-02 | H104: =+Cotações!H97 -> 3890
A106: =+Cotações!A105 -> 100 | B106: Piso Podotátil 25 x 25 cm | C106: un | D106: CNPJ | E106: Telefone | F106: Contato | G106: Data | H106: Valor | I106: Valor Mediana
A107: =+Cotações!$D$103 -> DPS | D107: 18.710.671/0001-01 | E107: =+Cotações!$E$103 -> 3499-1536 | F107: Janaína Guim. | G107: 2021-06-15 | H107: =+Cotações!D105 -> 3.5 | I107: =+Insumos!G155 -> 3.5
A108: =+Cotações!$F$103 -> Incorevest | D108: 10.975.310/0001-85 | E108: =+Cotações!$G$103 -> 3062-5119 | F108: Manoel | G108: 2021-06-15 | H108: =+Cotações!F105 -> 3.5
A109: =+Cotações!J103 -> RF Rede Pallet | D109: 27.657.284/0001-40 | E109: =+Cotações!K103 -> 3059-7270 | F109: Débora | G109: 2021-01-21 | H109: =+Cotações!J105 -> 4.2
A111: =+Cotações!A115 -> 106 | B111: Microfibra de polipropileno | C111: sc | D111: CNPJ | E111: Telefone | F111: Contato | G111: Data | H111: Valor | I111: Valor Mediana
A112: =+Cotações!$D$114 -> Construtec | D112: 02.062.999/0001-29 | E112: =+Cotações!$E$114 -> 3012-2333 | F112: Eliandra | G112: 2021-06-15 | H112: =+Cotações!D115 -> 33 | I112: =Cotações!N115 -> 23.2
A113: =+Cotações!$F$114 -> Reis e Reis | D113: 00.320.025/0001-72 | E113: =+Cotações!$G$114 -> 12 3966-9977 | F113: Romildo Mesquita | G113: 2021-03-31 | H113: 21.65
A114: =+Cotações!$H$114 -> TecMachine | D114: 10.913.018/0001-38 | E114: =+Cotações!$I$114 -> 11 4643-4846 | F114: Noemi | G114: 2021-06-15 | H114: 25
A116: =+Cotações!A117 -> 107 | B116: Granilha para argamassa de alta resistência (Piso duro) | C116: kg | D116: CNPJ | E116: Telefone | F116: Contato | G116: Data | H116: Valor | I116: =IF(#REF!="NÃO","Valor adotado","Valor Atualizado") -> 
A117: =+Cotações!$D$116 -> Mineração Peixoto | D117: 89.493.506/0001-93 | E117: =+Cotações!$E$116 -> 51 3678-1020 | F117: Jean | G117: 2019-04-24 | H117: =+Cotações!D117 -> 0.74 | I117: =+Insumos!#REF! -> 
A118: =+Cotações!$F$116 -> Grani Torre | D118: 49.042.302/0001-11 | E118: =+Cotações!$G$116 -> 11 2246-1250 | F118: Tamara | G118: 2019-04-09 | H118: =+Cotações!F117 -> 0.65
A119: =+Cotações!$H$116 -> Polipiso | D119: 08.114.238/0001-50 | E119: =+Cotações!$I$116 -> 99116-4697 | F119: Orivaldo | G119: 2019-04-09 | H119: =+Cotações!H117 -> 0.77
A121: =+Cotações!A119 -> 108 | B121: Fundo p/ galvanizado | C121: l | D121: CNPJ | E121: Telefone | F121: Contato | G121: Data | H121: Valor | I121: Valor Média
A122: =+Cotações!$D$118 -> Constinta | D122: 06.102.585/0001-37 | E122: =+Cotações!$E$118 -> 3341-6344 | F122: Ana Bárbara | G122: 2021-06-16 | H122: =+Cotações!D119 -> 35.27 | I122: =+Insumos!G108 -> 34.81
A123: =+Cotações!$H$118 -> Porto Cores | D123: 30.061.635/0001-60 | E123: =+Cotações!$I$118 -> 3346-3339 | F123: Fabrício | G123: 2021-06-16 | H123: =+Cotações!H119 -> 37.22
A124: =+Cotações!$J$118 -> Aquarela Tintas | D124: 92.321.785/0004-65 | E124: =+Cotações!$K$118 -> 3223-0133 | F124: Anderson | G124: 2021-06-16 | H124: =+Cotações!J119 -> 31.94
A126: =+Cotações!A121 -> 109 | B126: Manta Geotêxtil para cura do concreto | C126: m² | D126: CNPJ | E126: Telefone | F126: Contato | G126: Data | H126: Valor | I126: =IF(#REF!="NÃO","Valor adotado","Valor Atualizado") -> 
A127: =+Cotações!$D$120 -> Drenamac | D127: 05.672.634/0001-04 | E127: =+Cotações!$E$120 -> 3029-7593 | F127: Rafael | G127: 2019-04-11 | H127: =+Cotações!D121 -> 2.2 | I127: =+Insumos!#REF! -> 
A128: =+Cotações!$F$120 -> Drenotec | D128: 21.003.970/0002-00 | E128: =+Cotações!$G$120 -> 3119-1244 | F128: Mary | G128: 2019-04-11 | H128: =+Cotações!F121 -> 2.5
A129: =+Cotações!$H$120 -> Geofoco | D129: 16.953.066/0001-36 | E129: =+Cotações!$I$120 -> 0800-378-8500 | F129: Jéssica | G129: 2019-04-12 | H129: =+Cotações!H121 -> 2.1
A131: =+Cotações!A123 -> 110 | B131: Papeleira metálica basculante H-30 | C131: un | D131: CNPJ | E131: Telefone | F131: Contato | G131: Data | H131: Valor | I131: Valor *
A132: =+Cotações!$D$122 -> Prod Equipam. MB | D132: 00.929.345/0001-24 | E132: =+Cotações!$E$122 -> 3377-2035 | F132: Jean | G132: 2021-06-17 | H132: 900 | I132: =+Insumos!G132 -> 900
B133: * Único fornecedor
A135: =+Cotações!A129 -> 113 | B135: Caçamba 4,00 m3 | C135: un | D135: CNPJ | E135: Telefone | F135: Contato | G135: Data | H135: Valor | I135: Valor Média
A136: =+Cotações!$D$128 -> Gaúcha | D136: 08.101.767/0001-19 | E136: =+Cotações!$E$128 -> 3245-3500 | F136: Viviane | G136: 2021-06-14 | H136: =+Cotações!D129 -> 480 | I136: 443.33
A137: =+Cotações!$F$128 -> Pouco Entulho | D137: 25.215.615/0001-66 | E137: =+Cotações!$G$128 -> 51 99859-2250 | F137: Luciana | G137: 2021-06-17 | H137: =+Cotações!F129 -> 400
A138: =+Cotações!$H$128 -> Tirentulho | D138: 05.551.367/0001-17 | E138: =+Cotações!$I$128 -> 3475-2222 | F138: Francieli Bissolotti | G138: 2021-06-15 | H138: =+Cotações!H129 -> 450
A140: =+Cotações!A134 -> 116 | B140: Taxa instalação água DMAE | C140: cj | D140: CNPJ | E140: Telefone | F140: Contato | G140: Data | H140: Valor | I140: Valor*
A141: =+Cotações!$D$133 -> DMAE | D141: 92.924.901/0001-98 | E141: =+Cotações!$E$133 -> 3289-9537 | F141: Ricardo | G141: 2021-01-05 | H141: =+Cotações!D134 -> 465.36 | I141: =Cotações!D134 -> 465.36
B142: *Tarifa municipal
A144: =+Cotações!A136 -> 118 | B144: Água tratada | C144: m³ | D144: CNPJ | E144: Telefone | F144: Contato | G144: Data | H144: Valor | I144: Valor*
A145: =+Cotações!$D$133 -> DMAE | D145: 92.924.901/0001-98 | E145: =+Cotações!$E$133 -> 3289-9537 | F145: Ricardo | G145: 2021-01-05 | H145: =+Cotações!D136 -> 4.02 | I145: =Cotações!D136 -> 4.02
B146: *Tarifa municipal
A148: =+Cotações!A137 -> 119 | B148: Esgoto cloacal | C148: m³ | D148: CNPJ | E148: Telefone | F148: Contato | G148: Data | H148: Valor | I148: Valor*
A149: =+Cotações!$D$133 -> DMAE | D149: 92.924.901/0001-98 | E149: =+Cotações!$E$133 -> 3289-9537 | F149: Ricardo | G149: 2021-01-05 | H149: =+Cotações!D137 -> 3.216 | I149: =Cotações!D137 -> 3.216
B150: *Tarifa municipal
A152: =+Cotações!A139 -> 122 | B152: Laje de Grês 90x45 | C152: un | D152: CNPJ | E152: Telefone | F152: Contato | G152: Data | H152: Valor | I152: Valor Média
A153: =+Cotações!$D$138 -> Rodrigo Paz | D153: 16.975.098/0001-32 | E153: =+Cotações!$E$138 -> 3318-1010 | F153: Rodrigo | G153: 2021-03-31 | H153: =+Cotações!D139 -> 8 | I153: =Cotações!N139 -> 8
A154: =+Cotações!$F$138 -> Alicerce da Const | D154: 11.831.448/0001-73 | E154: =+Cotações!$G$138 -> 3318-1010 | F154: Kassiele | G154: 2021-07-02 | H154: =+Cotações!F139 -> 14.9
A155: =+Cotações!$H$138 -> Maico Pedras | D155: 03.599.794/0001-40 | E155: =+Cotações!$I$138 -> 99817-3559 | F155: Maico | G155: 2021-06-15 | H155: =+Cotações!H139 -> 6
A157: =+Cotações!A150 -> 128 | B157: ART | C157: un | D157: CNPJ | E157: Telefone | F157: Contato | G157: Data | H157: Valor | I157: Valor Atual
A158: =+Cotações!$D$149 -> CREA-RS | D158: 92.695.790/0001-95 | E158: 3320-2100 | F158: Site | G158: 2021-01-05 | H158: =+Cotações!D150 -> 226.5 | I158: =+Insumos!G38 -> 226

Sheet Insumos
A1: PLANILHA DE INSUMOS
A3: Data Base SINAPI: JUNHO / 2021 - Data das Cotações: JULHO / 2021
A5: L. S. Horistas: | C5: =+Planilha_M.O.!$D$7 -> 1.111 | D5: Selecionar
A6: L. S. Mensalistas: | C6: =+Planilha_M.O.!$D$8 -> 0.6916 | D6: MEDIANA
A8: Item | B8: Código | C8: Insumo | D8: Un | E8: Tipo | F8: Origem | G8: Valor | H8: Observações
A9: 1 | B9: 43053 | C9: Aço CA-25 8,0 mm | D9: kg | E9: MAT | F9: SINAPI | G9: 11.51
A10: =+A9+1 -> 2 | B10: 43054 | C10: Aço CA-25 10,0 mm | D10: kg | E10: MAT | F10: SINAPI | G10: 12.89
A11: =+A10+1 -> 3 | B11: 43054 | C11: Aço CA-25 12,5 mm | D11: kg | E11: MAT | F11: SINAPI | G11: 12.89
A12: =+A11+1 -> 4 | B12: 43054 | C12: Aço CA-25 16,0 mm | D12: kg | E12: MAT | F12: SINAPI | G12: 12.89
A13: =+A12+1 -> 5 | B13: 43054 | C13: Aço CA-25 20,0 mm | D13: kg | E13: MAT | F13: SINAPI | G13: 12.89
A14: =+A13+1 -> 6 | B14: 34449 | C14: Aço CA-50 1/4" (6,3 mm) - 0,248 kg/m | D14: kg | E14: MAT | F14: SINAPI | G14: 14.07
A15: =+A14+1 -> 7 | B15: 32 | C15: Aço CA-50 1/4" (6,3 mm) - 0,248 kg/m - Vergalhão | D15: kg | E15: MAT | F15: SINAPI | G15: 12.65
A16: 8 | B16: 33 | C16: Aço CA-50 5/16" (8,0 mm) - 0,393 kg/m - Vergalhão | D16: kg | E16: MAT | F16: SINAPI | G16: 12.73
A17: =+A16+1 -> 9 | B17: 43058 | C17: Aço CA-50 10 mm (3/8") dobrado e cortado - 0,624 kg/m | D17: kg | E17: MAT | F17: SINAPI | G17: 11.94
A18: 10 | B18: 43058 | C18: Aço CA-50 5/8" (16 mm) - 1,570 kg/m | D18: kg | E18: MAT | F18: SINAPI | G18: 11.94
A19: 11 | B19: 43061 | C19: Aço CA-60 4,2mm - 0,109 kg/m | D19: kg | E19: MAT | F19: SINAPI | G19: 11.89
A20: 12 | B20: 43059 | C20: Aço CA-60 4,2mm - 0,109 kg/m - Vergalhão | D20: kg | E20: MAT | F20: SINAPI | G20: 11.35
A21: 13 | B21: 43061 | C21: Aço CA-60 5,0 mm - 0,157 kg/m | D21: kg | E21: MAT | F21: SINAPI | G21: 11.89
A22: 14 | B22: 43062 | C22: Aço CA-60 6,0 mm - 0,222 kg/m | D22: kg | E22: MAT | F22: SINAPI | G22: 12.58
A23: 15 | B23: 43059 | C23: ACO CA-60, 4,2 MM, OU 5,0 MM, OU 6,0 MM, OU 7,0 MM, VERGALHAO | D23: kg | E23: MAT | F23: SINAPI | G23: 11.35
A24: 16 | B24: 122 | C24: Adesivo Plástico para PVC, frasco com 850 g | D24: un | E24: MAT | F24: SINAPI | G24: 83.11
A25: =+A24+1 -> 17 | B25: 10527 | C25: Andaime metálico, tipo torre, largura de 1 a 1,5 m e altura de 1 m locação | D25: mxmês | E25: MAT | F25: SINAPI | G25: 23.5
A26: 18 | B26: 43131 | C26: Arame Galvanizado 8 BWG (0,101 kg/m) | D26: kg | E26: MAT | F26: SINAPI | G26: 27.77
A27: 19 | B27: 43131 | C27: Arame Galvanizado 10 BWG (0,0713 kg/m) | D27: kg | E27: MAT | F27: SINAPI | G27: 27.77
A28: 20 | B28: 43130 | C28: Arame Galvanizado 12 BWG (0,048 kg / m) | D28: kg | E28: MAT | F28: SINAPI | G28: 23.91
A29: 21 | B29: 43132 | C29: ARAME RECOZIDO 16 BWG, D = 1,65 MM (0,016 KG/M) OU 18 BWG, D = 1,25 MM (0,01 KG/M) | D29: kg | E29: MAT | F29: SINAPI | G29: 25.83
A30: 22 | B30: 366 | C30: Areia fina | D30: m³ | E30: MAT | F30: SINAPI | G30: 65
A31: 23 | B31: 367 | C31: Areia grossa | D31: m³ | E31: MAT | F31: SINAPI | G31: 60
A32: 24 | B32: 370 | C32: Areia média | D32: m³ | E32: MAT | F32: SINAPI | G32: 63.5
A33: 25 | B33: 1381 | C33: Argamassa Colante AC-I | D33: kg | E33: MAT | F33: SINAPI | G33: 0.5
A34: 26 | B34: 38546 | C34: ARGAMASSA USINADA AUTOADENSAVEL E AUTONIVELANTE PARA CONTRAPISO, INCLUI BOMBEAMENTO | D34: m³ | E34: MAT | F34: SINAPI | G34: 376.44
A35: 27 | B35: 6081 | C35: Argila ou Barro para aterro ou reaterro | D35: m³ | E35: MAT | F35: SINAPI | G35: 31.59
A36: 28 | B36: 1094 | C36: ARMAÇÃO VERTICAL C/HASTE E CONTRA-PINO, EM CHAPA DE FG 3/16", C/1 ESTRIBO | D36: un | E36: MAT | F36: SINAPI | G36: 13.98
A37: 29 | B37: 11267 | C37: ARRUELA LISA, DE LATÃO POLIDO, DIÂMETRO NOMINAL 5/8", DIÂMETRO DO FURO = 17 mm | D37: un | E37: MAT | F37: SINAPI | G37: 0.8
A38: 30 | B38: =+Cotações!A150 -> 128 | C38: ART | D38: un | E38: MAT | F38: Cotação | G38: =TRUNC((IF($D$6="MÉDIA",Cotações!M150,Cotações!N150))) -> 226
A39: 31 | B39: =+Cotações!A85 -> 82 | C39: (ATI) Abdominal | D39: un | E39: MAT | F39: Cotação | G39: =Cotações!M85 -> 4936.66
A40: 32 | B40: =+Cotações!A86 -> 83 | C40: (ATI) Adução e abdução de pernas duplo | D40: un | E40: MAT | F40: Cotação | G40: =Cotações!M86 -> 9193.33
A41: 33 | B41: =+Cotações!A87 -> 84 | C41: (ATI) Esqui triplo conjugado | D41: un | E41: MAT | F41: Cotação | G41: =Cotações!M87 -> 16140
A42: 34 | B42: =+Cotações!A88 -> 85 | C42: (ATI) Jogo de barras | D42: un | E42: MAT | F42: Cotação | G42: =Cotações!M88 -> 9359.33
A43: 35 | B43: =+Cotações!A89 -> 86 | C43: (ATI) Multiexercitador conjugado 6 funções | D43: un | E43: MAT | F43: Cotação | G43: =Cotações!M89 -> 16191.33
A44: 36 | B44: =+Cotações!A90 -> 87 | C44: (ATI) Peitoral duplo | D44: un | E44: MAT | F44: Cotação | G44: =Cotações!N90 -> 9790
A45: 37 | B45: =+Cotações!A91 -> 88 | C45: (ATI) Placa orientativa | D45: un | E45: MAT | F45: Cotação | G45: =Cotações!M91 -> 7695.33
A46: 38 | B46: =+Cotações!A92 -> 89 | C46: (ATI) Pressão de pernas triplo conjugado | D46: un | E46: MAT | F46: Cotação | G46: =Cotações!M92 -> 9472
A47: 39 | B47: =+Cotações!A93 -> 90 | C47: (ATI) Puxador duplo | D47: un | E47: MAT | F47: Cotação | G47: =TRUNC((IF($D$6="MÉDIA",Cotações!M93,Cotações!N93))) -> 10428
A48: 40 | B48: =+Cotações!A94 -> 91 | C48: (APC) Remada | D48: un | E48: MAT | F48: Cotação | G48: =Cotações!N94 -> 5940
A49: 41 | B49: =+Cotações!A95 -> 92 | C49: (ATI) Simulador de caminhada triplo conjugado | D49: un | E49: MAT | F49: Cotação | G49: =Cotações!M95 -> 13224.66
A50: 42 | B50: =+Cotações!A96 -> 93 | C50: (ATI) Simulador de remo | D50: un | E50: MAT | F50: Cotação | G50: =TRUNC((IF($D$6="MÉDIA",Cotações!M96,Cotações!N96))) -> 5640
A51: 43 | B51: =+Cotações!A97 -> 94 | C51: (APC) Voador peitoral e voador dorsal | D51: un | E51: MAT | F51: Cotação | G51: =Cotações!N97 -> 6200
A52: 44 | B52: 546 | C52: Barra de ferro chata, retangular (qualquer bitola) | D52: kg | E52: MAT | F52: SINAPI | G52: 9.87
A53: 45 | B53: 563 | C53: Barra ferro chato 1 1/2" x 3/8" | D53: m | E53: MAT | F53: SINAPI | G53: 28.31
A54: 46 | B54: 547 | C54: Barra ferro chato 2" x 3/8" | D54: kg | E54: MAT | F54: SINAPI | G54: 37.78
A55: 47 | B55: =+Cotações!A99 -> 95 | C55: Basalto irregular | D55: m² | E55: MAT | F55: Cotação | G55: =Cotações!N99 -> 60
A56: 48 | B56: =+Cotações!A100 -> 96 | C56: Basalto irregular meio retalhão | D56: m² | E56: MAT | F56: Cotação | G56: =TRUNC((IF($D$6="MÉDIA",Cotações!M100,Cotações!N100))) -> 115
A57: 49 | B57: =+Cotações!A101 -> 97 | C57: Basalto regular talhado | D57: m² | E57: MAT | F57: Cotação | G57: =Cotações!N101 -> 87.5
A58: 50 | B58: =+Cotações!A102 -> 98 | C58: Basalto regular serrado | D58: m² | E58: MAT | F58: Cotação | G58: =TRUNC((IF($D$6="MÉDIA",Cotações!M102,Cotações!N102))) -> 115
A59: 51 | B59: 36155 | C59: Bloco concreto tipo holandês cor natural - 6 cm - 35 MPa | D59: m² | E59: MAT | F59: SINAPI | G59: 31.66
A60: 52 | B60: 38783 | C60: BLOCO CERAMICO DE VEDACAO COM FUROS NA HORIZONTAL, 11,5 X 19 X 19 CM - 4,5 MPA (NBR 15270) | D60: un | E60: MAT | F60: SINAPI | G60: 0.96
A61: 53 | B61: 20086 | C61: Bucha de redução de PVC, longa 50 x 40 mm, esgoto predial | D61: un | E61: MAT | F61: SINAPI | G61: 2.79
A62: 54 | B62: 4375 | C62: Bucha nylon S-6 4,2 x 38 | D62: un | E62: MAT | F62: SINAPI | G62: 0.16
A63: 55 | B63: 4376 | C63: Bucha nylon S-8 4,8 x 45 | D63: un | E63: MAT | F63: SINAPI | G63: 0.31
A64: 56 | B64: 11950 | C64: BUCHA NYLON S/ABA S6, C/PARAFUSO DE 4,2 x 40 mm EM AÇO ZINCADO C/ROSCA SOBERBA | D64: un | E64: MAT | F64: SINAPI | G64: 0.37
A65: 57 | B65: 41954 | C65: Cabo de aço galvanizado, diâmetro 9,53 mm | D65: kg | E65: MAT | F65: SINAPI | G65: 75.64
A66: 58 | B66: =+Cotações!A129 -> 113 | C66: Caçamba 4,00 m³ | D66: un | E66: MAT | F66: Cotação | G66: =Cotações!M129 -> 443.33
A67: 59 | B67: 4400 | C67: CAIBRO NAO APARELHADO, *6 X 8* CM, EM MACARANDUBA, ANGELIM OU EQUIVALENTE DA REGIAO - BRUTA | D67: m | E67: MAT | F67: SINAPI | G67: 16.87
A68: 60 | B68: 4430 | C68: Caibro de madeira não aparelhada 5 x 6 cm | D68: m | E68: MAT | F68: SINAPI | G68: 10.6
A69: 61 | B69: 34643 | C69: CAIXA INSPEÇÃO EM POLIETILENO PARA ATERRAMENTO E PÁRA RAIOS DIÂMETRO = 300 mm | D69: un | E69: MAT | F69: SINAPI | G69: 20.08
A70: 62 | B70: 39809 | C70: CAIXA P/MEDIDOR POLIFÁSICO, EM POLICARBONATO/TERMOPLÁSTICO, P/1 DISJUNTOR | D70: un | E70: MAT | F70: SINAPI | G70: 138.18
A71: 63 | B71: 25963 | C71: CALCARIO DOLOMITICO A (POSTO PEDREIRA/FORNECEDOR, SEM FRETE) | D71: kg | E71: MAT | F71: SINAPI | G71: 0.08
A72: =+A71+1 -> 64 | B72: 4777 | C72: Cantoneira aço (abas iguais) qualquer bitola, espessura entre 1/8" e 1/4" | D72: kg | E72: MAT | F72: SINAPI | G72: 10.65
A73: =+A72+1 -> 65 | B73: 4777 | C73: Cantoneira ferro 1 1/4" x 3/16" | D73: kg | E73: MAT | F73: SINAPI | G73: 10.65
A74: 66 | B74: 4777 | C74: Cantoneira ferro 1 1/2" x 1/4" | D74: kg | E74: MAT | F74: SINAPI | G74: 10.65
A75: 67 | B75: 11046 | C75: CHAPA DE ACO GALVANIZADA BITOLA GSG 18, E = 1,25 MM (10,00 KG/M2) | D75: kg | E75: MAT | F75: SINAPI | G75: 15.77
A76: 68 | B76: 11049 | C76: CHAPA DE ACO GALVANIZADA BITOLA GSG 22, E = 0,80 MM (6,40 KG/M2) | D76: kg | E76: MAT | F76: SINAPI | G76: 16.43
A77: 69 | B77: 11051 | C77: CHAPA DE ACO GALVANIZADA BITOLA GSG 26, E = 0,50 MM (4,00 KG/M2) | D77: kg | E77: MAT | F77: SINAPI | G77: 17.25
A78: 70 | B78: 1355 | C78: Chapa compensado resinado 14 mm | D78: m² | E78: MAT | F78: SINAPI | G78: 28.72
A79: 71 | B79: 1347 | C79: Chapa de madeira compensada plastificada 12 mm | D79: m² | E79: MAT | F79: SINAPI | G79: 27.6
A80: 72 | B80: 1342 | C80: Chapa compensado plastificado 14 mm | D80: m² | E80: MAT | F80: SINAPI | G80: 71.14
A81: 73 | B81: 1333 | C81: Chapa de aço 1/2" | D81: kg | E81: MAT | F81: SINAPI | G81: 12.53
A82: 74 | B82: 1330 | C82: Chapa de aço 1/4" | D82: kg | E82: MAT | F82: SINAPI | G82: 12.41
A83: 75 | B83: 34353 | C83: CIMENTO COLA AC-2 | D83: kg | E83: MAT | F83: SINAPI | G83: 0.98
A84: 76 | B84: 1379 | C84: Cimento Portland CP-II 32 | D84: kg | E84: MAT | F84: SINAPI | G84: 0.65
A85: 77 | B85: 1527 | C85: Concreto usinado bombeável, fck=25 MPa, slump = 100 +/- 20 mm, inclui serviço de bombeamento | D85: m³ | E85: MAT | F85: SINAPI | G85: 384.28
A86: 78 | B86: 34498 | C86: Cone de sinalização em PVC flexível, h=70/76 cm | D86: un | E86: MAT | F86: SINAPI | G86: 114.77
A87: 79 | B87: 11864 | C87: CONECTOR METÁLICO TIPO PARAFUSO FENDIDO (SPLIT BOLT), PARA CABOS ATÉ 95 mm2 | D87: un | E87: MAT | F87: SINAPI | G87: 29.18
A88: 80 | B88: =+Cotações!A76 -> 76 | C88: Corrente aço galvanizado 5 mm elo longo 22 x 45 mm | D88: kg | E88: MAT | F88: Cotação | G88: =Cotações!M76 -> 23.08
A89: 81 | B89: =+Cotações!A144 -> 125 | C89: Cuba inox p/bebedouro 38 cm | D89: un | E89: MAT | F89: Cotação | G89: =Cotações!M144 -> 189.7
A90: 82 | B90: 1970 | C90: Curva PVC longa 90 esgoto predial 100 mm | D90: un | E90: MAT | F90: SINAPI | G90: 55.87
A91: 83 | B91: 2692 | C91: Desmoldante p/formas de madeira | D91: l | E91: MAT | F91: SINAPI | G91: 4.46
A92: =+A91+1 -> 84 | B92: 25931 | C92: DISCO DE CORTE DIAMANTADO SEGMENTADO DIAMETRO DE 180 MM PARA ESMERILHADEIRA 7 " | D92: un | E92: MAT | F92: SINAPI | G92: 92.37
A93: 85 | B93: 2421 | C93: Dobradiça ferro galvanizado 4" x 3" | D93: un | E93: MAT | F93: SINAPI | G93: 23.91
A94: 86 | B94: 11002 | C94: ELETRODO REVESTIDO AWS - E6013, DIAMETRO IGUAL A 2,50 MM | D94: kg | E94: MAT | F94: SINAPI | G94: 41.2
A95: =A94+1 -> 87 | B95: 2705 | C95: ENERGIA ELÉTRICA ATÉ 2000 kWh INDUSTRIAL, SEM DEMANDA | D95: kWh | E95: MAT | F95: SINAPI | G95: 0.91
A96: =A95+1 -> 88 | B96: 6141 | C96: ENGATE/RABICHO FLEXIVEL PLASTICO (PVC OU ABS) BRANCO 1/2 " X 30 CM | D96: un | E96: MAT | F96: SINAPI | G96: 4.91
A97: 89 | B97: 39017 | C97: Espaçador circular em plástico, 4,2 a 12,5 mm | D97: m | E97: MAT | F97: SINAPI | G97: 0.13
A98: 90 | B98: 10886 | C98: EXTINTOR DE INCENDIO PORTATIL COM CARGA DE AGUA PRESSURIZADA DE 10 L, CLASSE A | D98: un | E98: MAT | F98: SINAPI | G98: 183.75
A99: 91 | B99: 10891 | C99: EXTINTOR DE INCENDIO PORTATIL COM CARGA DE PO QUIMICO SECO (PQS) DE 4 KG, CLASSE BC | D99: un | E99: MAT | F99: SINAPI | G99: 177.69
A100: 92 | B100: 38125 | C100: Fertilizante orgânico composto, classe A | D100: kg | E100: MAT | F100: SINAPI | G100: 1.33
A101: 93 | B101: 25951 | C101: FERTILIZANTE NPK - 10:10:10 | D101: kg | E101: MAT | F101: SINAPI | G101: 2.25
A102: 94 | B102: 12815 | C102: Fita crepe rolo 25 mm x 50 m | D102: un | E102: MAT | F102: SINAPI | G102: 7.28
A103: 95 | B103: 14153 | C103: FITA METÁLICA PERFURADA, L = 18 mm, ROLO DE 30 m, CARGA RECOMENDADA = 30 kgf | D103: un | E103: MAT | F103: SINAPI | G103: 52.81
A104: 96 | B104: 3148 | C104: Fita veda rosca em rolos de 18 mm x 50 m | D104: un | E104: MAT | F104: SINAPI | G104: 18.4
A105: 97 | B105: 42015 | C105: Fita zebrada | D105: m | E105: MAT | F105: SINAPI | G105: 1.12
A106: 98 | B106: =+Cotações!A83 -> 81 | C106: Fradinho em ferro fundido | D106: un | E106: MAT | F106: Cotação | G106: =Cotações!M83 -> 314
A107: 99 | B107: 7307 | C107: Fundo anticorrosivo tipo zarcão | D107: l | E107: MAT | F107: SINAPI | G107: 29.63
A108: =+A107+1 -> 100 | B108: =+Cotações!A119 -> 108 | C108: Fundo p/galvanizado | D108: l | E108: MAT | F108: Cotação | G108: =Cotações!M119 -> 34.81
A109: 101 | B109: 6086 | C109: Fundo sintético nivelador branco fosco | D109: gl | E109: MAT | F109: SINAPI | G109: 90.88
A110: 102 | B110: 4011 | C110: GEOTEXTIL NAO TECIDO AGULHADO DE FILAMENTOS CONTINUOS 100% | D110: m² | E110: MAT | F110: SINAPI | G110: 6.75
A111: 103 | B111: 3322 | C111: Grama catarina (Grama São Carlos) | D111: m² | E111: MAT | F111: SINAPI | G111: 20.45
A112: 104 | B112: =+Cotações!A12 -> 20 | C112: Guia cedrinho 2,5 x 10 cm | D112: m | E112: MAT | F112: Cotação | G112: =Cotações!N12 -> 14.37
A113: 105 | B113: =+Cotações!A13 -> 22 | C113: Guia cedrinho 2,5 x 20 cm | D113: m | E113: MAT | F113: Cotação | G113: =Cotações!N13 -> 28.75
A114: 106 | B114: 3398 | C114: ISOLADOR DE PORCELANA, TIPO ROLDANA, DIMENSÕES DE 72 x 72 mm | D114: un | E114: MAT | F114: SINAPI | G114: 4.77
A115: 107 | B115: 3505 | C115: Joelho PVC roscável 90⁰ 3/4" | D115: un | E115: MAT | F115: SINAPI | G115: 4.64
A116: 108 | B116: =+Cotações!A139 -> 122 | C116: Laje de grês 90 x 45 cm | D116: un | E116: MAT | F116: Cotação | G116: =Cotações!M139 -> 9.63
A117: 109 | B117: =+Cotações!A104 -> 99 | C117: Lajota concreto | D117: m² | E117: MAT | F117: Cotação | G117: =Cotações!N104 -> 32.9
A118: 110 | B118: =+Cotações!A37 -> 46 | C118: Laminado melamínico fosco esp = 2,8 mm | D118: m² | E118: MAT | F118: Cotação | G118: =Cotações!N37 -> 32.25
A119: 111 | B119: 3768 | C119: Lixa p/ferro | D119: fl | E119: MAT | F119: SINAPI | G119: 3.37
A120: 112 | B120: 3767 | C120: Lixa p/madeira | D120: fl | E120: MAT | F120: SINAPI | G120: 0.79
A121: 113 | B121: 89.50.09 | C121: BANHEIRO QUIMICO 2 MANUT. 2 ROLOS PAPEL HIGIENICO | D121: mês | E121: MAT | F121: SUDECAP | G121: 680
A122: 114 | B122: 3777 | C122: LONA PLASTICA PESADA PRETA, E = 150 MICRA | D122: m² | E122: MAT | F122: SINAPI | G122: 1.47
A123: 115 | B123: 4011 | C123: Manta Bidim RT-10 | D123: m² | E123: MAT | F123: SINAPI | G123: 5.29
A124: 116 | B124: 3288 | C124: Meia cana cedrinho 2,5 x 2,5 cm | D124: m | E124: MAT | F124: SINAPI | G124: 4.29
A125: 117 | B125: 4059 | C125: Meio-fio pré-moldado, comp. 1 m, 30 x 15/12 cm (h x l1/l2) | D125: m | E125: MAT | F125: SINAPI | G125: 22.86
A126: 118 | B126: =+Cotações!A115 -> 106 | C126: Microfibra de polipropileno | D126: sc | E126: MAT | F126: Cotação | G126: =Cotações!N115 -> 23.2
A127: 119 | B127: 4107 | C127: Mourão de concreto reto, 10 x 10 cm, h= 2,30 m | D127: un | E127: MAT | F127: SINAPI | G127: 43.99
A128: 120 | B128: 36797 | C128: Mourão de concreto curvo, 10 x 10 cm, h= 2,60 m + curva de 0,40 m | D128: un | E128: MAT | F128: SINAPI | G128: 46.66
A129: 121 | B129: 4211 | C129: Nipel PVC roscável 3/4" | D129: un | E129: MAT | F129: SINAPI | G129: 1.93
A130: 122 | B130: 7252 | C130: LOCACAO DE NIVEL OPTICO, COM PRECISAO DE 0,7 MM, AUMENTO DE 32X | D130: un | E130: MAT | F130: SINAPI | G130: 2.03
A131: =+A129+1 -> 122 | B131: 4227 | C131: Óleo lubrificante para motores | D131: l | E131: MAT | F131: SINAPI | G131: 1.93
A132: =+A131+1 -> 123 | B132: =+Cotações!A123 -> 110 | C132: Papeleira externa metálica H-30 | D132: un | E132: MAT | F132: Cotação | G132: =TRUNC((IF($D$6="MÉDIA",Cotações!M123,Cotações!N123))) -> 900
A133: 124 | B133: =+Cotações!A41 -> 48 | C133: Parafuso aço inox 1/4" x 3" c/porca | D133: un | E133: MAT | F133: Cotação | G133: =Cotações!M41 -> 2.03
A134: 125 | B134: =+Cotações!A42 -> 49 | C134: Parafuso francês zincado 5/16" x 2" c/porca | D134: un | E134: MAT | F134: Cotação | G134: =Cotações!M42 -> 0.91
A135: 126 | B135: =+Cotações!A43 -> 50 | C135: Parafuso francês zincado 5/16" x 2 1/2" c/porca | D135: un | E135: MAT | F135: Cotação | G135: =Cotações!M43 -> 1.06
A136: 127 | B136: =+Cotações!A44 -> 51 | C136: Parafuso francês zincado 5/16" x 4" c/porca | D136: un | E136: MAT | F136: Cotação | G136: =Cotações!M44 -> 1.47
A137: 128 | B137: =+Cotações!A45 -> 52 | C137: Parafuso francês zincado 5/16" x 5" c/porca | D137: un | E137: MAT | F137: Cotação | G137: =Cotações!M45 -> 1.74
A138: 129 | B138: =+Cotações!A46 -> 53 | C138: Parafuso inox auto atarraxante 4,8 x 70 | D138: un | E138: MAT | F138: Cotação | G138: =Cotações!N46 -> 1.01
A139: =+A138+1 -> 130 | B139: =+Cotações!A47 -> 54 | C139: Parafuso inox auto atarraxante 4,8 x 100 | D139: un | E139: MAT | F139: Cotação | G139: =Cotações!M47 -> 2.52
A140: =+A139+1 -> 131 | B140: 4346 | C140: PARAFUSO FERRO POLIDO, SEXTAVADO, D=5/8", C/PORCA E ARRUELA DE PRESSÃO MÉDIA | D140: un | E140: MAT | F140: SINAPI | G140: 6.93
A141: 132 | B141: 4356 | C141: Parafuso rosca soberba 4,8 x 45 mm | D141: un | E141: MAT | F141: SINAPI | G141: 0.16
A142: =+A141+1 -> 133 | B142: 4332 | C142: Parafuso sextavado aço zincado 3/8"x 2" | D142: un | E142: MAT | F142: SINAPI | G142: 0.68
A143: 134 | B143: =+Cotações!A48 -> 55 | C143: Parafuso sextavado aço zincado 1/2" x 1 1/2" | D143: un | E143: MAT | F143: Cotação | G143: =Cotações!M48 -> 1.7
A144: 135 | B144: =+Cotações!A49 -> 56 | C144: Parafuso sextavado aço zincado 1/2" x 3 1/2" | D144: un | E144: MAT | F144: Cotação | G144: =Cotações!M49 -> 3.38
A145: 136 | B145: =+Cotações!A51 -> 58 | C145: Parafuso sextavado aço zincado c/porca 1/4" x 2" | D145: un | E145: MAT | F145: Cotação | G145: =Cotações!M51 -> 0.59
A146: 137 | B146: 4385 | C146: Paralelepípedo granítico ou basáltico | D146: un | E146: MAT | F146: SINAPI | G146: 1.52
A147: 138 | B147: 4813 | C147: PLACA DE OBRA (PARA CONSTRUCAO CIVIL) EM CHAPA GALVANIZADA *N. 22* | D147: un | E147: MAT | F147: SINAPI | G147: 225
A148: 139 | B148: 4720 | C148: Pedra britada nº 0 | D148: m³ | E148: MAT | F148: SINAPI | G148: 63.85
A149: 140 | B149: 4721 | C149: Pedra britada nº 1 | D149: m³ | E149: MAT | F149: SINAPI | G149: 55.3
A150: 141 | B150: 4718 | C150: PEDRA BRITADA N. 2 (19 A 38 MM) POSTO PEDREIRA/FORNECEDOR, SEM FRETE | D150: m³ | E150: MAT | F150: SINAPI | G150: 55.6
A151: 142 | B151: =+Cotações!A142 -> 124 | C151: Pedra de alicerce 20 x 20 x 20 cm | D151: un | E151: MAT | F151: Cotação | G151: =Cotações!M142 -> 5.25
A152: 143 | B152: =+Cotações!A140 -> 123 | C152: Pedra de grês 43 x 21 x 12 cm | D152: un | E152: MAT | F152: Cotação | G152: =Cotações!M140 -> 2.09
A153: 144 | B153: 4708 | C153: PEDRA PORTUGUESA OU PETIT PAVE, BRANCA OU PRETA | D153: m² | E153: MAT | F153: SINAPI | G153: 217.56
A154: 145 | B154: 37395 | C154: PINO DE ACO COM FURO, HASTE = 27 MM (ACAO DIRETA) | D154: m | E154: MAT | F154: SINAPI | G154: 38.39
A155: 146 | B155: =+Cotações!A105 -> 100 | C155: Piso podotátil 25x25 cm | D155: un | E155: MAT | F155: Cotação | G155: =Cotações!N105 -> 3.5
A156: 147 | B156: =+Cotações!A127 -> 112 | C156: Placa de granito | D156: un | E156: MAT | F156: Cotação | G156: =Cotações!M127 -> 697.5
A157: 148 | B157: 4813 | C157: PLACA DE OBRA (PARA CONSTRUCAO CIVIL) EM CHAPA GALVANIZADA *N. 22*, ADESIVADA, DE *2,0 X 1,125* M | D157: m² | E157: MAT | F157: SINAPI | G157: 225
A158: 149 | B158: 4741 | C158: Pó de pedra | D158: m³ | E158: MAT | F158: SINAPI | G158: 52.24
A159: 150 | B159: 2745 | C159: PONTALETE ROLIÇO SEM TRATAMENTO, D = 8 A 11 CM, H = 3 M, EM EUCALIPTO OU EQUIVALENTE DA REGIAO - BRUTA (PARA ESCORAMENTO) | D159: m | E159: MAT | F159: SINAPI | G159: 3.39
A160: 151 | B160: 4491 | C160: PONTALETE EM PINUS 7,5 x 7,5 cm | D160: m | E160: MAT | F160: SINAPI | G160: 4.07
A161: 152 | B161: 4339 | C161: Porca sextavada aço zincado 1/2" | D161: un | E161: MAT | F161: SINAPI | G161: 0.34
A162: 153 | B162: 4342 | C162: Porca sextavada aço zincado 3/8" | D162: un | E162: MAT | F162: SINAPI | G162: 0.14
A163: 154 | B163: 39997 | C163: PORCA ZINCADA, SEXTAVADA, DIÂMETRO 1/4" | D163: un | E163: MAT | F163: SINAPI | G163: 0.2
A164: 155 | B164: 20247 | C164: Prego de aço 15 x 15 c/cabeça | D164: kg | E164: MAT | F164: SINAPI | G164: 22.47
A165: 156 | B165: 5074 | C165: Prego de aço 15 x 18 c/cabeça | D165: kg | E165: MAT | F165: SINAPI | G165: 22.74
A166: 157 | B166: 5075 | C166: PREGO DE AÇO 18 x 30 C/CABEÇA | D166: kg | E166: MAT | F166: SINAPI | G166: 21.11
A167: 158 | B167: 5068 | C167: PREGO DE ACO POLIDO COM CABECA 17 X 21 (2 X 11) | D167: kg | E167: MAT | F167: SINAPI | G167: 21.11
A168: 159 | B168: 5073 | C168: Prego de aço 17 x 24 c/cabeça | D168: kg | E168: MAT | F168: SINAPI | G168: 20.68
A169: =+A168+1 -> 160 | B169: 40304 | C169: Prego de aço 17 x 27 c/cabeça dupla | D169: kg | E169: MAT | F169: SINAPI | G169: 25.05
A170: 161 | B170: 5061 | C170: PREGO DE AÇO 18 x 27 C/CABEÇA | D170: kg | E170: MAT | F170: SINAPI | G170: 20.75
A171: 162 | B171: 39027 | C171: Prego de aço 19 x 36 c/cabeça | D171: kg | E171: MAT | F171: SINAPI | G171: 20.27
A172: 163 | B172: 5044 | C172: POSTE DE CONCRETO CIRCULAR, 200 kg, H = 9 m | D172: un | E172: MAT | F172: SINAPI | G172: 920.7
A173: 164 | B173: 20043 | C173: REDUÇÃO EXCÊNTRICA PVC P/ ESGOTO PREDIAL 100 x 50 mm | D173: un | E173: MAT | F173: SINAPI | G173: 8.94
A174: 165 | B174: 6016 | C174: REGISTRO GAVETA BRUTO EM LATÃO FORJADO, BITOLA 3/4" | D174: un | E174: MAT | F174: SINAPI | G174: 32.79
A175: 166 | B175: =+Cotações!A107 -> 101 | C175: Saibro rosa - posto obra | D175: m³ | E175: MAT | F175: Cotação | G175: =Cotações!M107 -> 59
A176: 167 | B176: =+Cotações!A8 -> 27 | C176: Sarrafo cedrinho 2,5 x 2,5 cm | D176: m | E176: MAT | F176: Cotação | G176: =Cotações!N8 -> 4.6
A177: 168 | B177: =+Cotações!A9 -> 28 | C177: Sarrafo cedrinho 2,5 x 5,0 cm | D177: m | E177: MAT | F177: Cotação | G177: =Cotações!N9 -> 7.5
A178: 169 | B178: 4417 | C178: Sarrafo de madeira não aparelhada 2,5x7 cm | D178: m | E178: MAT | F178: SINAPI | G178: 32.79
A179: 170 | B179: 4460 | C179: Sarrafo não aparelhado 2,5x10 cm | D179: m | E179: MAT | F179: SINAPI | G179: 7.48
A180: 171 | B180: 4512 | C180: SARRAFO DE MADEIRA NAO APARELHADA 2,5 X 5 CM (1 X 2 ") PINUS, MISTA OU EQUIVALENTE DA REGIAO | D180: m | E180: MAT | F180: SINAPI | G180: 0.98
A181: 172 | B181: 4517 | C181: Sarrafo pinus 2,5 x 7,5 cm | D181: m | E181: MAT | F181: SINAPI | G181: 1.53
A182: 173 | B182: 5318 | C182: Solvente Diluente a base de aguarrás | D182: l | E182: MAT | F182: SINAPI | G182: 17.98
A183: 174 | B183: 6193 | C183: Tábua de madeira não aparelhada cedrinho 2,5 x 20 cm | D183: m | E183: MAT | F183: SINAPI | G183: 14.98
A184: 175 | B184: 6189 | C184: Tábua de madeira não aparelhada cedrinho 2,5 x 30 cm | D184: m | E184: MAT | F184: SINAPI | G184: 21.86
A185: 176 | B185: =+Cotações!$A$154 -> 130 | C185: Tabuleiro p/mesa de damas 40 x 40 cm | D185: un | E185: MAT | F185: Cotação | G185: =TRUNC((IF($D$6="MÉDIA",Cotações!M154,Cotações!N154))) -> 950 | H185: VALOR ATUALIZADO
A186: 177 | B186: 1163 | C186: CAP OU TAMPAO DE FERRO GALVANIZADO, COM ROSCA BSP, DE 3/4" | D186: un | E186: MAT | F186: SINAPI | G186: 5.43
A187: 178 | B187: 1164 | C187: Tampão de ferro galvanizado de 1 1/4" | D187: un | E187: MAT | F187: SINAPI | G187: 12.08
A188: 179 | B188: 1165 | C188: Tampão de ferro galvanizado de 1 1/2" | D188: un | E188: MAT | F188: SINAPI | G188: 14.92
A189: 180 | B189: 1166 | C189: Tampão de ferro galvanizado de 2" | D189: un | E189: MAT | F189: SINAPI | G189: 21.55
A190: 181 | B190: 1169 | C190: Tampão de ferro galvanizado de 2 1/2" | D190: un | E190: MAT | F190: SINAPI | G190: 41.16
A191: 182 | B191: 1168 | C191: Tampão de ferro galvanizado de 3" | D191: un | E191: MAT | F191: SINAPI | G191: 55.4
A192: 183 | B192: 34558 | C192: TELA DE ACO SOLDADA GALVANIZADA/ZINCADA PARA ALVENARIA, FIO D = *1,20 A 1,70* MM, MALHA 15 X 15 MM, (C X L) *50 X 10,5* CM | D192: m² | E192: MAT | F192: SINAPI | G192: 5.76
A193: 184 | B193: 37411 | C193: TELA DE ACO SOLDADA GALVANIZADA/ZINCADA PARA ALVENARIA, FIO D = *1,24 MM, MALHA 25 X 25 MM | D193: m² | E193: MAT | F193: SINAPI | G193: 33.5
A194: 185 | B194: 37524 | C194: TELA PLASTICA LARANJA, TIPO TAPUME PARA SINALIZACAO, MALHA RETANGULAR, ROLO 1.20 X 50 M (L X C) | D194: m | E194: MAT | F194: SINAPI | G194: 2.06
A195: 186 | B195: 7155 | C195: Tela de aço soldada CA-60 4,2 mm 10 x 10 cm (Q-138) | D195: m² | E195: MAT | F195: SINAPI | G195: 35.27
A196: 187 | B196: 7158 | C196: TELA DE ARAME GALVANIZADA QUADRANGULAR / LOSANGULAR, FIO 2,77 MM (12 BWG), MALHA 5 X 5 CM, H = 2 M | D196: m² | E196: MAT | F196: SINAPI | G196: 23.48
A197: 188 | B197: 21141 | C197: Tela de aço soldada CA-60 4,2 mm 15 x 15 cm (Q-92) | D197: m² | E197: MAT | F197: SINAPI | G197: 24.18
A198: 189 | B198: 7156 | C198: Tela de aço soldada CA-60 5,0 mm 10 x 10 cm (Q-196) | D198: m² | E198: MAT | F198: SINAPI | G198: 51.7
A199: 190 | B199: 7258 | C199: TIJOLO CERAMICO MACICO *5 X 10 X 20* CM | D199: un | E199: MAT | F199: SINAPI | G199: 0.62
A200: 191 | B200: 10617 | C200: Tijolo cerâmico refratário 6,3 x 11,4 x 22,9 cm | D200: un | E200: MAT | F200: SINAPI | G200: 5.05
A201: 192 | B201: 34401 | C201: TIJOLO CERÂMICO LAMINADO 5,5 x 11 x 23 cm | D201: un | E201: MAT | F201: SINAPI | G201: 1.71
A202: 193 | B202: 7311 | C202: TINTA ESMALTE SINTETICO PREMIUM ACETINADO | D202: l | E202: MAT | F202: SINAPI | G202: 28.37
A203: 194 | B203: 7348 | C203: Tinta acrílica premium para piso | D203: l | E203: MAT | F203: SINAPI | G203: 17.12
... 30 more rows

Sheet Cotações
A1: COTAÇÕES DE INSUMOS
A3: *Na célula comentário com o nome do fornecedor, e-mail e data da cotação. | K3: Data Cotações: | N3: Junho / 2021
A6: Código | B6: Insumo | C6: un | D6: Fornecedor 1 | E6: Fone | F6: Fornecedor 2 | G6: Fone | H6: Fornecedor 3 | I6: Fone | J6: Reserva | L6: Observações | M6: Média | N6: Mediana
D7: Mondai Madeiras | E7: 3587-1643 | F7: Cunha Madeiras | G7: 3364-2778 | H7: Madereira Guarujá | I7: 3246-5955
A8: 27 | B8: Sarrafo cedrinho 2,5 x 2,5 cm | C8: m | D8: 4 | F8: 4.9 | H8: 4.6 | M8: =TRUNC((AVERAGE(D8,F8,H8)),2) -> 4.5 | N8: =TRUNC((MEDIAN(D8:I8)),2) -> 4.6
A9: =+A8+1 -> 28 | B9: Sarrafo cedrinho 2,5 x 5,0 cm | C9: m | D9: 7.5 | F9: 8.1 | H9: 6.2 | M9: =TRUNC((AVERAGE(D9,F9,H9)),2) -> 7.26 | N9: =TRUNC((MEDIAN(D9:I9)),2) -> 7.5
D10: Mondai Madeiras | E10: 3587-1643 | F10: Cunha Madeiras | G10: 3364-2778 | H10: Schreiner Madeiras | I10: 41-3543-1316
A11: =+A9+1 -> 29 | B11: CAIBRO CEDRINHO 5 x 7 cm | C11: m | D11: 20 | F11: 24.4 | H11: 41.25 | M11: =TRUNC((AVERAGE(D11,F11)),2) -> 22.2 | N11: =TRUNC((MEDIAN(D11:I11)),2) -> 24.4
A12: 20 | B12: Guia cedrinho 2,5 x 10 cm | C12: m | D12: 12.5 | F12: 16.3 | H12: 14.37 | M12: =TRUNC((AVERAGE(D12,F12,H12)),2) -> 14.39 | N12: =TRUNC((MEDIAN(D12:I12)),2) -> 14.37
A13: 22 | B13: Guia cedrinho 2,5 x 20 cm | C13: m | D13: 25 | F13: 32.5 | H13: 28.75 | M13: =TRUNC((AVERAGE(D13,F13,H13)),2) -> 28.75 | N13: =TRUNC((MEDIAN(D13:I13)),2) -> 28.75
D14: Mad. Guarujá | E14: (51) 3246-5944 | F14: Cunha Madeiras | G14: 3364-2778 | H14: Schreiner Madeiras | I14: (47) 991164445
A15: 25 | B15: Tábua itaúba lixada e aplainada 2,5x20x5,50 | C15: pç | D15: 245 | F15: 343.8 | H15: 246.4 | L15: Bitolas das tábuas brutas: | M15: =TRUNC((AVERAGE(D15,F15,H15)),2) -> 278.4 | N15: =TRUNC((MEDIAN(D15:I15)),2) -> 246.4
A16: 26 | B16: Tábua itaúba lixada e aplainada 3x22x3,00 | C16: pç | D16: 267 | F16: 375 | H16: 264 | L16: Esp.: 2,5 , 4 , 5 , 8 , 10 , 15 cm | M16: =TRUNC((AVERAGE(D16,F16,H16)),2) -> 302 | N16: =TRUNC((MEDIAN(D16:I16)),2) -> 267
A17: =+A16+1 -> 27 | B17: Tábua itaúba lixada e aplainada 3x22x4,00 | C17: pç | D17: 356 | F17: 500 | H17: 352 | L17: Larg.: 5, 7, 10, 15, 20, 25, 30 cm | M17: =TRUNC((AVERAGE(D17,F17,H17)),2) -> 402.66 | N17: =TRUNC((MEDIAN(D17:I17)),2) -> 356
A18: 28 | B18: Tábua itaúba lixada e aplainada 3x22x4,50 | C18: pç | D18: 401 | F18: 562.5 | H18: 396 | L18: Comp.: 1, 1,5 , 2, 2,5 , 3, 3,5 , 4, 4,5 , 5, 5,5 m | M18: 453.16 | N18: 401
A19: 29 | B19: Tábua itaúba lixada e aplainada 3x30x3,00 | C19: pç | D19: 321 | F19: 450 | H19: 325.6 | M19: 365.53 | N19: =TRUNC((MEDIAN(D19:I19)),2) -> 325.6
A20: 30 | B20: Tábua itaúba lixada e aplainada 3,5x15x5,50 | C20: pç | D20: 295 | F20: 412.5 | H20: 290.4 | M20: 332.63 | N20: 295
A21: 31 | B21: Tábua itaúba lixada e aplainada 3,5x25x2,00 | C21: pç | D21: 223 | F21: 250 | H21: 176 | M21: 216.33 | N21: 223
A22: 32 | B22: Tábua itaúba lixada e aplainada 4x10x4,00 | C22: pç | D22: 142.55 | F22: 200 | H22: 140.8 | M22: 161.11 | N22: 142.55
A23: 33 | B23: Tábua itaúba lixada e aplainada 4x10x5,50 | C23: pç | D23: 196 | F23: 275 | H23: 193.6 | M23: 221.53 | N23: 196
A24: 34 | B24: Tábua itaúba lixada e aplainada 4x30x3,00 | C24: pç | D24: 321 | F24: 450 | H24: 325.6 | M24: 365.53 | N24: 325.6
A25: 35 | B25: Tábua itaúba lixada e aplainada 4x30x4,00 | C25: pç | D25: 430 | F25: 600 | H25: 431.2 | M25: 487.06 | N25: 431.2
A26: 36 | B26: Tábua itaúba lixada e aplainada 4x30x4,50 | C26: pç | D26: 485 | F26: 675 | H26: 484 | M26: 548 | N26: 485
A27: =+A26+1 -> 37 | B27: Sarrafo itaúba 2,5x5 | C27: m | D27: 13.3 | F27: 15 | H27: 11 | M27: 13.1 | N27: 13.3
A28: 38 | B28: Caibro itaúba 5x5 | C28: m | D28: 26.7 | F28: 24 | H28: 26.4 | M28: 25.7 | N28: 26.4
A29: 39 | B29: Caibro itaúba 5x7 | C29: m | D29: 33.5 | F29: 36 | H29: 35.2 | M29: 34.9 | N29: 35.2
A30: 40 | B30: Caibro itaúba 5x10 | C30: m | D30: 45 | F30: 48 | H30: 44 | M30: 45.66 | N30: 45
A31: 41 | B31: Tábua itaúba 4x15 | C31: m | D31: 55 | F31: 72 | H31: 52.8 | M31: 59.93 | N31: 55
A32: 42 | B32: Tábua itaúba 4x25 | C32: m | D32: 112 | F32: 120 | H32: 88 | M32: 106.66 | N32: 112
A33: 43 | B33: Tábua itaúba 4x30 | C33: m | D33: 107 | F33: 144 | H33: 105.6 | M33: 118.86 | N33: 107
A34: 44 | B34: Tábua itaúba lixada e aplainada 3,5x19x1,80 | C34: pç | D34: 130.5 | F34: 200 | H34: 140.8 | M34: 157.1 | N34: 140.8
A35: 45 | B35: Tábua itaúba lixada e aplainada 3,5x19x2,00 | C35: pç | D35: 145 | F35: 200 | H35: 140.8 | M35: 161.93 | N35: 145
D36: Delei Madeiras | E36: 3395-1868 | F36: Madelei | G36: 3373-8888 | H36: Cofel | I36: 3222-2255
A37: =+A35+1 -> 46 | B37: Laminado melamínico texturizado chapa 1,25 x 3,08 m esp=0,8 mm | C37: m² | D37: 25.71 | F37: 32.25 | H37: 40.26 | L37: Dividir o valor pela área da chapa (3,85 m²) | M37: =TRUNC((AVERAGE(D37,F37,H37)),2) -> 32.74 | N37: =TRUNC((MEDIAN(D37:K37)),2) -> 32.25
D38: Mariani | E38: 3403-2222 | F38: Flosul | G38: 51 3681-0100 | H38: MSA | I38: 3556-3711
A39: =+A37+1 -> 47 | B39: Tora eucalipto tratada d=20 cm | C39: m | D39: 57 | F39: 28.41 | H39: 30.1 | L39: Total=frete/m+tora (frete/ 99 m (cancha de bocha)) | M39: =TRUNC((AVERAGE(F39,H39)),2) -> 29.25 | N39: =TRUNC((MEDIAN(D39:K39)),2) -> 30.1
D40: SL Parafusos Ltda | E40: 3411-9800 | F40: Guido A. Jacobus | G40: 3024-1200 | H40: Central de Parafusos | I40: 3341-9353 | J40: Brasil dos Parafusos | K40: 3326-1946
A41: =+A39+1 -> 48 | B41: Parafuso aço inox 1/4" x 3" c/porca | C41: un | D41: =1.71 -> 1.71 | F41: 3.18 | H41: 0.85 | J41: 2.4 | L41: Acrescentar o valor da porca quando vier separado (R$ ___) | M41: =TRUNC((AVERAGE(D41,F41,H41,J41)),2) -> 2.03 | N41: =TRUNC((MEDIAN(D41:K41)),2) -> 2.05
A42: 49 | B42: Parafuso francês zincado 5/16" x 2" c/porca | C42: un | D42: 1.2 | F42: 0.38 | H42: 1 | J42: 1.09 | M42: =TRUNC((AVERAGE(D42,F42,H42,J42)),2) -> 0.91 | N42: =TRUNC((MEDIAN(D42:K42)),2) -> 1.04
A43: 50 | B43: Parafuso francês zincado 5/16" x 2 1/2" c/ porca | C43: un | D43: 1.39 | F43: 0.44 | H43: 1.17 | J43: 1.24 | M43: =TRUNC((AVERAGE(D43,F43,H43,J43)),2) -> 1.06 | N43: =TRUNC((MEDIAN(D43:K43)),4) -> 1.205
A44: 51 | B44: Parafuso francês zincado 5/16" x 4" c/ porca | C44: un | D44: 1.91 | F44: 0.61 | H44: 1.65 | J44: 1.72 | M44: 1.47 | N44: 1.68
A45: 52 | B45: Parafuso francês zincado 5/16" x 5" c/porca | C45: un | D45: 2.25 | F45: 0.71 | H45: 2 | J45: 2.01 | M45: 1.74 | N45: 2
A46: 53 | B46: Parafuso inox auto atarraxante 4,8 x 70 cabeça chata | C46: un | D46: 0.88 | F46: 0.62 | H46: 1.88 | J46: 1.14 | M46: 1.13 | N46: 1.01
A47: 54 | B47: Parafuso inox auto atarraxante 4,8 x 100 cabeça chata | C47: un | D47: 2.32 | F47: - | H47: - | J47: 2.73 | M47: =TRUNC((AVERAGE(D47,F47,H47,J47)),2) -> 2.52 | N47: 2.52
A48: 55 | B48: Parafuso sextavado aço zincado 1/2" x 1 1/2" | C48: un | D48: =1.96 -> 1.96 | F48: 0.7 | H48: 2.2 | J48: 1.97 | M48: 1.7 | N48: 1.96
A49: 56 | B49: Parafuso sextavado aço zincado 1/2" x 3 1/2" | C49: un | D49: 4.48 | F49: 1.46 | H49: 4 | J49: 3.6 | M49: 3.38 | N49: 3.8
A50: 57 | B50: Parafuso sextavado aço zincado 1/2" x 8" | C50: un | D50: 10.66 | F50: 3.33 | H50: - | J50: 9.88 | M50: 7.95 | N50: 9.88
A51: 58 | B51: Parafuso sextavado aço zincado 1/4" x 2" c/ porca | C51: un | D51: =0.52+32.65/100 -> 0.8465 | F51: 0.24 | H51: 0.6 | J51: 0.68 | L51: Acrescentar o valor da porca quando vier separado (R$ ___) | M51: 0.59 | N51: =TRUNC((MEDIAN(D51:K51)),4) -> 0.64
A52: 59 | B52: Parafuso sextavado rosca soberba 1/4" x 30 mm | C52: un | D52: 0.42 | F52: 0.13 | H52: 0.4 | J52: 0.38 | M52: 0.33 | N52: 0.39
D53: Gerdau | E53: 3373-2500 | F53: Arcelor Mittal | G53: 2121-7777 | H53: Sidersul | I53: 3041-6565
A54: =+A52+1 -> 60 | B54: Barra ferro chato 7/8" x 1/8" | C54: kg | D54: 4.63 | F54: 4.14 | H54: 4.96 | M54: =TRUNC((AVERAGE(D54,F54,H54)),2) -> 4.57 | N54: =TRUNC((MEDIAN(D54:I54)),2) -> 4.63
A55: 61 | B55: Barra ferro chato 7/8" x 1/4" | C55: kg | D55: 4.67 | F55: 4.35 | H55: 4.96 | M55: 4.66 | N55: 4.67
A56: 62 | B56: Barra ferro chato 1 1/4" x 1/4" | C56: kg | D56: 4.67 | F56: 4.14 | H56: 4.96 | M56: 4.59 | N56: 4.67
A57: 63 | B57: Barra ferro chato 2" x 1/8" | C57: kg | D57: 5.21 | F57: 4.83 | H57: 4.96 | M57: 5 | N57: 4.96
A58: 64 | B58: Chapa aço 1/2" | C58: kg | D58: 4.14 | F58: 5.08 | H58: 4.95 | M58: 4.72 | N58: 4.95
A59: 65 | B59: Chapa aço 1/4" | C59: kg | D59: 4.14 | F59: 5.08 | H59: 4.95 | M59: 4.72 | N59: 4.95
A60: 66 | B60: Chapa aço 3/16" | C60: kg | D60: 4.14 | F60: 5.08 | H60: 4.95 | M60: 4.72 | N60: 4.95
D61: Redinox | E61: 3020-0707 | F61: Steel Sul | G61: 3059-8744 | H61: Galeazi | I61: 4042-8322
A62: =+A60+1 -> 67 | B62: Chapa aço inox e=1,00 mm (AISI 304) | C62: m² | D62: 156 | F62: 164.5 | H62: 199.62 | M62: =TRUNC((AVERAGE(D62,F62,H62)),2) -> 173.37 | N62: =TRUNC((MEDIAN(D62:K62)),2) -> 164.5
D63: Chapas aço + galvanização
A64: =+A62+1 -> 68 | B64: Chapa galvanizada 1/2" | C64: kg | L64: Insumo 71 + galvanização/kg (R$ 2,30) | M64: =TRUNC(IF(Cotações!M58<Cotações!N58,Cotações!M58,Cotações!N58)+((IF(Cotações!$M$68<Cotações!$N$68,Cotações!$M$68,Cotações!$N$68))),2) -> 7.12
A65: =+A64+1 -> 69 | B65: Chapa galvanizada 1/4" | C65: kg | L65: Insumo 72 + galvanização/kg (R$ 2,30) | M65: =TRUNC(IF(Cotações!M59<Cotações!N59,Cotações!M59,Cotações!N59)+((IF(Cotações!$M$68<Cotações!$N$68,Cotações!$M$68,Cotações!$N$68))),2) -> 7.12
A66: =+A65+1 -> 70 | B66: Chapa galvanizada 3/16" | C66: kg | L66: Insumo 73 + galvanização/kg (R$ 2,30) | M66: =TRUNC(IF(Cotações!M60<Cotações!N60,Cotações!M60,Cotações!N60)+((IF(Cotações!$M$68<Cotações!$N$68,Cotações!$M$68,Cotações!$N$68))),2) -> 7.12
D67: Beretta | E67: 3479-2222 | F67: ATN | G67: 3470-0000 | H67: Bento Sul | I67: 54 3453-5053
A68: =+A66+1 -> 71 | B68: Processo de Galvanização | C68: kg | D68: 2.5 | F68: 2.5 | H68: 2.2 | L68: preço por kg de chapa + 10% relativo ao peso total após galvanização | M68: =TRUNC((AVERAGE(D68,F68,H68)),2) -> 2.4 | N68: =TRUNC((MEDIAN(D68:K68)),2) -> 2.5
D69: Sulfer | E69: 3470-4004 | F69: Scharlau | G69: 3091-1525 | H69: Global Aço | I69: 3470-3522 | J69: Imp. Americana | K69: 3337-4611
A70: =+A68+1 -> 72 | B70: Cumeeira galvalume ondulada 0,50 mm | C70: un | D70: 28.6 | F70: 29.34 | H70: 30 | J70: 23.6 | L70: Cumeeira com 1 m de comprimento | M70: =TRUNC((AVERAGE(D70,F70,H70,J70)),2) -> 27.88 | N70: =TRUNC((MEDIAN(D70:K70)),2) -> 28.97
A71: 73 | B71: Telha galvalume ondulada 0,50 mm x 1,03 m x 1 m | C71: m | D71: 34.9 | F71: 26.3 | H71: 30 | J71: 23.6 | M71: =TRUNC((AVERAGE(D71,F71,H71,J71)),2) -> 28.7 | N71: =TRUNC((MEDIAN(D71:K71)),2) -> 28.15
D72: Sulfer | E72: 3470-4004 | F72: Aço Tubo | G72: 2126-9400 | H72: Açoduto | I72: 3058-5353 | J72: Ipiranga | K72: 3303-2100
A73: =+A71+1 -> 74 | B73: Tubo aço carbono 6" e=6,35 mm (NBR 6591) | C73: m | D73: - | F73: 206.34 | H73: 182.35 | J73: 150.15 | L73: tubo condutor | M73: =TRUNC((AVERAGE(F73,H73,J73)),2) -> 179.61 | N73: =TRUNC((MEDIAN(D73:K73)),2) -> 182.35
A74: 75 | B74: Tubo ferro preto quadrado 7x7 cm esp=3,00 mm | C74: m | D74: 73.71 | F74: - | H74: 56 | J74: 40.6 | L74: tubo / 6,00 m | M74: =TRUNC((AVERAGE(D74,H74,J74)),2) -> 56.77 | N74: =TRUNC((MEDIAN(D74:K74)),2) -> 56
D75: FG | E75: 3358-1213 | H75: CPM Representações | J75: RAV Correntes | K75: 54-3019-1436
A76: =+A74+1 -> 76 | B76: Corrente aço galvanizado d=5 mm elo longo 22x45 mm | C76: kg | D76: 23.6 | H76: 22.23 | J76: 23.43 | L76: Na próxima atualização utilizar elo curto e=6 mm 22x40 mm | M76: =TRUNC((AVERAGE(D76,H76,J76)),2) -> 23.08 | N76: =TRUNC((MEDIAN(D76:K76)),2) -> 23.43
A77: 77 | B77: Disco de Corte MR832 - 7" - Norton uso geral | C77: un | D77: 22.9 | F77: 26.34 | H77: 16.5 | M77: =TRUNC((AVERAGE(D77,F77)),2) -> 24.62 | N77: =TRUNC((MEDIAN(D77:K77)),2) -> 22.9
D78: Telas Caxias | E78: 3364-1688 | F78: Rio Branco | G78: 3466-8095 | H78: Renovar | I78: 3342-7711 | J78: Sul Tela | K78: 3372-1475
A79: =+A77+1 -> 78 | B79: Esticador de arame | C79: un | D79: 5 | F79: - | H79: 5 | J79: 7 | M79: =TRUNC((AVERAGE(D79,F79,H79,J79)),2) -> 5.66 | N79: =TRUNC((MEDIAN(D79:K79)),2) -> 5
A80: =+A79+1 -> 79 | B80: Tela arame galvanizado 5x5 cm fio 12 BWG | C80: m² | D80: 22 | F80: 21 | H80: 26.5 | J80: 28.6 | M80: =TRUNC((AVERAGE(D80,F80,H80,J80)),2) -> 24.52 | N80: =TRUNC((MEDIAN(D80:K80)),2) -> 24.25
A81: =+A80+1 -> 80 | B81: Tela arame galvanizado 4x4 cm fio 10 BWG | C81: m² | D81: 33 | F81: 49 | H81: 63 | J81: - | M81: =TRUNC((AVERAGE(D81,F81,H81)),2) -> 48.33 | N81: =TRUNC((MEDIAN(D81:K81)),2) -> 49
D82: Fundição Silva Três Rios | E82: (24) 2255-3130 | F82: Fundição Zenah | G82: (54) 3228-5669
A83: =+A81+1 -> 81 | B83: Fradinho em ferro fundido | C83: un | D83: 314 | F83: 600 | M83: =TRUNC((AVERAGE(D83)),2) -> 314 | N83: =TRUNC((MEDIAN(D83:K83)),2) -> 457
D84: Ziober | E84: 44 3029-4410 | F84: Milla Equip. Met. | G84: 19 3363-1051 | H84: Flex | I84: 17 3223-2766
A85: =+A83+1 -> 82 | B85: Abdominal Simples | C85: un | D85: 5610 | F85: 4510 | H85: 4690 | L85: Galvanizados | M85: =TRUNC((AVERAGE(D85,F85:I85)),2) -> 4936.66 | N85: =TRUNC((MEDIAN(D85:I85)),2) -> 4690
A86: =+A85+1 -> 83 | B86: Adução e abdução de pernas duplo | C86: un | D86: 11490 | F86: 9150 | H86: 6940 | M86: =TRUNC((AVERAGE(D86,F86:I86)),2) -> 9193.33 | N86: =TRUNC((MEDIAN(D86:I86)),2) -> 9150
A87: 84 | B87: Esqui triplo conjugado | C87: un | D87: 18000 | F87: 21430 | H87: 8990 | M87: 16140 | N87: 18000
A88: 85 | B88: Jogo de barras | C88: un | D88: 9600 | F88: 11778 | H88: 6700 | M88: 9359.33 | N88: 9600
A89: 86 | B89: Multiexercitador conjugado 6 funções | C89: un | D89: 22200 | F89: 17184 | H89: 9190 | M89: 16191.33 | N89: 17184
A90: 87 | B90: Peitoral duplo | C90: un | D90: 14220 | F90: 9790 | H90: 7700 | M90: 10570 | N90: 9790
A91: 88 | B91: Placa orientativa (ATI) | C91: un | D91: 8130 | F91: 9966 | H91: 4990 | M91: 7695.33 | N91: 8130
A92: 89 | B92: Pressão de pernas triplo conjugado | C92: un | D92: 10860 | F92: 10706 | H92: 6850 | M92: 9472 | N92: 10706
A93: 90 | B93: Puxador duplo | C93: un | D93: 14220 | F93: 10428 | H93: 7690 | M93: 10779.33 | N93: 10428
A94: 91 | B94: Remada (APC) | C94: un | D94: 8340 | F94: 5940 | H94: 3890 | M94: 6056.66 | N94: 5940
A95: 92 | B95: Simulador de caminhada triplo conjugado | C95: un | D95: 16740 | F95: 15134 | H95: 7800 | M95: 13224.66 | N95: 15134
A96: 93 | B96: Simulador de remo | C96: un | D96: 6660 | F96: 5240 | H96: 5640 | M96: 5846.66 | N96: 5640
A97: =+A96+1 -> 94 | B97: Voador peitoral e voador dorsal (APC) | C97: un | D97: 13170 | F97: 6200 | H97: 3890 | M97: 7753.33 | N97: 6200
D98: Shopping de Pedras | E98: 3249-1111 | F98: Eládio | G98: 3328-5858 | H98: São Cristóvão | I98: 54 3477-1305 | J98: Coloretti | K98: 54 3477-1369
A99: =+A97+1 -> 95 | B99: Basalto Irregular | C99: m² | D99: 60 | F99: 50 | H99: 97 | J99: 60 | M99: =TRUNC((AVERAGE(D99,F99,H99,J99)),2) -> 66.75 | N99: =TRUNC((MEDIAN(D99:K99)),2) -> 60
A100: =+A99+1 -> 96 | B100: Basalto Irregular meio retalhão | C100: m² | D100: 110 | F100: 150 | H100: 107 | J100: 120 | M100: =TRUNC((AVERAGE(D100,F100,H100,J100)),2) -> 121.75 | N100: =TRUNC((MEDIAN(D100:K100)),2) -> 115
A101: =+A100+1 -> 97 | B101: Basalto Regular talhado | C101: =C100 -> m² | D101: 95 | F101: 110 | H101: 77 | J101: 80 | M101: 90.5 | N101: 87.5
A102: =+A101+1 -> 98 | B102: Basalto Regular serrado | C102: m² | D102: 110 | F102: 120 | H102: 163 | J102: 98 | M102: 122.75 | N102: 115
D103: DPS | E103: 3499-1536 | F103: Incorevest | G103: 3062-5119 | J103: RF Rede Pallet | K103: 3059-7270
A104: =+A102+1 -> 99 | B104: Lajota de concreto 45x45cm esp.=2,5cm | C104: m² | D104: 32.9 | F104: 52 | J104: 25.9 | M104: =TRUNC((AVERAGE(D104,F104,J104)),2) -> 36.93 | N104: =TRUNC((MEDIAN(D104:K104)),2) -> 32.9
A105: =+A104+1 -> 100 | B105: Piso Podotátil 25 x 25 cm | C105: un | D105: 3.5 | F105: 3.5 | J105: 4.2 | M105: =TRUNC((AVERAGE(D105,F105,J105)),2) -> 3.73 | N105: =TRUNC((MEDIAN(D105:K105)),2) -> 3.5
D106: Simil - Maquitel | E106: 3403-3232
A107: =+A105+1 -> 101 | B107: Saibro rosa - posto obra | C107: m³ | D107: 59 | L107: Fazer média dos fretes (Centro, Ipanema, Sarandi) | M107: =TRUNC((AVERAGE(D107)),2) -> 59 | N107: 59
D108: Rossatto | E108: 3250-5076 | F108: Jardins da Aldeia | G108: 3488-6251 | H108: Gramados Vargas | I108: 3367-2625 | J108: Canoas Garden | K108: 3472-4931
A109: =+A107+1 -> 102 | B109: Composto Orgânico | C109: m³ | D109: 180 | F109: 130 | H109: 120 | J109: 160 | M109: =TRUNC((AVERAGE(D109,F109,H109,J109)),2) -> 147.5 | N109: 145
A110: =+A109+1 -> 103 | B110: Grama catarina (Axonopus compressus) | C110: m² | D110: 9.5 | F110: 12 | H110: 8 | J110: 12 | M110: =TRUNC((AVERAGE(D110,F110,H110,J110)),2) -> 10.37 | N110: 10.75
A111: =+A110+1 -> 104 | B111: Grama de campo ( 1ª qualidade) | C111: =C110 -> m² | D111: - | F111: 6 | H111: 6 | J111: 6.5 | M111: =TRUNC((AVERAGE(F111,H111,J111)),2) -> 6.16 | N111: 6
D112: Sulcopy | E112: 2103-4660 | F112: Impacto | G112: 3334-9900 | H112: Sul10 | I112: 4061-1001 | J112: Pino | K112: 3012-9090
A113: =+A111+1 -> 105 | B113: Placa em lona impressa c/ 6 m² | C113: m² | D113: 80 | F113: 50 | H113: 70 | J113: 51.75 | L113: Solicitar valor de placa com 6,00 m/2 (Dividir valor por 6) | M113: =TRUNC((AVERAGE(D113,F113,H113,J113)),2) -> 62.93 | N113: 60.87
D114: Construtec | E114: 3012-2333 | F114: Reis e Reis | G114: 12 3966-9977 | H114: TecMachine | I114: 11 4643-4846
A115: =+A113+1 -> 106 | B115: Microfibra de polipropileno (sc 600 g) | C115: sc | D115: 33 | F115: 21.65 | H115: 23.2 | L115: Saco de 600 g (600 g/m³ de concreto) | M115: =TRUNC((AVERAGE(D115,F115,H115)),2) -> 25.95 | N115: 23.2
D116: Mineração Peixoto | E116: 51 3678-1020 | F116: Grani Torre | G116: 11 2246-1250 | H116: Polipiso | I116: 99116-4697
A117: =+A115+1 -> 107 | B117: Argamassa de alta resistência (Piso duro) | C117: kg | D117: 0.74 | F117: 0.65 | H117: 0.77 | L117: Frete para 1800,00 kg | M117: =TRUNC((AVERAGE(D117,F117,H117)),2) -> 0.72 | N117: 0.74
D118: Constinta | E118: 3341-6344 | H118: Porto Cores | I118: 3346-3339 | J118: Aquarela Tintas | K118: 3223-0133
A119: =+A117+1 -> 108 | B119: Fundo p/ galvanizado | C119: l | D119: 35.27 | H119: 37.22 | J119: 31.94 | M119: =TRUNC((AVERAGE(D119,H119,J119)),2) -> 34.81 | N119: =TRUNC((MEDIAN(D119,H119,J119)),2) -> 35.27
D120: Drenamac | E120: 3029-7593 | F120: Drenotec | G120: 3119-1244 | H120: Geofoco | I120: 0800-378-8500
A121: =+A119+1 -> 109 | B121: Manta Geotêxtil para cura do concreto | C121: m² | D121: 2.2 | F121: 2.5 | H121: 2.1 | L121: Bidim CC-10 | M121: =TRUNC((AVERAGE(D121,F121,H121)),2) -> 2.26 | N121: =TRUNC((MEDIAN(D121:K121)),2) -> 2.2
D122: Prod Equipam. MB | E122: 3377-2035
A123: =+A121+1 -> 110 | B123: Papeleira metálica basculante H-30 | C123: un | D123: 900 | M123: =TRUNC((AVERAGE(D123)),2) -> 900 | N123: 900
D124: Elevato | E124: 3349-0200 | F124: SIA | G124: 3375-3800 | H124: Mil Torneiras | I124: 3371-3200
A125: =+A123+1 -> 111 | B125: Válvula de mictório anti-vandalismo alta pressão Docol | C125: un | D125: 557.81 | F125: 362.1 | H125: 413.9 | M125: =TRUNC((AVERAGE(D125,F125,H125)),2) -> 444.6 | N125: 413.9
D126: Lourenço Mármores | E126: 3217-1323 | F126: De Grandi | G126: 3307-7724 | H126: Bello | I126: 3217-5900 | J126: Belotto | K126: 3541-5521
A127: =+A125+1 -> 112 | B127: Placa de granito | C127: un | D127: 550 | F127: 650 | H127: 840 | J127: 750 | M127: =TRUNC((AVERAGE(D127,F127,H127,J127)),2) -> 697.5 | N127: 700
D128: Gaúcha | E128: 3245-3500 | F128: Pouco Entulho | G128: 51 99859-2250 | H128: Tirentulho | I128: 3475-2222
A129: =+A127+1 -> 113 | B129: Caçamba 4,00 m3 | C129: un | D129: 480 | F129: 400 | H129: 450 | L129: Média Centro com Zona Sul caliça e terra | M129: =TRUNC((AVERAGE(D129,F129,H129)),2) -> 443.33 | N129: 450
D130: Transguga | E130: 3337-6060 | F130: Britas do Sul | G130: 3245-2093 | H130: Areia Norte | I130: 3340-9032 | J130: Balinha | K130: 3434-0059
A131: =+A129+1 -> 114 | B131: Areia Peneirada - posto obra | C131: m³ | D131: 65 | F131: 90 | H131: 65 | J131: 70 | M131: =TRUNC((AVERAGE(D131,F131,H131,J131)),2) -> 72.5 | N131: =TRUNC((MEDIAN(D131:K131)),2) -> 67.5
A132: =+A131+1 -> 115 | B132: Brita 1 ou 2 - posto obra | C132: m³ | D132: 65 | F132: 75 | H132: 65 | J132: 65 | M132: =TRUNC((AVERAGE(D132,F132,H132,J132)),2) -> 67.5 | N132: 65
D133: DMAE | E133: 3289-9537
A134: =+A132+1 -> 116 | B134: Taxa instalação água DMAE | C134: cj | D134: 465.36 | L134: Engª Ana | M134: =TRUNC((AVERAGE(D134)),2) -> 465.36 | N134: 465.36
A135: =+A134+1 -> 117 | B135: Taxa instalação esgoto DMAE | C135: cj | D135: 300.94 | M135: =TRUNC((AVERAGE(D135)),2) -> 300.94 | N135: 300.94
A136: =+A135+1 -> 118 | B136: Água tratada | C136: m³ | D136: 4.02 | M136: =TRUNC((AVERAGE(D136)),2) -> 4.02 | N136: 4.02
A137: =+A136+1 -> 119 | B137: Esgoto cloacal | C137: m³ | D137: =0.8*D136 -> 3.216 | M137: =TRUNC((AVERAGE(D137)),2) -> 3.21 | N137: 3.21
D138: Rodrigo Paz | E138: 3318-1010 | F138: Alicerce da Const | G138: 3318-1010 | H138: Maico Pedras | I138: 99817-3559
A139: 122 | B139: Laje de Grês 90x45 | C139: un | D139: 8 | F139: 14.9 | H139: 6 | M139: =TRUNC((AVERAGE(D139,F139,H139)),2) -> 9.63 | N139: =TRUNC((MEDIAN(D139:I139)),2) -> 8
A140: =+A139+1 -> 123 | B140: Pedra de Grês 43x21x12 | C140: un | D140: 1.9 | F140: 2.2 | H140: 2.28 | J140: 2 | M140: =TRUNC((AVERAGE(D140,F140,H140,J140)),2) -> 2.09 | N140: =TRUNC((MEDIAN(D140:K140)),2) -> 2.1
D141: Ponte Pedras | E141: 11 4485-3034 | F141: Balinha | G141: 3434-0059
A142: =+A140+1 -> 124 | B142: Pedra de Alicerce | C142: un | D142: 6 | F142: 4.5 | M142: =TRUNC((AVERAGE(D142,F142)),2) -> 5.25 | N142: =TRUNC((MEDIAN(D142:G142)),2) -> 5.25
D143: Supreme | E143: 3012-9962 | F143: Via Inox | G143: 3275-1111 | H143: Magazine do Inox | I143: 3060-2074 | J143: Stilo Elevato | K143: 3333-8200
A144: =+A142+1 -> 125 | B144: Cuba Inox polida d=38 cm c/válvula 3 1/2" | C144: un | D144: 249 | F144: 169.9 | H144: 150.2 | J144: 301.03 | M144: =TRUNC((AVERAGE(D144,F144,H144)),2) -> 189.7 | N144: =TRUNC((MEDIAN(D144:K144)),2) -> 209.45
D145: RZ | E145: 3212-7911 | F145: Copyserv | G145: 3212-1612 | H145: DWG | I145: 3022-7978 | J145: MI Digital | K145: 3574-8012
A146: =+A144+1 -> 126 | B146: Plotagem | C146: m² | D146: 11.89 | F146: 12 | H146: 10.7 | J146: 10.58 | L146: PB, Papel sulfite, gramatura | M146: =TRUNC((AVERAGE(D146,F146,H146,J146)),2) -> 11.29 | N146: =TRUNC((MEDIAN(D146:K146)),2) -> 11.29
D147: Sinduscon | E147: Site
A148: =+A146+1 -> 127 | B148: CUB-RS R 16-N | C148: un | D148: 1477.13 | M148: =TRUNC((AVERAGE(D148)),2) -> 1477.13 | N148: =TRUNC((MEDIAN(D148:K148)),2) -> 1477.13
D149: CREA-RS | E149: Site
A150: =+A148+1 -> 128 | B150: ART | C150: un | D150: 226.5 | M150: =TRUNC((AVERAGE(D150)),2) -> 226.5 | N150: =TRUNC((MEDIAN(D150:K150)),2) -> 226.5
D151: PMPA | E151: Site
A152: =+A150+1 -> 129 | B152: UFM | C152: un | D152: 4.1771 | M152: =TRUNC((AVERAGE(D152)),2) -> 4.17 | N152: =TRUNC((MEDIAN(D152:K152)),2) -> 4.17
D153: Casa do Granito | E153: 3233-0052 | F153: La Pietra | G153: 3334-6544 | H153: Bonapedras | I153: 3012-4393 | J153: AGPetrea | K153: 3126-3792
A154: =+A152+1 -> 130 | B154: Tabuleiro damas | C154: un | D154: 1500 | F154: 320 | H154: 1601.8 | J154: 400 | M154: =TRUNC((AVERAGE(D154,F154,H154,J154)),2) -> 955.45 | N154: =TRUNC((MEDIAN(D154:K154)),2) -> 950

Sheet BDI
A1: Composição do BDI
A3: *Conforme Decreto nº 19.224, de 25 de novembro de 2015 (PMPA)
A5: TOMADOR: | B5: PREFEITURA MUNICIPAL DE PORTO ALEGRE
A6: OBJETO: | B6: =+PO!B9 -> Obras de Aquisição e Instalação de Academias de Ginástica ao ar livre na Praça Grêmio Futebol Portoalegrense (110/03), Praça Guia Lopes (118/08) e Praça Simões Lopes Neto (125/06)
A7: DATA: | B7: =IF(PO!$B$10="","",PO!$B$10) -> 2021-09-14 | C7: =IF(PO!$C$10="","",PO!$C$10) ->  | D7: =IF(PO!$C$10="","",PO!$C$10) ->  | E7: =IF(PO!$C$10="","",PO!$C$10) ->  | F7: =IF(PO!$C$10="","",PO!$C$10) -> 
A8: ART: | B8: =IF(PO!$B$11="","",PO!$B$11) -> 
A9: CONTRIBUIÇÃO PREVIDENCIÁRIA: | D9: =IF(Planilha_M.O.!$D$5="c/desoneração","Orçamento COM DESONERAÇÃO (Lei 13.161/2015)","Orçamento SEM DESONERAÇÃO (Lei 13.161/2015)") -> Orçamento SEM DESONERAÇÃO (Lei 13.161/2015)
A11: TIPO DE OBRA | D11: Contratação de obras e serviços de INFRAESTRUTURA, incluindo pavimentação, iluminação pública, praças, saneamento, sistemas de água, esgoto cloacal e pluvial e seus respectivos serviços de conservação e manutenção
A12: Parcelas
A13: (AC) - Administração Central | D13: 4.03
A14: (S) + (G) - Seguro e Garantia | D14: 0.65
A15: (R) - Risco | D15: 1.33
A16: (DF) - Despesas Financeiras | D16: 1.52
A17: (L) - Lucro | D17: 8
A18: (I1) - PIS | D18: 0.65
A19: (I2) - COFINS | D19: 3
A20: (I3) - ISSQN | D20: 1.2
A21: (I4) - Contrib. Previdenciária | D21: 4.5
A22: BDI Calculado, incluindo I4 - com desoneração | D22: 0.2821
A23: BDI Calculado, desconsiderando I4 - sem desoneração | D23: 0.2215
A25: Os valores de BDI foram calculados com o emprego da fórmula abaixo (Acórdão 2622/2013 - TCU):
A32: Declaro para os devidos fins que, conforme legislação tributária municipal, a base de cálculo para o ISS das atividades Pavimentação, Iluminação Pública, Praças, Saneamento, Sistemas de água, Esgoto Cloacal e Pluvial e seus respectivos serviços de conservação e manutenção é de 30%, com a respectiva alíquota de 4%.
A38: Declaro para os devidos fins que o detalhamento de encargos sociais atende ao estabelecido no SINAPI/RS de
C39: =CONCATENATE(Planilha_M.O.!$E$17,",") -> JUNHO / 2021, | D39: sendo utilizada a opção | F39: =IF(Planilha_M.O.!$D$5="c/desoneração","com desoneração,","sem desoneração,") -> sem desoneração,
A40: e que esta é a alternativa mais adequada para a Administração Pública.

Sheet Quadro_Comparativo
A6: Obras de Aquisição e Instalação de Academias de Ginástica ao ar livre na Praça Grêmio Futebol
A7: Portoalegrense (110/03), Praça Guia Lopes (118/08) e Praça Simões Lopes Neto (125/06)
A9: QUADRO COMPARATIVO
B11: VALOR
A12: ORCAMENTO COM DESONERAÇÃO BDI 28,21% | B12: 382966.13
A14: ORCAMENTO SEM DESONERAÇÃO BDI 22,15% | B14: =PO!L156 -> 376995.68
A16: O ORÇAMENTO MAIS VANTAJOSO PARA O MUNICÍPIO PMPA FOI O SEM DESONERAÇÃO
A17: DA FOLHA DE PAGAMENTO.

Sheet Encargos Sociais
A1: Composição dos Encargos Sociais
D3: Mês de referência: | F3: JUNHO/21
A5: ENCARGOS SOCIAIS SOBRE A MÃO-DE-OBRA
A6: Código | B6: Descrição | C6: Com Desoneração | E6: Sem Desoneração
C7: Horista | D7: Mensalista | E7: Horista | F7: Mensalista
A8: GRUPO A
A9: A1 | B9: INSS | C9: 0 | D9: 0 | E9: 0.2 | F9: 0.2
A10: A2 | B10: SESI | C10: 0.015 | D10: 0.015 | E10: 0.015 | F10: 0.015
A11: A3 | B11: SENAI | C11: 0.01 | D11: 0.01 | E11: 0.01 | F11: 0.01
A12: A4 | B12: INCRA | C12: 0.002 | D12: 0.002 | E12: 0.002 | F12: 0.002
A13: A5 | B13: SEBRAE | C13: 0.006 | D13: 0.006 | E13: 0.006 | F13: 0.006
A14: A6 | B14: Salário Educação | C14: 0.025 | D14: 0.025 | E14: 0.025 | F14: 0.025
A15: A7 | B15: Seguro Contra Acidentes de Trabalho | C15: 0.03 | D15: 0.03 | E15: 0.03 | F15: 0.03
A16: A8 | B16: FGTS | C16: 0.08 | D16: 0.08 | E16: 0.08 | F16: 0.08
A17: A9 | B17: SECONCI | C17: 0 | D17: 0 | E17: 0 | F17: 0
A18: A | B18: Total | C18: =SUM(C9:C17) -> 0.168 | D18: =SUM(D9:D17) -> 0.168 | E18: 0.368 | F18: 0.368
A19: GRUPO B
A20: B1 | B20: Repouso Semanal Remunerado | C20: 0.1793 | D20: 0 | E20: 0.1793 | F20: 0
A21: B2 | B21: Feriados | C21: 0.0424 | D21: 0 | E21: 0.0424 | F21: 0
A22: B3 | B22: Auxílio - Enfermidade | C22: 0.0125 | D22: 0.0091 | E22: 0.0125 | F22: 0.0091
A23: B4 | B23: 13º Salário | C23: 0.1077 | D23: 0.0833 | E23: 0.1077 | F23: 0.0833
A24: B5 | B24: Licença Paternidade | C24: 0.0007 | D24: 0.0006 | E24: 0.0007 | F24: 0.0006
A25: B6 | B25: Faltas Justificadas | C25: 0.0072 | D25: 0.0056 | E25: 0.0072 | F25: 0.0056
A26: B7 | B26: Dias de Chuvas | C26: 0.0153 | D26: 0 | E26: 0.0153 | F26: 0
A27: B8 | B27: Auxílio Acidente de Trabalho | C27: 0.0011 | D27: 0.0009 | E27: 0.0011 | F27: 0.0009
A28: B9 | B28: Férias Gozadas | C28: 0.074 | D28: 0.0572 | E28: 0.074 | F28: 0.0572
A29: B10 | B29: Salário Maternidade | C29: 0.0003 | D29: 0.0003 | E29: 0.0003 | F29: 0.0003
A30: B | B30: Total | C30: =SUM(C20:C29) -> 0.4405 | D30: =SUM(D20:D29) -> 0.157 | E30: 0.4405 | F30: 0.157
A31: GRUPO C
A32: C1 | B32: Aviso Prévio Indenizado | C32: 0.0428 | D32: 0.0332 | E32: 0.0428 | F32: 0.0332
A33: C2 | B33: Aviso Prévio Trabalhado | C33: 0.001 | D33: 0.0008 | E33: 0.001 | F33: 0.0008
A34: C3 | B34: Férias Indenizadas | C34: 0.0529 | D34: 0.0409 | E34: 0.0529 | F34: 0.0409
A35: C4 | B35: Depósito Rescisão Sem Justa Causa | C35: 0.0363 | D35: 0.0281 | E35: 0.0363 | F35: 0.0281
A36: C5 | B36: Indenização Adicional | C36: 0.0036 | D36: 0.0028 | E36: 0.0036 | F36: 0.0028
A37: C | B37: Total | C37: =SUM(C32:C36) -> 0.1366 | D37: =SUM(D32:D36) -> 0.1058 | E37: 0.1366 | F37: 0.1058
A38: GRUPO D
A39: D1 | B39: Reincidência de Grupo A sobre Grupo B | C39: =ROUND((C18*C30),4) -> 0.074 | D39: =ROUND((D18*D30),4) -> 0.0264 | E39: 0.1621 | F39: 0.0578
A40: D2 | B40: Reincidência de Grupo A sobre Aviso Prévio Trabalhado e Reincidência do FGTS sobre Aviso Prévio Indenizado | C40: =ROUND(((C18*C33)+(C16*C32)),4) -> 0.0036 | D40: =ROUND(((D18*D33)+(D16*D32)),4) -> 0.0028 | E40: 0.0038 | F40: 0.003
A41: D | B41: Total | C41: =SUM(C39:C40) -> 0.0776 | D41: =SUM(D39:D40) -> 0.0292 | E41: 0.1659 | F41: 0.0608
A42: TOTAL (A+B+C+D) | C42: =+C18+C30+C37+C41+0.0001 -> 0.8228 | D42: =+D18+D30+D37+D41 -> 0.46 | E42: 1.111 | F42: 0.6916

Sheet Curva ABC
A1: CURVA ABC
A3: OBJETO: | B3: =+PO!$B$9 -> Obras de Aquisição e Instalação de Academias de Ginástica ao ar livre na Praça Grêmio Futebol Portoalegrense (110/03), Praça Guia Lopes (118/08) e Praça Simões Lopes Neto (125/06)
A4: DATA: | B4: =IF(PO!$B$10="","",PO!$B$10) -> 2021-09-14
A5: ART nº: | B5: =IF(PO!$B$11="","",PO!$B$11) -> 
D6: A=70% DO VALOR DO ORÇAMENTO
D7: B=20% DO VALOR DO ORÇAMENTO
D8: C=10% DO VALOR DO ORÇAMENTO
A10: ITEM | B10: DESCRIÇÃO DAS ATIVIDADES | C10: VALOR DO SERVIÇO | D10: % | E10: % Acumulado | F10: ABC
A13: 3.1 | B13: ADMINISTRAÇÃO LOCAL | C13: =PO!L31 -> 24761.29 | D13: =C13/$C$95 -> 0.06568056695 | E13: =E12+D13 -> 0.06568056695 | F13: =IF(OR(E13<0.71,D13>0.71),"A",(IF(OR(E13<0.91,D13>0.21),"B","C"))) -> A
A14: 11.1 | B14: ADMINISTRAÇÃO LOCAL | C14: =PO!L80 -> 24761.29 | D14: 0.06568056695 | E14: 0.1313611339 | F14: =IF(OR(E14<0.71,D14>0.71),"A",(IF(OR(E14<0.91,D14>0.21),"B","C"))) -> A
A15: 19.1 | B15: ADMINISTRAÇÃO LOCAL SIMÕES LOPES NETO | C15: =PO!L129 -> 24617.4 | D15: 0.06529889149 | E15: 0.1966600254 | F15: =IF(OR(E15<0.71,D15>0.71),"A",(IF(OR(E15<0.91,D15>0.21),"B","C"))) -> A
A16: 15.3 | B16: ESQUI TRIPLO CONJUGADO - GALVANIZADO | C16: =PO!L97 -> 18380.59 | D16: 0.04875543932 | E16: 0.2454154647 | F16: A
A17: 7.2 | B17: SIMULADOR DE CAMINHADA TRIPLO CONJUGADO - GALVANIZADO | C17: =PO!L48 -> 15065.84 | D17: 0.03996289825 | E17: 0.285378363 | F17: A
A18: 15.2 | B18: SIMULADOR DE CAMINHADA TRIPLO CONJUGADO - GALVANIZADO | C18: =PO!L96 -> 15065.84 | D18: 0.03996289825 | E18: 0.3253412612 | F18: A
A19: 23.2 | B19: SIMULADOR DE CAMINHADA TRIPLO CONJUGADO - GALVANIZADO | C19: =PO!L144 -> 15065.84 | D19: 0.03996289825 | E19: 0.3653041595 | F19: A
A20: 13.2 | B20: PISO CONCRETO ARMADO E= 10 cm - ACADEMIA AO AR LIVRE | C20: =PO!L88 -> 12424.91 | D20: 0.03295769861 | E20: 0.3982618581 | F20: A
A21: 5.2 | B21: PISO CONCRETO ARMADO E= 10 cm - ACADEMIA AO AR LIVRE | C21: =PO!L39 -> 11712.69 | D21: 0.03106849925 | E21: 0.4293303573 | F21: A
A22: 7.5 | B22: JOGO DE BARRAS | C22: =PO!L51 -> 10945.66 | D22: 0.0290339136 | E22: 0.4583642709 | F22: A
A23: 15.5 | B23: PRESSÃO DE PERNAS TRIPLO CONJUGADO - GALVANIZADO | C23: =PO!L99 -> 10857.79 | D23: 0.028800834 | E23: 0.4871651049 | F23: A
A24: 7.4 | B24: ADUÇÃO E ABDUÇÃO DE PERNAS DUPLO - GALVANIZADO | C24: =PO!L50 -> 10491.68 | D24: 0.02782970882 | E24: 0.5149948137 | F24: A
A25: 15.4 | B25: ADUÇÃO E ABDUÇÃO DE PERNAS DUPLO - GALVANIZADO | C25: =PO!L98 -> 10491.68 | D25: 0.02782970882 | E25: 0.5428245226 | F25: A
A26: 23.3 | B26: ADUÇÃO E ABDUÇÃO DE PERNAS DUPLO - GALVANIZADO | C26: =PO!L145 -> 10491.68 | D26: 0.02782970882 | E26: 0.5706542314 | F26: A
A27: 7.1 | B27: PLACA ORIENTATIVA - GALVANIZADA | C27: =PO!L47 -> 8910.19 | D27: 0.02363472706 | E27: 0.5942889584 | F27: A
A28: 15.1 | B28: PLACA ORIENTATIVA - GALVANIZADA | C28: =PO!L95 -> 8910.19 | D28: 0.02363472706 | E28: 0.6179236855 | F28: A
A29: 23.1 | B29: PLACA ORIENTATIVA - GALVANIZADA | C29: =PO!L143 -> 8910.19 | D29: 0.02363472706 | E29: 0.6415584126 | F29: A
A30: 2.1 | B30: TAPUME EM CHAPA DE COMPENSADO RESINADO (L=10,00m; C=10,00m e H=2,20M) | C30: =PO!L20 -> 7262.64 | D30: 0.01926451783 | E30: 0.6608229304 | F30: A
A31: 10.1 | B31: TAPUME EM CHAPA DE COMPENSADO RESINADO (L=10,00m; C=10,00m e H=2,20M) | C31: =PO!L69 -> 7262.64 | D31: 0.01926451783 | E31: 0.6800874482 | F31: A
A32: 18.1 | B32: TAPUME EM CHAPA DE COMPENSADO RESINADO (L=10,00m; C=10,00m e H=2,20M) | C32: =PO!L118 -> 7262.64 | D32: 0.01926451783 | E32: 0.699351966 | F32: A
A33: 7.9 | B33: VOADOR PEITORAL E VOADOR DORSAL - GALVANIZADO | C33: =PO!L55 -> 7137.53 | D33: 0.01893265727 | E33: 0.7182846233 | F33: B
A34: 15.8 | B34: VOADOR PEITORAL E VOADOR DORSAL - GALVANIZADO | C34: =PO!L102 -> 7137.53 | D34: 0.01893265727 | E34: 0.7372172806 | F34: B
A35: 7.8 | B35: REMADA ESPECIAL - GALVANIZADO | C35: =PO!L54 -> 6776.86 | D35: 0.01797596195 | E35: 0.7551932425 | F35: B
A36: 23.6 | B36: REMADA ESPECIAL PPNE - GALVANIZADA | C36: =PO!L148 -> 6776.86 | D36: 0.01797596195 | E36: 0.7731692045 | F36: B
A37: 7.6 | B37: SIMULADOR DE REMO - GALVANIZADO | C37: =PO!L52 -> 6442.09 | D37: 0.01708796769 | E37: 0.7902571722 | F37: B
A38: 15.6 | B38: SIMULADOR DE REMO - GALVANIZADO | C38: =PO!L100 -> 6442.09 | D38: 0.01708796769 | E38: 0.8073451399 | F38: B
A39: 23.5 | B39: SIMULADOR DE REMO - GALVANIZADO | C39: =PO!L147 -> 6442.09 | D39: 0.01708796769 | E39: 0.8244331076 | F39: B
A40: 21.1 | B40: PISO CONCRETO ARMADO E= 10 cm - ACADEMIA AO AR LIVRE | C40: =PO!L135 -> 5915.5 | D40: 0.01569116124 | E40: 0.8401242688 | F40: B
A41: 9.2 | B41: REMOÇÃO DE ENTULHOS COM CAÇAMBA 4M³ | C41: =PO!L66 -> 5851.5 | D41: 0.01552139802 | E41: 0.8556456668 | F41: B
A42: 6.1 | B42: BANCO B (C/ ENCOSTO) - L=2,00 m - PADRÃO SMAMS | C42: =PO!L43 -> 3364.32 | D42: 0.008924027989 | E42: 0.8645696948 | F42: B
A43: 2.4 | B43: INSTALAÇÃO PROVISÓRIA DE ENERGIA, AÉREA, BIFÁSICA, COM CAIXA DE EMBUTIR C/ POSTE H=9,00M | C43: =PO!L23 -> 2979.99 | D43: 0.007904573336 | E43: 0.8724742681 | F43: =IF(OR(E43<0.71,D43>0.71),"A",(IF(OR(E43<0.91,D43>0.21),"B","C"))) -> B
A44: 10.4 | B44: INSTALAÇÃO PROVISÓRIA DE ENERGIA, AÉREA, BIFÁSICA, COM CAIXA DE EMBUTIR C/ POSTE H=9,00M | C44: =PO!L72 -> 2979.99 | D44: 0.007904573336 | E44: 0.8803788415 | F44: =IF(OR(E44<0.71,D44>0.71),"A",(IF(OR(E44<0.91,D44>0.21),"B","C"))) -> B
A45: 18.4 | B45: INSTALAÇÃO PROVISÓRIA DE ENERGIA, AÉREA, BIFÁSICA, COM CAIXA DE EMBUTIR C/ POSTE H=9,00M | C45: =PO!L121 -> 2979.99 | D45: =C45/$C$95 -> 0.007904573336 | E45: =E44+D45 -> 0.8882834148 | F45: B
A46: 7.7 | B46: ESPALDAR - EQUIPAMENTO PADRÃO SMAMS | C46: =PO!L53 -> 2735.72 | D46: 0.007256634877 | E46: 0.8955400497 | F46: B
A47: 23.4 | B47: ESPALDAR - EQUIPAMENTO PADRÃO SMAMS | C47: =PO!L146 -> 2735.72 | D47: 0.007256634877 | E47: 0.9027966846 | F47: B
A48: 2.7 | B48: SINALIZAÇÃO COM TELA PLÁSTICA LARANJA FIXADA EM CONE PLÁSTICO | C48: =PO!L26 -> 1848.42 | D48: 0.004903027006 | E48: 0.9076997116 | F48: B
A49: 15.7 | B49: PRANCHA DE ABDOMINAIS PADRÃO SMAMS | C49: =PO!L101 -> 1777.22 | D49: 0.004714165425 | E49: 0.912413877 | F49: C
A50: 10.7 | B50: SINALIZAÇÃO COM TELA PLÁSTICA LARANJA FIXADA EM CONE PLÁSTICO | C50: =PO!L75 -> 1690.96 | D50: 0.004485356437 | E50: 0.9168992334 | F50: C
A51: 14.1 | B51: BANCO B (C/ ENCOSTO) - L=2,00 m - PADRÃO SMAM | C51: =PO!L91 -> 1682.16 | D51: 0.004462013994 | E51: 0.9213612474 | F51: C
A52: 22.1 | B52: BANCO B (C/ ENCOSTO) - L=2,00 m - PADRÃO SMAM (NOVO) | C52: =PO!L138 -> 1682.16 | D52: 0.004462013994 | E52: 0.9258232614 | F52: C
A53: 8.1 | B53: PLANTIO DE GRAMA CATARINA (SÃO MARCOS) COM COMPOSTO ORGÂNICO | C53: =PO!L58 -> 1651.91 | D53: 0.004381774348 | E53: 0.9302050358 | F53: C
A54: 1.2 | B54: REMOÇÃO DE ENTULHOS COM CAÇAMBA 4M³ | C54: =PO!L17 -> 1564.5 | D54: 0.004149914927 | E54: 0.9343549507 | F54: C
A55: 6.2 | B55: LIXEIRA METÁLICA - V=30 LITROS | C55: =PO!L44 -> 1251.74 | D55: 0.003320303299 | E55: 0.937675254 | F55: C
A56: 14.2 | B56: LIXEIRA METÁLICA - V=30 LITROS INSTALADA | C56: =PO!L92 -> 1251.74 | D56: 0.003320303299 | E56: 0.9409955573 | F56: C
A57: 22.3 | B57: LIXEIRA METÁLICA - V=30 LITROS INSTALADA | C57: =PO!L140 -> 1251.74 | D57: 0.003320303299 | E57: 0.9443158606 | F57: C
A58: 7.3 | B58: APOIO DE MEMBROS SUPERIORES - EQUIPAMENTO PADRÃO SMAMS | C58: =PO!L49 -> 1095.3 | D58: 0.002905338332 | E58: 0.9472211989 | F58: C
A59: 2.3 | B59: FRETE P/ BANHEIRO QUÍMICO LOCADO (IDA E VOLTA) | C59: =PO!L22 -> 1085.48 | D59: 0.002879290288 | E59: 0.9501004892 | F59: C
A60: 10.3 | B60: FRETE P/ BANHEIRO QUÍMICO LOCADO (IDA E VOLTA) | C60: =PO!L71 -> 1085.48 | D60: 0.002879290288 | E60: 0.9529797795 | F60: C
A61: 18.3 | B61: FRETE P/ BANHEIRO QUÍMICO LOCADO (IDA E VOLTA) | C61: =PO!L120 -> 1085.48 | D61: 0.002879290288 | E61: 0.9558590698 | F61: C
A62: 12.2 | B62: ATERRO MANUAL C/MATERIAL IMPORTADO C/COMPACTAÇÃO MANUAL | C62: =PO!L84 -> 1032.67 | D62: 0.002739209107 | E62: 0.9585982789 | F62: C
A63: 4.2 | B63: ATERRO MANUAL C/MATERIAL IMPORTADO C/COMPACTAÇÃO MANUAL | C63: =PO!L35 -> 973.66 | D63: 0.002582682115 | E63: 0.961180961 | F63: C
A64: 2.6 | B64: PLACA DE OBRA EM CHAPA GALVANIZADA | C64: =PO!L25 -> 925.52 | D64: 0.002454988344 | E64: 0.9636359494 | F64: C
A65: 10.6 | B65: PLACA DE OBRA EM CHAPA GALVANIZADA | C65: =PO!L74 -> 925.52 | D65: 0.002454988344 | E65: 0.9660909377 | F65: C
A66: 18.6 | B66: PLACA DE OBRA EM CHAPA GALVANIZADA | C66: =PO!L123 -> 925.52 | D66: 0.002454988344 | E66: 0.968545926 | F66: C
A67: 2.5 | B67: INSTALAÇÃO PROVISÓRIA DE ÁGUA | C67: =PO!L24 -> 897.15 | D67: 0.002379735492 | E67: 0.9709256615 | F67: C
A68: 10.5 | B68: INSTALAÇÃO PROVISÓRIA DE ÁGUA | C68: =PO!L73 -> 897.15 | D68: 0.002379735492 | E68: 0.973305397 | F68: C
A69: 18.5 | B69: INSTALAÇÃO PROVISÓRIA DE ÁGUA | C69: =PO!L122 -> 897.15 | D69: 0.002379735492 | E69: 0.9756851325 | F69: C
A70: 13.1 | B70: REPOSIÇÃO DE SAIBRO ROSA - COMPACTAÇÃO MECÂNICA - E= 6 CM | C70: =PO!L87 -> 877.03 | D70: 0.00232636618 | E70: 0.9780114987 | F70: C
A71: 2.2 | B71: LOCAÇÃO DE BANHEIRO QUÍMICO | C71: =PO!L21 -> 830.62 | D71: 0.002203261321 | E71: 0.98021476 | F71: C
A72: 18.2 | B72: LOCAÇÃO DE BANHEIRO QUÍMICO | C72: =PO!L119 -> 830.62 | D72: 0.002203261321 | E72: 0.9824180213 | F72: C
A73: 18.7 | B73: SINALIZAÇÃO COM TELA PLÁSTICA LARANJA FIXADA EM CONE PLÁSTICO | C73: =PO!L124 -> 787.29 | D73: 0.002088326317 | E73: 0.9845063477 | F73: C
A74: 10.2 | B74: LOCAÇÃO DE BANHEIRO QUÍMICO | C74: =PO!L70 -> 769 | D74: 0.002039811172 | E74: 0.9865461588 | F74: C
A75: 17.2 | B75: REMOÇÃO DE ENTULHOS COM CAÇAMBA 4M³ | C75: =PO!L115 -> 744 | D75: 0.001973497415 | E75: 0.9885196562 | F75: C
A76: 24.1 | B76: PLANTIO DE GRAMA CATARINA (SÃO MARCOS) COM COMPOSTO ORGÂNICO | C76: =PO!L151 -> 715.26 | D76: 0.00189726312 | E76: 0.9904169194 | F76: C
A77: 5.1 | B77: EXECUÇÃO DE PASSEIO (CALÇADA) OU PISO DE CONCRETO COM CONCRETO USINADO, MOLDADO IN LOCO, ACABAMENTO VASSOURADO, ESPESSURA 8 CM, ARMADO | C77: =PO!L38 -> 589.13 | D77: =C77/$C$95 -> 0.001562696952 | E77: =E76+D77 -> 0.9919796163 | F77: C
A78: 12.1 | B78: MODELAGEM (MOVIMENTO DE TERRA ATÉ 15CM) | C78: =PO!L83 -> 494.74 | D78: 0.00131232273 | E78: 0.993291939 | F78: C
A79: 4.1 | B79: MODELAGEM (MOVIMENTO DE TERRA ATÉ 15CM) | C79: =PO!L34 -> 449.72 | D79: 0.001192904916 | E79: 0.994484844 | F79: C
A80: 16.3 | B80: APLICAÇÃO MANUAL DE PINTURA COM TINTA LÁTEX ACRÍLICA EM PAREDES, DUAS DEMÃOS. AF_06/2014 | C80: =PO!L107 -> 402.02 | D80: 0.001066378267 | E80: 0.9955512222 | F80: C
A81: 16.2 | B81: EMBOÇO OU MASSA ÚNICA EM ARGAMASSA TRAÇO 1:2:8, PREPARO MANUAL, APLICADA MANUALMENTE EM PANOS CEGOS DE FACHADA (SEM PRESENÇA DE VÃOS), ESPESSURA DE 25 MM. AF_06/2014 | C81: =PO!L106 -> 359.69 | D81: 0.0009540958135 | E81: 0.996505318 | F81: C
A82: 9.1 | B82: DEMOLIÇÃO DE MURETAS E CANTEIRO | C82: =PO!L65 -> 292.08 | D82: 0.0007747568885 | E82: 0.9972800749 | F82: C
A83: 1.1 | B83: ART (ANOTAÇÃO DE RESPONSABILIDADE TÉCNICA PELA EXECUÇÃO TOTAL DO OBJETO) | C83: =PO!L16 -> 276.05 | D83: 0.0007322365073 | E83: 0.9980123114 | F83: C
A84: 20.1 | B84: MODELAGEM (MOVIMENTO DE TERRA ATÉ 15CM) | C84: =PO!L132 -> 209.45 | D84: 0.0005555766581 | E84: 0.9985678881 | F84: C
A85: 22.2 | B85: INSTALAÇÃO DE BANCO S/ENCOSTO TIPO A (EXISTENTE) | C85: =PO!L139 -> 119.41 | D85: 0.00031674103 | E85: 0.9988846291 | F85: C
A86: 5.3 | B86: PISO PODOTÁTIL 25x25 cm - E=2,0 cm | C86: =PO!L40 -> 101.37 | D86: 0.0002688890228 | E86: 0.9991535182 | F86: C
A87: 17.1 | B87: REMOÇÃO BANCO S/ ENCOSTO - TIPO A | C87: =PO!L114 -> 61.5 | D87: 0.0001631318428 | E87: 0.99931665 | F87: C
A88: 16.1 | B88: CHAPISCO APLICADO EM ALVENARIA (SEM PRESENÇA DE VÃOS) E ESTRUTURAS DE CONCRETO DE FACHADA, COM EQUIPAMENTO DE PROJEÇÃO. ARGAMASSA TRAÇO 1:3 COM PREPARO EM BETONEIRA 400 L. AF_06/2014 | C88: =PO!L105 -> 50.88 | D88: 0.0001349617587 | E88: 0.9994516118 | F88: C
A89: 10.9 | B89: NIVELAMENTO | C89: =PO!L77 -> 50.31 | D89: 0.000133449805 | E89: 0.9995850616 | F89: C
A90: 2.9 | B90: NIVELAMENTO | C90: =PO!L28 -> 45.73 | D90: 0.0001213011247 | E90: 0.9997063627 | F90: C
A91: 10.8 | B91: LOCAÇÃO DE OBRA | C91: =PO!L76 -> 40.42 | D91: 0.0001072160827 | E91: 0.9998135788 | F91: C
A92: 2.8 | B92: LOCAÇÃO DE OBRA | C92: =PO!L27 -> 30.38 | D92: 8.058447778e-05 | E92: 0.9998941632 | F92: C
A93: 18.9 | B93: NIVELAMENTO | C93: =PO!L126 -> 21.3 | D93: 5.649932116e-05 | E93: 0.9999506626 | F93: C
A94: 18.8 | B94: LOCAÇÃO DE OBRA | C94: =PO!L125 -> 18.6 | D94: 4.933743538e-05 | E94: 1 | F94: C
B95: VALOR TOTAL PO | C95: =SUM(C13:C94) -> 376995.68
